{"text_format":"1","workbook":"xlsx","n_sheets":3,"sheets":["Contents","Availibility Analysis","VBA Program"],"not_rendered":{"charts":1,"images":1,"macros":1,"external_links":1,"defined_names":9,"comments":0,"pivot_tables":0},"unopened":[],"bounds":{"document_bytes":16777216,"sheet_cells":100000,"rows_first":2000,"rows_last":500,"rows_between":2000,"halvings":0,"cell_chars":16384,"cell_head_chars":4096},"cells_cut":0,"cells_raw":0,"read":"whole","date_system":"1900"}

{"sheet":"Contents","index":0,"n_rows":0,"n_cols":0,"rows_kept":0,"cut":false,"hidden":false,"merged":[]}

{"sheet":"Availibility Analysis","index":1,"n_rows":10029,"n_cols":20,"rows_kept":4500,"cut":true,"hidden":false,"merged":[],"bounds":{"rows_first":2000,"rows_last":500,"rows_between":2000,"halvings":0}}
[]
["Analysis for Refinery",null,null,null,null,null,null,null,null,"Analysis for System"]
[null,null,"Size of Unit ",null,"MW",50,100,{"$f":"500/3","v":166.66666666666666},null,"Size of Unit ",null,null,"MW",{"$f":"F3","v":50},{"$f":"G3","v":100},166.66666666666666]
[null,null,"Cost of unit per kW",null,"USD/kW",1200,1000,800,null,"Cost of unit per kW",null,null,"USD/kW",{"$f":"F4","v":1200},1000,800]
[]
[]
[null,null,"Required MW for Refinery",null,null,220,{"$f":"F7","v":220},{"$f":"G7","v":220},null,"Capacity for Residents",null,null,"MW",500,500,500]
[null,null,"Cost of Hour Out for Refinery",null,null,500000,{"$f":"F8","v":500000},{"$f":"G8","v":500000},null,"Cost/MWH for Outage",null,null,"$/MWH",50,{"$f":"N8","v":50},{"$f":"O8","v":50}]
[null,null,"Carrying Charge Rate",null,null,0.1,0.1,0.1,null,"Carrying Charge Rate",null,null,"%",0.1,{"$f":"N9","v":0.1},{"$f":"O9","v":0.1}]
[null,null,"Capacity  ",null,"MW",500,500,500]
[null,null,"Capacity Cost",null,"USD/kW-yr",{"$f":"F4*$F$9","v":120},{"$f":"G4*$F$9","v":100},{"$f":"H4*$F$9","v":80},null,"Capacity Cost",null,null,"$/kW/yr",{"$f":"N4*N9","v":120},{"$f":"O4*O9","v":100},80]
[null,null,"Capacity Factor",null,"%",{"$f":"F7/$F$10","v":0.44},{"$f":"G7/$F$10","v":0.44},0.44,null,"Capacty Factor",null,null,"%",0.8,0.8,0.8]
[null,null,"Hours Run",null,null,{"$f":"F12*8760","v":3854.4},{"$f":"G12*8760","v":3854.4},3854.4]
[null,null,"Capacity Charge",null,"USD/MWH",{"$f":"F11*1000/(8760*F12)","v":31.133250311332503},{"$f":"G11*1000/(8760*G12)","v":25.944375259443753},20.755500207555002,null,"Availability",null,null,"%",0.96,0.93,0.9]
[null,null,"Probability of Outage",null,"%",{"$f":"SUMIF(Q30:Q40,\"<=\"&F7,S30:S40)","v":0},{"$f":"SUMIF(Q43:Q48,\"<=\"&G7,S43:S48)","v":3.2000000000000002E-3},{"$f":"SUMIF(Q51:Q54,\"<=\"&H7,S51:S54)","v":1.9799999999999998E-2},null,"Hours Outage",null,null,"Hrs",{"$f":"(1-N14)*8760","v":350.40000000000032},{"$f":"(1-O14)*8760","v":613.19999999999959},875.99999999999977]
[null,null,"Total Outage Hours",null,null,{"$f":"F15*8760","v":0},{"$f":"G15*8760","v":28.032},173.44799999999998,null,"MWH Out",null,null,null,{"$f":"N15*N7","v":175200.00000000015},{"$f":"O15*O7","v":306599.99999999977},437999.99999999988]
[]
[null,null,"Captial Cost",null,"USD",{"$f":"F11*F10*1000","v":60000000},{"$f":"G11*G10*1000","v":50000000},40000000,null,"Total Capital Cost",null,null,"USD",{"$f":"N11*N7*1000","v":60000000},{"$f":"O11*O7*1000","v":50000000},40000000]
[null,null,"Outage Cost",null,"USD",{"$f":"F16*F8","v":0},{"$f":"G16*G8","v":14016000},86723999.999999985,null,"Outage Cost",null,null,"USD",{"$f":"N16*N8","v":8760000.0000000075},{"$f":"O16*O8","v":15329999.999999989},21899999.999999993]
[null,null,"Total Cost",null,"USD",{"$f":"SUM(F18:F19)","v":60000000},{"$f":"SUM(G18:G19)","v":64016000},126723999.99999999,null,"Total Cost",null,null,"USD",{"$f":"N18+N19","v":68760000},{"$f":"O18+O19","v":65329999.999999985},61899999.999999993]
[]
[null,null,null,null,null,1,2]
[null,null,"Availbility ",null,1,0.92,0.95]
[]
[null,null,null,null,null,null,null,null,null,null,{"$f":"AVERAGE(K30:K3029)","v":460.55},{"$f":"AVERAGE(L30:L3029)","v":460.6},460.11111111111046,null,null,null,"Monte Carlo Results"]
[]
[]
[null,null,"Senario 1","Capacity ","Availibity ","Net Capacity ","Random ","Plant in","Availiable Capacity "]
[null,null,"Unit1",50,{"$f":"1-CHOOSE($E$23,$F$23,$G$23)","v":7.999999999999996E-2},{"$f":"D29*E29","v":3.9999999999999982},{"$f":"RAND()","v":0.87537630077116835},{"$f":"G29>=E29","v":true},{"$f":"H29*D29","v":50},null,null,null,null,null,null,null,null,"Frequency ","Probability ","cost"]
[null,null,"Unit2",50,7.999999999999996E-2,{"$f":"D30*E30","v":3.9999999999999982},{"$f":"RAND()","v":0.73438388096726215},{"$f":"G30>=E30","v":true},{"$f":"H30*D30","v":50},null,400,400,500,null,null,null,500,{"$f":"COUNTIF(K:K,Q30)","v":4372},{"$f":"R30/SUM($R$30:$R$40)","v":0.43719999999999998}]
[null,null,"Unit3",50,7.999999999999996E-2,3.9999999999999982,0.16971051817742056,true,50,null,450,500,333.33333333333331,null,null,null,450,3793,0.37930000000000003]
[null,null,"Unit4",50,7.999999999999996E-2,3.9999999999999982,0.54259768273921116,true,50,null,450,500,500,null,null,null,400,1486,0.14860000000000001]
[null,null,"Unit5",50,7.999999999999996E-2,3.9999999999999982,0.5841360245563163,true,50,null,500,400,500,null,null,null,350,303,3.0300000000000001E-2]
[null,null,"Unit6",50,7.999999999999996E-2,3.9999999999999982,0.37993608144298119,true,50,null,450,500,500,null,null,null,300,41,4.1000000000000003E-3]
[null,null,"Unit7",50,7.999999999999996E-2,3.9999999999999982,9.2830977819677973E-2,true,50,null,450,500,500,null,null,null,250,5,5.0000000000000001E-4]
[null,null,"Unit8",50,7.999999999999996E-2,3.9999999999999982,0.99784208800937135,true,50,null,450,500,500,null,null,null,200,0,0]
[null,null,"Unit9",50,7.999999999999996E-2,3.9999999999999982,0.47377790550888443,true,50,null,400,400,500,null,null,null,150,0,0]
[null,null,"Unit10",50,7.999999999999996E-2,3.9999999999999982,0.62628444616882895,true,50,null,450,500,333.33333333333331,null,null,null,100,0,0]
[null,null,null,null,null,null,null,null,{"$f":"SUM(I29:I38)","v":500},null,500,300,500,null,null,null,50,0,0]
[null,null,null,null,null,null,null,null,null,null,500,500,333.33333333333331,null,null,null,0,0,0]
[null,null,null,null,null,null,null,null,null,null,450,500,500]
[null,null,null,null,null,null,null,null,null,null,500,400,500,null,null,null,null,"Frequency ","Probability "]
[null,null,null,null,null,null,null,null,null,null,450,500,500,null,null,null,500,{"$f":"COUNTIF(L:L,Q43)","v":6557},{"$f":"R43/SUM($R$43:$R$48)","v":0.65569999999999995}]
[null,null,"Senario 2","Capacity ","Availibity ","Net Capacity ","Random ","Plant in","Availiable Capacity ",null,450,500,333.33333333333331,{"$f":"MIN(L:L)","v":200},null,null,{"$f":"Q43-100","v":400},2918,0.2918]
[null,null,"Unit1",100,{"$f":"1-CHOOSE($E$23,$F$23,$G$23)","v":7.999999999999996E-2},{"$f":"D45*E45","v":7.9999999999999964},{"$f":"RAND()","v":3.6844082314986037E-2},{"$f":"G45>=E45","v":false},{"$f":"H45*D45","v":0},null,500,400,500,{"$f":"MIN(M:M)","v":0},null,null,{"$f":"Q44-100","v":300},493,4.9299999999999997E-2]
[null,null,"Unit2",100,7.999999999999996E-2,{"$f":"D46*E46","v":7.9999999999999964},{"$f":"RAND()","v":0.60282032402175223},{"$f":"G46>=E46","v":true},{"$f":"H46*D46","v":100},null,400,400,500,null,null,null,200,32,3.2000000000000002E-3]
[null,null,"Unit3",100,7.999999999999996E-2,7.9999999999999964,0.34723393954929249,true,100,null,400,400,333.33333333333331,null,null,null,100,0,0]
[null,null,"Unit4",100,7.999999999999996E-2,7.9999999999999964,0.71498860638768014,true,100,null,450,400,500,null,null,null,0,0,0]
[null,null,"Unit5",100,7.999999999999996E-2,7.9999999999999964,0.43850590538196543,true,100,null,400,500,500]
[null,null,"Unit6",0,7.999999999999996E-2,0,0.37581299746555674,true,0,null,500,400,500,null,null,null,null,"Frequency ","Probability "]
[null,null,"Unit7",0,7.999999999999996E-2,0,0.10868859947511211,true,0,null,450,400,500,null,null,null,500,{"$f":"COUNTIF(M:M,Q51)","v":7830},{"$f":"R51/SUM($R$51:$R$54)","v":0.78300000000000003}]
[null,null,"Unit8",0,7.999999999999996E-2,0,0.70925931983429269,true,0,null,400,500,500,null,null,null,{"$f":"Q51-D61","v":333.33333333333337},{"$f":"COUNTIF(M:M,Q52)","v":1972},{"$f":"R52/SUM($R$51:$R$54)","v":0.19719999999999999}]
[null,null,"Unit9",0,7.999999999999996E-2,0,0.65697545001226931,true,0,null,400,400,500,null,null,null,{"$f":"Q52-D62","v":166.66666666666671},{"$f":"COUNTIF(M:M,Q53)","v":196},{"$f":"R53/SUM($R$51:$R$54)","v":1.9599999999999999E-2}]
[null,null,"Unit10",0,7.999999999999996E-2,0,0.49002694277641823,true,0,null,400,400,333.33333333333331,null,null,null,{"$f":"Q53-D63","v":0},{"$f":"COUNTIF(M:M,Q54)","v":2},{"$f":"R54/SUM($R$51:$R$54)","v":2.0000000000000001E-4}]
[null,null,null,null,null,null,null,null,{"$f":"SUM(I45:I54)","v":400},null,400,500,333.33333333333331]
[null,null,null,null,null,null,null,null,null,null,500,400,500]
[null,null,null,null,null,null,null,null,null,null,400,400,500]
[null,null,null,null,null,null,null,null,null,null,400,500,500]
[null,null,null,null,null,null,null,null,null,null,500,500,500]
[null,null,"Senario 3","Capacity ","Availibity ","Net Capacity ","Random ","Plant in","Availiable Capacity ",null,450,200,500]
[null,null,"Unit1",{"$f":"500/3","v":166.66666666666666},{"$f":"1-CHOOSE($E$23,$F$23,$G$23)","v":7.999999999999996E-2},{"$f":"D61*E61","v":13.333333333333325},{"$f":"RAND()","v":0.42812841319182293},{"$f":"G61>=E61","v":true},{"$f":"H61*D61","v":166.66666666666666},null,500,400,500]
[null,null,"Unit2",{"$f":"500/3","v":166.66666666666666},7.999999999999996E-2,{"$f":"D62*E62","v":13.333333333333325},{"$f":"RAND()","v":0.8332358453780867},{"$f":"G62>=E62","v":true},{"$f":"H62*D62","v":166.66666666666666},null,450,400,500]
[null,null,"Unit3",166.66666666666666,7.999999999999996E-2,13.333333333333325,9.0581017276344378E-3,false,0,null,500,500,500]
[null,null,"Unit4",0,7.999999999999996E-2,0,0.36390525555966036,true,0,null,500,500,500]
[null,null,"Unit5",0,7.999999999999996E-2,0,0.8592012101813713,true,0,null,500,400,500]
[null,null,"Unit6",0,7.999999999999996E-2,0,0.82978196170724339,true,0,null,500,500,333.33333333333331]
[null,null,"Unit7",0,7.999999999999996E-2,0,0.23211821221861029,true,0,null,500,500,500]
[null,null,"Unit8",0,7.999999999999996E-2,0,0.34577499499066888,true,0,null,400,500,500]
[null,null,"Unit9",0,7.999999999999996E-2,0,0.2013528257401429,true,0,null,500,400,333.33333333333331]
[null,null,"Unit10",0,7.999999999999996E-2,0,0.83696249525445199,true,0,null,450,400,500]
[null,null,null,null,null,null,null,null,{"$f":"SUM(I61:I70)","v":333.33333333333331},null,450,500,500]
[null,null,null,null,null,null,null,null,null,null,400,500,500]
[null,null,null,null,null,null,null,null,null,null,400,500,500]
[null,null,null,null,null,null,null,null,null,null,500,500,500]
[null,null,null,null,null,null,null,null,null,null,500,400,500]
[null,null,null,null,null,null,null,null,null,null,500,500,500]
[null,null,null,null,null,null,null,null,null,null,500,500,333.33333333333331]
[null,null,null,null,null,null,null,null,null,null,400,400,500]
[null,null,null,null,null,null,null,null,null,null,500,500,166.66666666666666]
[null,null,null,null,null,null,null,null,null,null,400,400,500]
[null,null,null,null,null,null,null,null,null,null,450,500,333.33333333333331]
[null,null,null,null,null,null,null,null,null,null,450,300,500]
[null,null,null,null,null,null,null,null,null,null,400,500,333.33333333333331]
[null,null,null,null,null,null,null,null,null,null,450,500,500]
[null,null,null,null,null,null,null,null,null,null,500,500,500]
[null,null,null,null,null,null,null,null,null,null,450,400,500]
[null,null,null,null,null,null,null,null,null,null,450,500,500]
[null,null,null,null,null,null,null,null,null,null,450,400,500]
[null,null,null,null,null,null,null,null,null,null,450,400,500]
[null,null,null,null,null,null,null,null,null,null,450,400,500]
[null,null,null,null,null,null,null,null,null,null,400,500,500]
[null,null,null,null,null,null,null,null,null,null,450,400,166.66666666666666]
[null,null,null,null,null,null,null,null,null,null,450,400,500]
[null,null,null,null,null,null,null,null,null,null,350,500,333.33333333333331]
[null,null,null,null,null,null,null,null,null,null,400,500,333.33333333333331]
[null,null,null,null,null,null,null,null,null,null,450,500,500]
[null,null,null,null,null,null,null,null,null,null,450,500,500]
[null,null,null,null,null,null,null,null,null,null,450,500,500]
[null,null,null,null,null,null,null,null,null,null,500,500,500]
[null,null,null,null,null,null,null,null,null,null,400,500,500]
[null,null,null,null,null,null,null,null,null,null,450,500,500]
[null,null,null,null,null,null,null,null,null,null,500,500,333.33333333333331]
[null,null,null,null,null,null,null,null,null,null,450,500,500]
[null,null,null,null,null,null,null,null,null,null,450,500,500]
[null,null,null,null,null,null,null,null,null,null,500,500,166.66666666666666]
[null,null,null,null,null,null,null,null,null,null,450,500,500]
[null,null,null,null,null,null,null,null,null,null,450,500,500]
[null,null,null,null,null,null,null,null,null,null,500,500,500]
[null,null,null,null,null,null,null,null,null,null,400,500,500]
[null,null,null,null,null,null,null,null,null,null,500,400,333.33333333333331]
[null,null,null,null,null,null,null,null,null,null,500,500,500]
[null,null,null,null,null,null,null,null,null,null,400,500,333.33333333333331]
[null,null,null,null,null,null,null,null,null,null,400,500,500]
[null,null,null,null,null,null,null,null,null,null,450,500,500]
[null,null,null,null,null,null,null,null,null,null,500,500,500]
[null,null,null,null,null,null,null,null,null,null,350,400,500]
[null,null,null,null,null,null,null,null,null,null,500,400,333.33333333333331]
[null,null,null,null,null,null,null,null,null,null,500,500,333.33333333333331]
[null,null,null,null,null,null,null,null,null,null,450,400,500]
[null,null,null,null,null,null,null,null,null,null,500,500,500]
[null,null,null,null,null,null,null,null,null,null,500,400,500]
[null,null,null,null,null,null,null,null,null,null,450,500,500]
[null,null,null,null,null,null,null,null,null,null,500,400,500]
[null,null,null,null,null,null,null,null,null,null,350,300,333.33333333333331]
[null,null,null,null,null,null,null,null,null,null,400,500,500]
[null,null,null,null,null,null,null,null,null,null,500,500,333.33333333333331]
[null,null,null,null,null,null,null,null,null,null,450,500,333.33333333333331]
[null,null,null,null,null,null,null,null,null,null,500,500,500]
[null,null,null,null,null,null,null,null,null,null,450,500,500]
[null,null,null,null,null,null,null,null,null,null,400,500,166.66666666666666]
[null,null,null,null,null,null,null,null,null,null,450,500,500]
[null,null,null,null,null,null,null,null,null,null,500,500,333.33333333333331]
[null,null,null,null,null,null,null,null,null,null,500,400,500]
[null,null,null,null,null,null,null,null,null,null,450,500,166.66666666666666]
[null,null,null,null,null,null,null,null,null,null,500,500,500]
[null,null,null,null,null,null,null,null,null,null,450,500,333.33333333333331]
[null,null,null,null,null,null,null,null,null,null,500,400,500]
[null,null,null,null,null,null,null,null,null,null,450,500,333.33333333333331]
[null,null,null,null,null,null,null,null,null,null,350,400,333.33333333333331]
[null,null,null,null,null,null,null,null,null,null,450,500,500]
[null,null,null,null,null,null,null,null,null,null,450,400,500]
[null,null,null,null,null,null,null,null,null,null,400,300,500]
[null,null,null,null,null,null,null,null,null,null,400,500,500]
[null,null,null,null,null,null,null,null,null,null,450,400,500]
[null,null,null,null,null,null,null,null,null,null,500,500,500]
[null,null,null,null,null,null,null,null,null,null,500,500,500]
[null,null,null,null,null,null,null,null,null,null,400,400,500]
[null,null,null,null,null,null,null,null,null,null,450,500,500]
[null,null,null,null,null,null,null,null,null,null,400,400,500]
[null,null,null,null,null,null,null,null,null,null,450,400,166.66666666666666]
[null,null,null,null,null,null,null,null,null,null,500,500,500]
[null,null,null,null,null,null,null,null,null,null,500,500,500]
[null,null,null,null,null,null,null,null,null,null,500,500,500]
[null,null,null,null,null,null,null,null,null,null,350,400,500]
[null,null,null,null,null,null,null,null,null,null,450,500,500]
[null,null,null,null,null,null,null,null,null,null,450,500,500]
[null,null,null,null,null,null,null,null,null,null,400,400,500]
[null,null,null,null,null,null,null,null,null,null,500,500,333.33333333333331]
[null,null,null,null,null,null,null,null,null,null,400,400,500]
[null,null,null,null,null,null,null,null,null,null,400,500,333.33333333333331]
[null,null,null,null,null,null,null,null,null,null,500,400,500]
[null,null,null,null,null,null,null,null,null,null,500,500,500]
[null,null,null,null,null,null,null,null,null,null,500,500,500]
[null,null,null,null,null,null,null,null,null,null,500,500,500]
[null,null,null,null,null,null,null,null,null,null,500,300,500]
[null,null,null,null,null,null,null,null,null,null,450,500,500]
[null,null,null,null,null,null,null,null,null,null,450,500,500]
[null,null,null,null,null,null,null,null,null,null,450,500,500]
[null,null,null,null,null,null,null,null,null,null,400,400,500]
[null,null,null,null,null,null,null,null,null,null,500,500,500]
[null,null,null,null,null,null,null,null,null,null,400,500,333.33333333333331]
[null,null,null,null,null,null,null,null,null,null,500,400,500]
[null,null,null,null,null,null,null,null,null,null,450,400,166.66666666666666]
[null,null,null,null,null,null,null,null,null,null,450,300,333.33333333333331]
[null,null,null,null,null,null,null,null,null,null,450,400,333.33333333333331]
[null,null,null,null,null,null,null,null,null,null,500,400,500]
[null,null,null,null,null,null,null,null,null,null,400,500,333.33333333333331]
[null,null,null,null,null,null,null,null,null,null,450,500,500]
[null,null,null,null,null,null,null,null,null,null,500,500,333.33333333333331]
[null,null,null,null,null,null,null,null,null,null,450,500,500]
[null,null,null,null,null,null,null,null,null,null,450,400,500]
[null,null,null,null,null,null,null,null,null,null,450,500,500]
[null,null,null,null,null,null,null,null,null,null,500,500,333.33333333333331]
[null,null,null,null,null,null,null,null,null,null,400,400,500]
[null,null,null,null,null,null,null,null,null,null,350,500,333.33333333333331]
[null,null,null,null,null,null,null,null,null,null,450,500,500]
[null,null,null,null,null,null,null,null,null,null,500,500,500]
[null,null,null,null,null,null,null,null,null,null,400,500,500]
[null,null,null,null,null,null,null,null,null,null,500,500,500]
[null,null,null,null,null,null,null,null,null,null,500,400,500]
[null,null,null,null,null,null,null,null,null,null,500,500,333.33333333333331]
[null,null,null,null,null,null,null,null,null,null,400,500,333.33333333333331]
[null,null,null,null,null,null,null,null,null,null,500,500,500]
[null,null,null,null,null,null,null,null,null,null,450,400,500]
[null,null,null,null,null,null,null,null,null,null,500,500,500]
[null,null,null,null,null,null,null,null,null,null,450,500,500]
[null,null,null,null,null,null,null,null,null,null,450,500,500]
[null,null,null,null,null,null,null,null,null,null,400,500,333.33333333333331]
[null,null,null,null,null,null,null,null,null,null,500,400,500]
[null,null,null,null,null,null,null,null,null,null,400,400,500]
[null,null,null,null,null,null,null,null,null,null,500,500,500]
[null,null,null,null,null,null,null,null,null,null,400,500,500]
[null,null,null,null,null,null,null,null,null,null,500,500,333.33333333333331]
[null,null,null,null,null,null,null,null,null,null,350,500,500]
[null,null,null,null,null,null,null,null,null,null,450,500,500]
[null,null,null,null,null,null,null,null,null,null,500,400,500]
[null,null,null,null,null,null,null,null,null,null,450,400,333.33333333333331]
[null,null,null,null,null,null,null,null,null,null,400,300,500]
[null,null,null,null,null,null,null,null,null,null,500,500,500]
[null,null,null,null,null,null,null,null,null,null,450,500,500]
[null,null,null,null,null,null,null,null,null,null,500,400,500]
[null,null,null,null,null,null,null,null,null,null,400,500,500]
[null,null,null,null,null,null,null,null,null,null,500,500,500]
[null,null,null,null,null,null,null,null,null,null,450,500,500]
[null,null,null,null,null,null,null,null,null,null,500,500,500]
[null,null,null,null,null,null,null,null,null,null,500,500,333.33333333333331]
[null,null,null,null,null,null,null,null,null,null,450,400,333.33333333333331]
[null,null,null,null,null,null,null,null,null,null,450,400,500]
[null,null,null,null,null,null,null,null,null,null,450,500,500]
[null,null,null,null,null,null,null,null,null,null,500,500,500]
[null,null,null,null,null,null,null,null,null,null,450,500,333.33333333333331]
[null,null,null,null,null,null,null,null,null,null,500,400,500]
[null,null,null,null,null,null,null,null,null,null,450,400,333.33333333333331]
[null,null,null,null,null,null,null,null,null,null,450,500,500]
[null,null,null,null,null,null,null,null,null,null,450,500,500]
[null,null,null,null,null,null,null,null,null,null,500,500,500]
[null,null,null,null,null,null,null,null,null,null,450,400,500]
[null,null,null,null,null,null,null,null,null,null,500,500,500]
[null,null,null,null,null,null,null,null,null,null,500,500,500]
[null,null,null,null,null,null,null,null,null,null,500,500,500]
[null,null,null,null,null,null,null,null,null,null,350,300,500]
[null,null,null,null,null,null,null,null,null,null,450,400,500]
[null,null,null,null,null,null,null,null,null,null,500,400,500]
[null,null,null,null,null,null,null,null,null,null,500,400,333.33333333333331]
[null,null,null,null,null,null,null,null,null,null,450,500,500]
[null,null,null,null,null,null,null,null,null,null,450,400,333.33333333333331]
[null,null,null,null,null,null,null,null,null,null,500,500,500]
[null,null,null,null,null,null,null,null,null,null,500,500,333.33333333333331]
[null,null,null,null,null,null,null,null,null,null,500,500,500]
[null,null,null,null,null,null,null,null,null,null,500,400,500]
[null,null,null,null,null,null,null,null,null,null,400,500,500]
[null,null,null,null,null,null,null,null,null,null,500,500,500]
[null,null,null,null,null,null,null,null,null,null,500,400,333.33333333333331]
[null,null,null,null,null,null,null,null,null,null,450,400,166.66666666666666]
[null,null,null,null,null,null,null,null,null,null,500,500,500]
[null,null,null,null,null,null,null,null,null,null,400,400,333.33333333333331]
[null,null,null,null,null,null,null,null,null,null,450,500,333.33333333333331]
[null,null,null,null,null,null,null,null,null,null,500,400,500]
[null,null,null,null,null,null,null,null,null,null,400,500,500]
[null,null,null,null,null,null,null,null,null,null,450,400,333.33333333333331]
[null,null,null,null,null,null,null,null,null,null,500,500,500]
[null,null,null,null,null,null,null,null,null,null,500,500,500]
[null,null,null,null,null,null,null,null,null,null,450,500,500]
[null,null,null,null,null,null,null,null,null,null,500,500,500]
[null,null,null,null,null,null,null,null,null,null,500,500,500]
[null,null,null,null,null,null,null,null,null,null,400,400,500]
[null,null,null,null,null,null,null,null,null,null,450,400,500]
[null,null,null,null,null,null,null,null,null,null,500,500,500]
[null,null,null,null,null,null,null,null,null,null,450,500,500]
[null,null,null,null,null,null,null,null,null,null,450,500,500]
[null,null,null,null,null,null,null,null,null,null,500,400,500]
[null,null,null,null,null,null,null,null,null,null,450,500,333.33333333333331]
[null,null,null,null,null,null,null,null,null,null,400,400,500]
[null,null,null,null,null,null,null,null,null,null,500,500,500]
[null,null,null,null,null,null,null,null,null,null,500,400,500]
[null,null,null,null,null,null,null,null,null,null,450,300,500]
[null,null,null,null,null,null,null,null,null,null,450,500,500]
[null,null,null,null,null,null,null,null,null,null,450,500,500]
[null,null,null,null,null,null,null,null,null,null,450,500,500]
[null,null,null,null,null,null,null,null,null,null,350,400,500]
[null,null,null,null,null,null,null,null,null,null,450,500,500]
[null,null,null,null,null,null,null,null,null,null,500,500,500]
[null,null,null,null,null,null,null,null,null,null,450,500,500]
[null,null,null,null,null,null,null,null,null,null,350,500,500]
[null,null,null,null,null,null,null,null,null,null,450,500,500]
[null,null,null,null,null,null,null,null,null,null,500,500,500]
[null,null,null,null,null,null,null,null,null,null,450,400,500]
[null,null,null,null,null,null,null,null,null,null,450,500,500]
[null,null,null,null,null,null,null,null,null,null,500,400,333.33333333333331]
[null,null,null,null,null,null,null,null,null,null,450,500,500]
[null,null,null,null,null,null,null,null,null,null,500,300,333.33333333333331]
[null,null,null,null,null,null,null,null,null,null,450,500,500]
[null,null,null,null,null,null,null,null,null,null,450,400,500]
[null,null,null,null,null,null,null,null,null,null,450,500,500]
[null,null,null,null,null,null,null,null,null,null,500,400,333.33333333333331]
[null,null,null,null,null,null,null,null,null,null,400,500,500]
[null,null,null,null,null,null,null,null,null,null,500,400,500]
[null,null,null,null,null,null,null,null,null,null,500,500,500]
[null,null,null,null,null,null,null,null,null,null,400,400,500]
[null,null,null,null,null,null,null,null,null,null,500,500,333.33333333333331]
[null,null,null,null,null,null,null,null,null,null,500,400,500]
[null,null,null,null,null,null,null,null,null,null,500,500,500]
[null,null,null,null,null,null,null,null,null,null,450,400,500]
[null,null,null,null,null,null,null,null,null,null,450,500,500]
[null,null,null,null,null,null,null,null,null,null,500,400,500]
[null,null,null,null,null,null,null,null,null,null,450,500,500]
[null,null,null,null,null,null,null,null,null,null,500,500,500]
[null,null,null,null,null,null,null,null,null,null,450,500,500]
[null,null,null,null,null,null,null,null,null,null,450,400,500]
[null,null,null,null,null,null,null,null,null,null,450,500,500]
[null,null,null,null,null,null,null,null,null,null,450,500,500]
[null,null,null,null,null,null,null,null,null,null,500,500,500]
[null,null,null,null,null,null,null,null,null,null,500,500,500]
[null,null,null,null,null,null,null,null,null,null,450,500,500]
[null,null,null,null,null,null,null,null,null,null,500,500,500]
[null,null,null,null,null,null,null,null,null,null,500,400,500]
[null,null,null,null,null,null,null,null,null,null,450,500,500]
[null,null,null,null,null,null,null,null,null,null,450,500,500]
[null,null,null,null,null,null,null,null,null,null,500,500,500]
[null,null,null,null,null,null,null,null,null,null,500,400,333.33333333333331]
[null,null,null,null,null,null,null,null,null,null,450,500,500]
[null,null,null,null,null,null,null,null,null,null,450,400,500]
[null,null,null,null,null,null,null,null,null,null,500,500,500]
[null,null,null,null,null,null,null,null,null,null,450,500,500]
[null,null,null,null,null,null,null,null,null,null,450,500,333.33333333333331]
[null,null,null,null,null,null,null,null,null,null,500,400,500]
[null,null,null,null,null,null,null,null,null,null,450,400,500]
[null,null,null,null,null,null,null,null,null,null,450,400,500]
[null,null,null,null,null,null,null,null,null,null,450,500,500]
[null,null,null,null,null,null,null,null,null,null,450,400,500]
[null,null,null,null,null,null,null,null,null,null,400,500,500]
[null,null,null,null,null,null,null,null,null,null,500,500,500]
[null,null,null,null,null,null,null,null,null,null,450,300,500]
[null,null,null,null,null,null,null,null,null,null,400,500,500]
[null,null,null,null,null,null,null,null,null,null,450,500,500]
[null,null,null,null,null,null,null,null,null,null,400,500,500]
[null,null,null,null,null,null,null,null,null,null,450,500,500]
[null,null,null,null,null,null,null,null,null,null,500,500,500]
[null,null,null,null,null,null,null,null,null,null,500,400,500]
[null,null,null,null,null,null,null,null,null,null,450,500,500]
[null,null,null,null,null,null,null,null,null,null,500,400,333.33333333333331]
[null,null,null,null,null,null,null,null,null,null,450,500,500]
[null,null,null,null,null,null,null,null,null,null,500,500,500]
[null,null,null,null,null,null,null,null,null,null,400,500,500]
[null,null,null,null,null,null,null,null,null,null,500,500,333.33333333333331]
[null,null,null,null,null,null,null,null,null,null,500,500,500]
[null,null,null,null,null,null,null,null,null,null,450,500,500]
[null,null,null,null,null,null,null,null,null,null,500,400,500]
[null,null,null,null,null,null,null,null,null,null,500,400,500]
[null,null,null,null,null,null,null,null,null,null,450,400,500]
[null,null,null,null,null,null,null,null,null,null,450,500,500]
[null,null,null,null,null,null,null,null,null,null,500,300,500]
[null,null,null,null,null,null,null,null,null,null,500,500,500]
[null,null,null,null,null,null,null,null,null,null,400,500,500]
[null,null,null,null,null,null,null,null,null,null,500,500,333.33333333333331]
[null,null,null,null,null,null,null,null,null,null,450,500,500]
[null,null,null,null,null,null,null,null,null,null,450,400,500]
[null,null,null,null,null,null,null,null,null,null,500,400,500]
[null,null,null,null,null,null,null,null,null,null,500,400,500]
[null,null,null,null,null,null,null,null,null,null,350,500,500]
[null,null,null,null,null,null,null,null,null,null,450,500,500]
[null,null,null,null,null,null,null,null,null,null,500,500,166.66666666666666]
[null,null,null,null,null,null,null,null,null,null,400,400,333.33333333333331]
[null,null,null,null,null,null,null,null,null,null,400,500,500]
[null,null,null,null,null,null,null,null,null,null,400,500,500]
[null,null,null,null,null,null,null,null,null,null,500,500,333.33333333333331]
[null,null,null,null,null,null,null,null,null,null,400,500,500]
[null,null,null,null,null,null,null,null,null,null,400,500,500]
[null,null,null,null,null,null,null,null,null,null,450,400,500]
[null,null,null,null,null,null,null,null,null,null,450,400,166.66666666666666]
[null,null,null,null,null,null,null,null,null,null,500,500,500]
[null,null,null,null,null,null,null,null,null,null,450,500,500]
[null,null,null,null,null,null,null,null,null,null,500,400,500]
[null,null,null,null,null,null,null,null,null,null,450,500,333.33333333333331]
[null,null,null,null,null,null,null,null,null,null,500,500,500]
[null,null,null,null,null,null,null,null,null,null,450,400,500]
[null,null,null,null,null,null,null,null,null,null,450,500,500]
[null,null,null,null,null,null,null,null,null,null,350,500,500]
[null,null,null,null,null,null,null,null,null,null,400,500,500]
[null,null,null,null,null,null,null,null,null,null,500,400,500]
[null,null,null,null,null,null,null,null,null,null,450,500,500]
[null,null,null,null,null,null,null,null,null,null,450,500,500]
[null,null,null,null,null,null,null,null,null,null,450,300,500]
[null,null,null,null,null,null,null,null,null,null,450,500,333.33333333333331]
[null,null,null,null,null,null,null,null,null,null,400,300,500]
[null,null,null,null,null,null,null,null,null,null,350,500,500]
[null,null,null,null,null,null,null,null,null,null,500,500,333.33333333333331]
[null,null,null,null,null,null,null,null,null,null,500,500,500]
[null,null,null,null,null,null,null,null,null,null,400,500,333.33333333333331]
[null,null,null,null,null,null,null,null,null,null,500,500,500]
[null,null,null,null,null,null,null,null,null,null,500,500,500]
[null,null,null,null,null,null,null,null,null,null,500,500,500]
[null,null,null,null,null,null,null,null,null,null,300,400,500]
[null,null,null,null,null,null,null,null,null,null,500,400,500]
[null,null,null,null,null,null,null,null,null,null,500,400,500]
[null,null,null,null,null,null,null,null,null,null,450,400,500]
[null,null,null,null,null,null,null,null,null,null,400,500,500]
[null,null,null,null,null,null,null,null,null,null,450,400,500]
[null,null,null,null,null,null,null,null,null,null,450,400,500]
[null,null,null,null,null,null,null,null,null,null,450,500,500]
[null,null,null,null,null,null,null,null,null,null,450,400,500]
[null,null,null,null,null,null,null,null,null,null,500,500,333.33333333333331]
[null,null,null,null,null,null,null,null,null,null,450,500,500]
[null,null,null,null,null,null,null,null,null,null,450,500,500]
[null,null,null,null,null,null,null,null,null,null,500,400,500]
[null,null,null,null,null,null,null,null,null,null,500,500,500]
[null,null,null,null,null,null,null,null,null,null,450,400,500]
[null,null,null,null,null,null,null,null,null,null,500,500,500]
[null,null,null,null,null,null,null,null,null,null,400,400,500]
[null,null,null,null,null,null,null,null,null,null,400,500,333.33333333333331]
[null,null,null,null,null,null,null,null,null,null,450,500,500]
[null,null,null,null,null,null,null,null,null,null,350,500,500]
[null,null,null,null,null,null,null,null,null,null,500,400,500]
[null,null,null,null,null,null,null,null,null,null,450,400,500]
[null,null,null,null,null,null,null,null,null,null,450,500,500]
[null,null,null,null,null,null,null,null,null,null,450,500,500]
[null,null,null,null,null,null,null,null,null,null,500,400,500]
[null,null,null,null,null,null,null,null,null,null,500,500,333.33333333333331]
[null,null,null,null,null,null,null,null,null,null,500,500,500]
[null,null,null,null,null,null,null,null,null,null,500,400,500]
[null,null,null,null,null,null,null,null,null,null,500,300,500]
[null,null,null,null,null,null,null,null,null,null,500,500,500]
[null,null,null,null,null,null,null,null,null,null,400,400,500]
[null,null,null,null,null,null,null,null,null,null,500,500,500]
[null,null,null,null,null,null,null,null,null,null,500,500,333.33333333333331]
[null,null,null,null,null,null,null,null,null,null,400,400,500]
[null,null,null,null,null,null,null,null,null,null,350,500,333.33333333333331]
[null,null,null,null,null,null,null,null,null,null,500,500,333.33333333333331]
[null,null,null,null,null,null,null,null,null,null,450,500,500]
[null,null,null,null,null,null,null,null,null,null,450,500,333.33333333333331]
[null,null,null,null,null,null,null,null,null,null,300,500,333.33333333333331]
[null,null,null,null,null,null,null,null,null,null,450,500,333.33333333333331]
[null,null,null,null,null,null,null,null,null,null,450,300,500]
[null,null,null,null,null,null,null,null,null,null,450,500,500]
[null,null,null,null,null,null,null,null,null,null,450,400,333.33333333333331]
[null,null,null,null,null,null,null,null,null,null,500,500,500]
[null,null,null,null,null,null,null,null,null,null,450,400,500]
[null,null,null,null,null,null,null,null,null,null,450,500,500]
[null,null,null,null,null,null,null,null,null,null,400,400,500]
[null,null,null,null,null,null,null,null,null,null,500,500,500]
[null,null,null,null,null,null,null,null,null,null,500,500,333.33333333333331]
[null,null,null,null,null,null,null,null,null,null,500,500,500]
[null,null,null,null,null,null,null,null,null,null,450,400,333.33333333333331]
[null,null,null,null,null,null,null,null,null,null,500,500,500]
[null,null,null,null,null,null,null,null,null,null,500,500,500]
[null,null,null,null,null,null,null,null,null,null,500,500,333.33333333333331]
[null,null,null,null,null,null,null,null,null,null,450,400,500]
[null,null,null,null,null,null,null,null,null,null,500,400,500]
[null,null,null,null,null,null,null,null,null,null,450,400,500]
[null,null,null,null,null,null,null,null,null,null,500,500,500]
[null,null,null,null,null,null,null,null,null,null,500,500,333.33333333333331]
[null,null,null,null,null,null,null,null,null,null,400,500,500]
[null,null,null,null,null,null,null,null,null,null,500,500,500]
[null,null,null,null,null,null,null,null,null,null,350,500,500]
[null,null,null,null,null,null,null,null,null,null,500,300,500]
[null,null,null,null,null,null,null,null,null,null,450,500,333.33333333333331]
[null,null,null,null,null,null,null,null,null,null,450,500,500]
[null,null,null,null,null,null,null,null,null,null,500,400,500]
[null,null,null,null,null,null,null,null,null,null,450,300,500]
[null,null,null,null,null,null,null,null,null,null,500,300,500]
[null,null,null,null,null,null,null,null,null,null,500,500,500]
[null,null,null,null,null,null,null,null,null,null,500,500,500]
[null,null,null,null,null,null,null,null,null,null,450,500,500]
[null,null,null,null,null,null,null,null,null,null,450,300,500]
[null,null,null,null,null,null,null,null,null,null,450,400,500]
[null,null,null,null,null,null,null,null,null,null,500,400,500]
[null,null,null,null,null,null,null,null,null,null,350,300,500]
[null,null,null,null,null,null,null,null,null,null,400,500,333.33333333333331]
[null,null,null,null,null,null,null,null,null,null,450,400,500]
[null,null,null,null,null,null,null,null,null,null,350,400,500]
[null,null,null,null,null,null,null,null,null,null,500,400,500]
[null,null,null,null,null,null,null,null,null,null,500,500,500]
[null,null,null,null,null,null,null,null,null,null,450,500,333.33333333333331]
[null,null,null,null,null,null,null,null,null,null,500,400,500]
[null,null,null,null,null,null,null,null,null,null,500,400,500]
[null,null,null,null,null,null,null,null,null,null,450,500,500]
[null,null,null,null,null,null,null,null,null,null,450,400,500]
[null,null,null,null,null,null,null,null,null,null,400,400,500]
[null,null,null,null,null,null,null,null,null,null,500,500,500]
[null,null,null,null,null,null,null,null,null,null,450,500,500]
[null,null,null,null,null,null,null,null,null,null,450,500,500]
[null,null,null,null,null,null,null,null,null,null,450,500,500]
[null,null,null,null,null,null,null,null,null,null,400,500,500]
[null,null,null,null,null,null,null,null,null,null,400,500,333.33333333333331]
[null,null,null,null,null,null,null,null,null,null,500,500,500]
[null,null,null,null,null,null,null,null,null,null,450,400,500]
[null,null,null,null,null,null,null,null,null,null,450,500,500]
[null,null,null,null,null,null,null,null,null,null,450,300,500]
[null,null,null,null,null,null,null,null,null,null,450,400,500]
[null,null,null,null,null,null,null,null,null,null,500,400,500]
[null,null,null,null,null,null,null,null,null,null,450,500,500]
[null,null,null,null,null,null,null,null,null,null,400,500,333.33333333333331]
[null,null,null,null,null,null,null,null,null,null,400,500,333.33333333333331]
[null,null,null,null,null,null,null,null,null,null,500,500,333.33333333333331]
[null,null,null,null,null,null,null,null,null,null,500,500,500]
[null,null,null,null,null,null,null,null,null,null,500,500,333.33333333333331]
[null,null,null,null,null,null,null,null,null,null,500,500,500]
[null,null,null,null,null,null,null,null,null,null,500,400,500]
[null,null,null,null,null,null,null,null,null,null,500,500,500]
[null,null,null,null,null,null,null,null,null,null,400,500,500]
[null,null,null,null,null,null,null,null,null,null,500,500,500]
[null,null,null,null,null,null,null,null,null,null,500,400,500]
[null,null,null,null,null,null,null,null,null,null,500,500,500]
[null,null,null,null,null,null,null,null,null,null,450,500,500]
[null,null,null,null,null,null,null,null,null,null,450,500,500]
[null,null,null,null,null,null,null,null,null,null,500,500,500]
[null,null,null,null,null,null,null,null,null,null,400,400,500]
[null,null,null,null,null,null,null,null,null,null,400,400,500]
[null,null,null,null,null,null,null,null,null,null,500,500,500]
[null,null,null,null,null,null,null,null,null,null,500,500,500]
[null,null,null,null,null,null,null,null,null,null,400,500,500]
[null,null,null,null,null,null,null,null,null,null,450,500,500]
[null,null,null,null,null,null,null,null,null,null,450,500,500]
[null,null,null,null,null,null,null,null,null,null,350,300,500]
[null,null,null,null,null,null,null,null,null,null,500,400,500]
[null,null,null,null,null,null,null,null,null,null,500,500,500]
[null,null,null,null,null,null,null,null,null,null,500,500,333.33333333333331]
[null,null,null,null,null,null,null,null,null,null,500,400,500]
[null,null,null,null,null,null,null,null,null,null,500,400,333.33333333333331]
[null,null,null,null,null,null,null,null,null,null,500,500,500]
[null,null,null,null,null,null,null,null,null,null,400,500,500]
[null,null,null,null,null,null,null,null,null,null,500,400,500]
[null,null,null,null,null,null,null,null,null,null,450,400,500]
[null,null,null,null,null,null,null,null,null,null,500,500,500]
[null,null,null,null,null,null,null,null,null,null,500,500,500]
[null,null,null,null,null,null,null,null,null,null,450,500,500]
[null,null,null,null,null,null,null,null,null,null,400,500,500]
[null,null,null,null,null,null,null,null,null,null,450,400,333.33333333333331]
[null,null,null,null,null,null,null,null,null,null,450,400,500]
[null,null,null,null,null,null,null,null,null,null,500,500,500]
[null,null,null,null,null,null,null,null,null,null,500,500,500]
[null,null,null,null,null,null,null,null,null,null,500,400,500]
[null,null,null,null,null,null,null,null,null,null,450,400,500]
[null,null,null,null,null,null,null,null,null,null,450,500,500]
[null,null,null,null,null,null,null,null,null,null,400,400,500]
[null,null,null,null,null,null,null,null,null,null,450,500,500]
[null,null,null,null,null,null,null,null,null,null,500,500,500]
[null,null,null,null,null,null,null,null,null,null,400,500,500]
[null,null,null,null,null,null,null,null,null,null,500,400,500]
[null,null,null,null,null,null,null,null,null,null,400,500,500]
[null,null,null,null,null,null,null,null,null,null,450,400,500]
[null,null,null,null,null,null,null,null,null,null,500,400,500]
[null,null,null,null,null,null,null,null,null,null,500,500,500]
[null,null,null,null,null,null,null,null,null,null,450,500,500]
[null,null,null,null,null,null,null,null,null,null,400,500,500]
[null,null,null,null,null,null,null,null,null,null,500,400,500]
[null,null,null,null,null,null,null,null,null,null,450,500,333.33333333333331]
[null,null,null,null,null,null,null,null,null,null,500,400,166.66666666666666]
[null,null,null,null,null,null,null,null,null,null,450,400,500]
[null,null,null,null,null,null,null,null,null,null,500,500,500]
[null,null,null,null,null,null,null,null,null,null,450,500,500]
[null,null,null,null,null,null,null,null,null,null,400,500,500]
[null,null,null,null,null,null,null,null,null,null,450,500,500]
[null,null,null,null,null,null,null,null,null,null,450,300,333.33333333333331]
[null,null,null,null,null,null,null,null,null,null,500,500,333.33333333333331]
[null,null,null,null,null,null,null,null,null,null,500,400,333.33333333333331]
[null,null,null,null,null,null,null,null,null,null,500,500,500]
[null,null,null,null,null,null,null,null,null,null,400,500,500]
[null,null,null,null,null,null,null,null,null,null,500,500,500]
[null,null,null,null,null,null,null,null,null,null,400,500,333.33333333333331]
[null,null,null,null,null,null,null,null,null,null,500,500,500]
[null,null,null,null,null,null,null,null,null,null,500,400,333.33333333333331]
[null,null,null,null,null,null,null,null,null,null,500,400,500]
[null,null,null,null,null,null,null,null,null,null,500,400,500]
[null,null,null,null,null,null,null,null,null,null,400,400,333.33333333333331]
[null,null,null,null,null,null,null,null,null,null,500,400,333.33333333333331]
[null,null,null,null,null,null,null,null,null,null,400,500,500]
[null,null,null,null,null,null,null,null,null,null,450,400,500]
[null,null,null,null,null,null,null,null,null,null,450,500,500]
[null,null,null,null,null,null,null,null,null,null,450,500,333.33333333333331]
[null,null,null,null,null,null,null,null,null,null,450,300,500]
[null,null,null,null,null,null,null,null,null,null,450,500,500]
[null,null,null,null,null,null,null,null,null,null,450,500,500]
[null,null,null,null,null,null,null,null,null,null,500,500,500]
[null,null,null,null,null,null,null,null,null,null,500,400,500]
[null,null,null,null,null,null,null,null,null,null,350,500,500]
[null,null,null,null,null,null,null,null,null,null,450,500,500]
[null,null,null,null,null,null,null,null,null,null,400,300,500]
[null,null,null,null,null,null,null,null,null,null,500,500,500]
[null,null,null,null,null,null,null,null,null,null,500,500,333.33333333333331]
[null,null,null,null,null,null,null,null,null,null,450,500,500]
[null,null,null,null,null,null,null,null,null,null,400,400,333.33333333333331]
[null,null,null,null,null,null,null,null,null,null,400,500,500]
[null,null,null,null,null,null,null,null,null,null,500,500,500]
[null,null,null,null,null,null,null,null,null,null,500,400,333.33333333333331]
[null,null,null,null,null,null,null,null,null,null,400,300,500]
[null,null,null,null,null,null,null,null,null,null,500,400,500]
[null,null,null,null,null,null,null,null,null,null,450,500,500]
[null,null,null,null,null,null,null,null,null,null,400,500,500]
[null,null,null,null,null,null,null,null,null,null,500,500,500]
[null,null,null,null,null,null,null,null,null,null,500,500,500]
[null,null,null,null,null,null,null,null,null,null,450,500,500]
[null,null,null,null,null,null,null,null,null,null,500,500,333.33333333333331]
[null,null,null,null,null,null,null,null,null,null,450,500,333.33333333333331]
[null,null,null,null,null,null,null,null,null,null,350,500,500]
[null,null,null,null,null,null,null,null,null,null,500,400,500]
[null,null,null,null,null,null,null,null,null,null,450,400,500]
[null,null,null,null,null,null,null,null,null,null,500,400,500]
[null,null,null,null,null,null,null,null,null,null,500,400,333.33333333333331]
[null,null,null,null,null,null,null,null,null,null,400,500,333.33333333333331]
[null,null,null,null,null,null,null,null,null,null,450,500,333.33333333333331]
[null,null,null,null,null,null,null,null,null,null,500,300,333.33333333333331]
[null,null,null,null,null,null,null,null,null,null,500,400,333.33333333333331]
[null,null,null,null,null,null,null,null,null,null,450,500,166.66666666666666]
[null,null,null,null,null,null,null,null,null,null,500,500,333.33333333333331]
[null,null,null,null,null,null,null,null,null,null,500,400,500]
[null,null,null,null,null,null,null,null,null,null,500,400,500]
[null,null,null,null,null,null,null,null,null,null,450,400,333.33333333333331]
[null,null,null,null,null,null,null,null,null,null,500,500,500]
[null,null,null,null,null,null,null,null,null,null,450,400,333.33333333333331]
[null,null,null,null,null,null,null,null,null,null,400,500,500]
[null,null,null,null,null,null,null,null,null,null,450,500,500]
[null,null,null,null,null,null,null,null,null,null,500,500,500]
[null,null,null,null,null,null,null,null,null,null,500,500,500]
[null,null,null,null,null,null,null,null,null,null,450,500,333.33333333333331]
[null,null,null,null,null,null,null,null,null,null,500,500,500]
[null,null,null,null,null,null,null,null,null,null,500,500,500]
[null,null,null,null,null,null,null,null,null,null,450,500,500]
[null,null,null,null,null,null,null,null,null,null,450,400,500]
[null,null,null,null,null,null,null,null,null,null,450,500,333.33333333333331]
[null,null,null,null,null,null,null,null,null,null,450,500,500]
[null,null,null,null,null,null,null,null,null,null,350,400,500]
[null,null,null,null,null,null,null,null,null,null,500,500,500]
[null,null,null,null,null,null,null,null,null,null,400,500,500]
[null,null,null,null,null,null,null,null,null,null,450,500,500]
[null,null,null,null,null,null,null,null,null,null,500,500,500]
[null,null,null,null,null,null,null,null,null,null,500,500,500]
[null,null,null,null,null,null,null,null,null,null,450,400,500]
[null,null,null,null,null,null,null,null,null,null,450,500,500]
[null,null,null,null,null,null,null,null,null,null,350,500,500]
[null,null,null,null,null,null,null,null,null,null,450,500,333.33333333333331]
[null,null,null,null,null,null,null,null,null,null,500,400,500]
[null,null,null,null,null,null,null,null,null,null,500,500,500]
[null,null,null,null,null,null,null,null,null,null,450,500,500]
[null,null,null,null,null,null,null,null,null,null,500,500,500]
[null,null,null,null,null,null,null,null,null,null,400,500,166.66666666666666]
[null,null,null,null,null,null,null,null,null,null,500,400,500]
[null,null,null,null,null,null,null,null,null,null,500,300,500]
[null,null,null,null,null,null,null,null,null,null,500,500,500]
[null,null,null,null,null,null,null,null,null,null,500,500,333.33333333333331]
[null,null,null,null,null,null,null,null,null,null,500,500,500]
[null,null,null,null,null,null,null,null,null,null,500,400,500]
[null,null,null,null,null,null,null,null,null,null,400,400,500]
[null,null,null,null,null,null,null,null,null,null,500,500,500]
[null,null,null,null,null,null,null,null,null,null,500,500,333.33333333333331]
[null,null,null,null,null,null,null,null,null,null,500,400,500]
[null,null,null,null,null,null,null,null,null,null,450,500,500]
[null,null,null,null,null,null,null,null,null,null,400,500,500]
[null,null,null,null,null,null,null,null,null,null,450,500,500]
[null,null,null,null,null,null,null,null,null,null,500,400,333.33333333333331]
[null,null,null,null,null,null,null,null,null,null,500,500,500]
[null,null,null,null,null,null,null,null,null,null,500,400,500]
[null,null,null,null,null,null,null,null,null,null,450,400,500]
[null,null,null,null,null,null,null,null,null,null,450,400,500]
[null,null,null,null,null,null,null,null,null,null,500,400,500]
[null,null,null,null,null,null,null,null,null,null,500,500,500]
[null,null,null,null,null,null,null,null,null,null,450,500,500]
[null,null,null,null,null,null,null,null,null,null,350,500,500]
[null,null,null,null,null,null,null,null,null,null,500,500,500]
[null,null,null,null,null,null,null,null,null,null,500,400,500]
[null,null,null,null,null,null,null,null,null,null,400,500,500]
[null,null,null,null,null,null,null,null,null,null,300,500,333.33333333333331]
[null,null,null,null,null,null,null,null,null,null,450,500,500]
[null,null,null,null,null,null,null,null,null,null,400,500,500]
[null,null,null,null,null,null,null,null,null,null,450,500,333.33333333333331]
[null,null,null,null,null,null,null,null,null,null,400,400,500]
[null,null,null,null,null,null,null,null,null,null,500,400,500]
[null,null,null,null,null,null,null,null,null,null,500,400,500]
[null,null,null,null,null,null,null,null,null,null,400,500,166.66666666666666]
[null,null,null,null,null,null,null,null,null,null,450,500,500]
[null,null,null,null,null,null,null,null,null,null,500,400,500]
[null,null,null,null,null,null,null,null,null,null,500,500,333.33333333333331]
[null,null,null,null,null,null,null,null,null,null,400,500,500]
[null,null,null,null,null,null,null,null,null,null,500,500,500]
[null,null,null,null,null,null,null,null,null,null,450,400,500]
[null,null,null,null,null,null,null,null,null,null,400,500,500]
[null,null,null,null,null,null,null,null,null,null,500,400,500]
[null,null,null,null,null,null,null,null,null,null,500,500,500]
[null,null,null,null,null,null,null,null,null,null,500,500,333.33333333333331]
[null,null,null,null,null,null,null,null,null,null,500,400,500]
[null,null,null,null,null,null,null,null,null,null,500,500,500]
[null,null,null,null,null,null,null,null,null,null,450,500,500]
[null,null,null,null,null,null,null,null,null,null,500,400,500]
[null,null,null,null,null,null,null,null,null,null,500,400,500]
[null,null,null,null,null,null,null,null,null,null,500,500,500]
[null,null,null,null,null,null,null,null,null,null,400,500,500]
[null,null,null,null,null,null,null,null,null,null,500,500,333.33333333333331]
[null,null,null,null,null,null,null,null,null,null,350,500,500]
[null,null,null,null,null,null,null,null,null,null,500,500,500]
[null,null,null,null,null,null,null,null,null,null,500,500,500]
[null,null,null,null,null,null,null,null,null,null,400,500,500]
[null,null,null,null,null,null,null,null,null,null,500,500,333.33333333333331]
[null,null,null,null,null,null,null,null,null,null,450,400,500]
[null,null,null,null,null,null,null,null,null,null,500,400,500]
[null,null,null,null,null,null,null,null,null,null,450,400,333.33333333333331]
[null,null,null,null,null,null,null,null,null,null,450,500,500]
[null,null,null,null,null,null,null,null,null,null,350,500,500]
[null,null,null,null,null,null,null,null,null,null,450,400,500]
[null,null,null,null,null,null,null,null,null,null,450,500,500]
[null,null,null,null,null,null,null,null,null,null,500,400,333.33333333333331]
[null,null,null,null,null,null,null,null,null,null,500,400,500]
[null,null,null,null,null,null,null,null,null,null,500,500,333.33333333333331]
[null,null,null,null,null,null,null,null,null,null,500,400,333.33333333333331]
[null,null,null,null,null,null,null,null,null,null,450,500,500]
[null,null,null,null,null,null,null,null,null,null,450,500,333.33333333333331]
[null,null,null,null,null,null,null,null,null,null,450,400,333.33333333333331]
[null,null,null,null,null,null,null,null,null,null,500,500,500]
[null,null,null,null,null,null,null,null,null,null,450,500,500]
[null,null,null,null,null,null,null,null,null,null,500,500,500]
[null,null,null,null,null,null,null,null,null,null,500,500,166.66666666666666]
[null,null,null,null,null,null,null,null,null,null,400,400,500]
[null,null,null,null,null,null,null,null,null,null,450,500,500]
[null,null,null,null,null,null,null,null,null,null,400,500,500]
[null,null,null,null,null,null,null,null,null,null,500,400,500]
[null,null,null,null,null,null,null,null,null,null,400,500,500]
[null,null,null,null,null,null,null,null,null,null,400,400,500]
[null,null,null,null,null,null,null,null,null,null,450,500,500]
[null,null,null,null,null,null,null,null,null,null,450,500,333.33333333333331]
[null,null,null,null,null,null,null,null,null,null,500,500,500]
[null,null,null,null,null,null,null,null,null,null,500,300,500]
[null,null,null,null,null,null,null,null,null,null,450,400,500]
[null,null,null,null,null,null,null,null,null,null,450,500,500]
[null,null,null,null,null,null,null,null,null,null,500,500,500]
[null,null,null,null,null,null,null,null,null,null,500,400,333.33333333333331]
[null,null,null,null,null,null,null,null,null,null,450,500,500]
[null,null,null,null,null,null,null,null,null,null,500,500,500]
[null,null,null,null,null,null,null,null,null,null,450,400,333.33333333333331]
[null,null,null,null,null,null,null,null,null,null,450,500,333.33333333333331]
[null,null,null,null,null,null,null,null,null,null,450,500,500]
[null,null,null,null,null,null,null,null,null,null,450,400,500]
[null,null,null,null,null,null,null,null,null,null,450,500,500]
[null,null,null,null,null,null,null,null,null,null,450,500,500]
[null,null,null,null,null,null,null,null,null,null,500,500,500]
[null,null,null,null,null,null,null,null,null,null,500,400,500]
[null,null,null,null,null,null,null,null,null,null,500,500,166.66666666666666]
[null,null,null,null,null,null,null,null,null,null,450,500,333.33333333333331]
[null,null,null,null,null,null,null,null,null,null,500,500,333.33333333333331]
[null,null,null,null,null,null,null,null,null,null,450,500,500]
[null,null,null,null,null,null,null,null,null,null,500,500,500]
[null,null,null,null,null,null,null,null,null,null,450,500,500]
[null,null,null,null,null,null,null,null,null,null,400,500,500]
[null,null,null,null,null,null,null,null,null,null,500,300,500]
[null,null,null,null,null,null,null,null,null,null,450,400,166.66666666666666]
[null,null,null,null,null,null,null,null,null,null,400,500,333.33333333333331]
[null,null,null,null,null,null,null,null,null,null,450,400,333.33333333333331]
[null,null,null,null,null,null,null,null,null,null,350,500,500]
[null,null,null,null,null,null,null,null,null,null,500,500,500]
[null,null,null,null,null,null,null,null,null,null,450,500,500]
[null,null,null,null,null,null,null,null,null,null,450,500,500]
[null,null,null,null,null,null,null,null,null,null,500,500,500]
[null,null,null,null,null,null,null,null,null,null,400,500,500]
[null,null,null,null,null,null,null,null,null,null,500,500,500]
[null,null,null,null,null,null,null,null,null,null,500,500,166.66666666666666]
[null,null,null,null,null,null,null,null,null,null,500,500,500]
[null,null,null,null,null,null,null,null,null,null,450,300,500]
[null,null,null,null,null,null,null,null,null,null,450,500,500]
[null,null,null,null,null,null,null,null,null,null,400,500,500]
[null,null,null,null,null,null,null,null,null,null,500,500,500]
[null,null,null,null,null,null,null,null,null,null,400,500,333.33333333333331]
[null,null,null,null,null,null,null,null,null,null,450,500,333.33333333333331]
[null,null,null,null,null,null,null,null,null,null,450,500,333.33333333333331]
[null,null,null,null,null,null,null,null,null,null,450,500,500]
[null,null,null,null,null,null,null,null,null,null,500,500,500]
[null,null,null,null,null,null,null,null,null,null,450,400,333.33333333333331]
[null,null,null,null,null,null,null,null,null,null,450,400,500]
[null,null,null,null,null,null,null,null,null,null,450,500,500]
[null,null,null,null,null,null,null,null,null,null,450,500,333.33333333333331]
[null,null,null,null,null,null,null,null,null,null,400,400,500]
[null,null,null,null,null,null,null,null,null,null,500,400,333.33333333333331]
[null,null,null,null,null,null,null,null,null,null,450,500,500]
[null,null,null,null,null,null,null,null,null,null,400,500,500]
[null,null,null,null,null,null,null,null,null,null,450,500,500]
[null,null,null,null,null,null,null,null,null,null,500,500,500]
[null,null,null,null,null,null,null,null,null,null,500,300,333.33333333333331]
[null,null,null,null,null,null,null,null,null,null,450,500,500]
[null,null,null,null,null,null,null,null,null,null,500,400,333.33333333333331]
[null,null,null,null,null,null,null,null,null,null,450,400,500]
[null,null,null,null,null,null,null,null,null,null,500,500,500]
[null,null,null,null,null,null,null,null,null,null,400,400,500]
[null,null,null,null,null,null,null,null,null,null,450,500,333.33333333333331]
[null,null,null,null,null,null,null,null,null,null,500,400,500]
[null,null,null,null,null,null,null,null,null,null,500,500,500]
[null,null,null,null,null,null,null,null,null,null,500,500,500]
[null,null,null,null,null,null,null,null,null,null,400,500,500]
[null,null,null,null,null,null,null,null,null,null,450,500,500]
[null,null,null,null,null,null,null,null,null,null,450,500,500]
[null,null,null,null,null,null,null,null,null,null,500,300,500]
[null,null,null,null,null,null,null,null,null,null,450,500,500]
[null,null,null,null,null,null,null,null,null,null,450,500,500]
[null,null,null,null,null,null,null,null,null,null,400,400,333.33333333333331]
[null,null,null,null,null,null,null,null,null,null,450,500,500]
[null,null,null,null,null,null,null,null,null,null,400,500,500]
[null,null,null,null,null,null,null,null,null,null,500,500,500]
[null,null,null,null,null,null,null,null,null,null,450,500,500]
[null,null,null,null,null,null,null,null,null,null,400,500,500]
[null,null,null,null,null,null,null,null,null,null,450,400,333.33333333333331]
[null,null,null,null,null,null,null,null,null,null,400,500,500]
[null,null,null,null,null,null,null,null,null,null,500,500,500]
[null,null,null,null,null,null,null,null,null,null,450,400,500]
[null,null,null,null,null,null,null,null,null,null,500,500,500]
[null,null,null,null,null,null,null,null,null,null,500,500,500]
[null,null,null,null,null,null,null,null,null,null,500,400,500]
[null,null,null,null,null,null,null,null,null,null,500,500,333.33333333333331]
[null,null,null,null,null,null,null,null,null,null,350,500,500]
[null,null,null,null,null,null,null,null,null,null,450,500,500]
[null,null,null,null,null,null,null,null,null,null,500,500,500]
[null,null,null,null,null,null,null,null,null,null,500,500,500]
[null,null,null,null,null,null,null,null,null,null,500,400,333.33333333333331]
[null,null,null,null,null,null,null,null,null,null,500,500,500]
[null,null,null,null,null,null,null,null,null,null,350,500,500]
[null,null,null,null,null,null,null,null,null,null,500,500,500]
[null,null,null,null,null,null,null,null,null,null,500,500,500]
[null,null,null,null,null,null,null,null,null,null,500,500,166.66666666666666]
[null,null,null,null,null,null,null,null,null,null,500,500,500]
[null,null,null,null,null,null,null,null,null,null,450,500,333.33333333333331]
[null,null,null,null,null,null,null,null,null,null,450,500,500]
[null,null,null,null,null,null,null,null,null,null,500,500,333.33333333333331]
[null,null,null,null,null,null,null,null,null,null,500,500,500]
[null,null,null,null,null,null,null,null,null,null,400,400,333.33333333333331]
[null,null,null,null,null,null,null,null,null,null,500,400,500]
[null,null,null,null,null,null,null,null,null,null,450,400,500]
[null,null,null,null,null,null,null,null,null,null,500,400,500]
[null,null,null,null,null,null,null,null,null,null,500,500,500]
[null,null,null,null,null,null,null,null,null,null,450,300,500]
[null,null,null,null,null,null,null,null,null,null,450,500,500]
[null,null,null,null,null,null,null,null,null,null,450,500,500]
[null,null,null,null,null,null,null,null,null,null,500,500,166.66666666666666]
[null,null,null,null,null,null,null,null,null,null,500,500,500]
[null,null,null,null,null,null,null,null,null,null,500,500,500]
[null,null,null,null,null,null,null,null,null,null,450,500,500]
[null,null,null,null,null,null,null,null,null,null,500,500,500]
[null,null,null,null,null,null,null,null,null,null,450,500,500]
[null,null,null,null,null,null,null,null,null,null,500,500,500]
[null,null,null,null,null,null,null,null,null,null,500,400,500]
[null,null,null,null,null,null,null,null,null,null,500,500,333.33333333333331]
[null,null,null,null,null,null,null,null,null,null,450,500,500]
[null,null,null,null,null,null,null,null,null,null,350,400,333.33333333333331]
[null,null,null,null,null,null,null,null,null,null,500,500,333.33333333333331]
[null,null,null,null,null,null,null,null,null,null,450,500,500]
[null,null,null,null,null,null,null,null,null,null,400,500,500]
[null,null,null,null,null,null,null,null,null,null,500,400,500]
[null,null,null,null,null,null,null,null,null,null,500,500,500]
[null,null,null,null,null,null,null,null,null,null,500,500,333.33333333333331]
[null,null,null,null,null,null,null,null,null,null,350,400,500]
[null,null,null,null,null,null,null,null,null,null,450,500,333.33333333333331]
[null,null,null,null,null,null,null,null,null,null,500,500,333.33333333333331]
[null,null,null,null,null,null,null,null,null,null,450,500,166.66666666666666]
[null,null,null,null,null,null,null,null,null,null,500,500,500]
[null,null,null,null,null,null,null,null,null,null,450,400,500]
[null,null,null,null,null,null,null,null,null,null,450,400,500]
[null,null,null,null,null,null,null,null,null,null,450,500,500]
[null,null,null,null,null,null,null,null,null,null,500,400,500]
[null,null,null,null,null,null,null,null,null,null,500,500,500]
[null,null,null,null,null,null,null,null,null,null,500,500,500]
[null,null,null,null,null,null,null,null,null,null,450,500,333.33333333333331]
[null,null,null,null,null,null,null,null,null,null,400,500,500]
[null,null,null,null,null,null,null,null,null,null,500,400,500]
[null,null,null,null,null,null,null,null,null,null,450,400,500]
[null,null,null,null,null,null,null,null,null,null,400,500,500]
[null,null,null,null,null,null,null,null,null,null,450,500,333.33333333333331]
[null,null,null,null,null,null,null,null,null,null,400,500,500]
[null,null,null,null,null,null,null,null,null,null,450,500,333.33333333333331]
[null,null,null,null,null,null,null,null,null,null,450,500,500]
[null,null,null,null,null,null,null,null,null,null,450,500,500]
[null,null,null,null,null,null,null,null,null,null,450,400,500]
[null,null,null,null,null,null,null,null,null,null,450,500,500]
[null,null,null,null,null,null,null,null,null,null,500,500,166.66666666666666]
[null,null,null,null,null,null,null,null,null,null,500,500,333.33333333333331]
[null,null,null,null,null,null,null,null,null,null,500,500,500]
[null,null,null,null,null,null,null,null,null,null,450,400,500]
[null,null,null,null,null,null,null,null,null,null,400,400,500]
[null,null,null,null,null,null,null,null,null,null,450,500,500]
[null,null,null,null,null,null,null,null,null,null,500,400,500]
[null,null,null,null,null,null,null,null,null,null,500,500,500]
[null,null,null,null,null,null,null,null,null,null,500,500,500]
[null,null,null,null,null,null,null,null,null,null,500,500,500]
[null,null,null,null,null,null,null,null,null,null,500,500,500]
[null,null,null,null,null,null,null,null,null,null,500,400,333.33333333333331]
[null,null,null,null,null,null,null,null,null,null,450,400,166.66666666666666]
[null,null,null,null,null,null,null,null,null,null,500,500,500]
[null,null,null,null,null,null,null,null,null,null,400,500,500]
[null,null,null,null,null,null,null,null,null,null,500,500,500]
[null,null,null,null,null,null,null,null,null,null,450,500,500]
[null,null,null,null,null,null,null,null,null,null,450,500,500]
[null,null,null,null,null,null,null,null,null,null,450,400,500]
[null,null,null,null,null,null,null,null,null,null,500,400,500]
[null,null,null,null,null,null,null,null,null,null,450,400,333.33333333333331]
[null,null,null,null,null,null,null,null,null,null,400,400,333.33333333333331]
[null,null,null,null,null,null,null,null,null,null,500,400,500]
[null,null,null,null,null,null,null,null,null,null,500,500,333.33333333333331]
[null,null,null,null,null,null,null,null,null,null,400,400,500]
[null,null,null,null,null,null,null,null,null,null,500,500,500]
[null,null,null,null,null,null,null,null,null,null,450,500,500]
[null,null,null,null,null,null,null,null,null,null,500,500,333.33333333333331]
[null,null,null,null,null,null,null,null,null,null,500,500,500]
[null,null,null,null,null,null,null,null,null,null,500,500,500]
[null,null,null,null,null,null,null,null,null,null,450,400,333.33333333333331]
[null,null,null,null,null,null,null,null,null,null,450,500,333.33333333333331]
[null,null,null,null,null,null,null,null,null,null,450,500,500]
[null,null,null,null,null,null,null,null,null,null,450,400,500]
[null,null,null,null,null,null,null,null,null,null,500,300,500]
[null,null,null,null,null,null,null,null,null,null,500,400,500]
[null,null,null,null,null,null,null,null,null,null,450,500,500]
[null,null,null,null,null,null,null,null,null,null,450,500,500]
[null,null,null,null,null,null,null,null,null,null,500,500,500]
[null,null,null,null,null,null,null,null,null,null,500,500,500]
[null,null,null,null,null,null,null,null,null,null,500,400,500]
[null,null,null,null,null,null,null,null,null,null,450,300,333.33333333333331]
[null,null,null,null,null,null,null,null,null,null,450,500,333.33333333333331]
[null,null,null,null,null,null,null,null,null,null,400,400,166.66666666666666]
[null,null,null,null,null,null,null,null,null,null,500,300,500]
[null,null,null,null,null,null,null,null,null,null,500,400,500]
[null,null,null,null,null,null,null,null,null,null,500,500,500]
[null,null,null,null,null,null,null,null,null,null,450,400,500]
[null,null,null,null,null,null,null,null,null,null,450,500,500]
[null,null,null,null,null,null,null,null,null,null,500,500,500]
[null,null,null,null,null,null,null,null,null,null,400,500,500]
[null,null,null,null,null,null,null,null,null,null,400,400,333.33333333333331]
[null,null,null,null,null,null,null,null,null,null,450,500,500]
[null,null,null,null,null,null,null,null,null,null,400,500,500]
[null,null,null,null,null,null,null,null,null,null,400,500,500]
[null,null,null,null,null,null,null,null,null,null,450,500,500]
[null,null,null,null,null,null,null,null,null,null,450,400,333.33333333333331]
[null,null,null,null,null,null,null,null,null,null,500,500,500]
[null,null,null,null,null,null,null,null,null,null,450,500,500]
[null,null,null,null,null,null,null,null,null,null,400,500,500]
[null,null,null,null,null,null,null,null,null,null,500,300,500]
[null,null,null,null,null,null,null,null,null,null,500,500,500]
[null,null,null,null,null,null,null,null,null,null,500,500,500]
[null,null,null,null,null,null,null,null,null,null,400,500,500]
[null,null,null,null,null,null,null,null,null,null,400,300,500]
[null,null,null,null,null,null,null,null,null,null,500,500,500]
[null,null,null,null,null,null,null,null,null,null,500,500,500]
[null,null,null,null,null,null,null,null,null,null,450,400,500]
[null,null,null,null,null,null,null,null,null,null,500,500,333.33333333333331]
[null,null,null,null,null,null,null,null,null,null,450,400,500]
[null,null,null,null,null,null,null,null,null,null,500,300,500]
[null,null,null,null,null,null,null,null,null,null,500,400,500]
[null,null,null,null,null,null,null,null,null,null,450,400,500]
[null,null,null,null,null,null,null,null,null,null,500,400,166.66666666666666]
[null,null,null,null,null,null,null,null,null,null,500,400,500]
[null,null,null,null,null,null,null,null,null,null,500,500,333.33333333333331]
[null,null,null,null,null,null,null,null,null,null,450,400,500]
[null,null,null,null,null,null,null,null,null,null,500,500,500]
[null,null,null,null,null,null,null,null,null,null,500,400,500]
[null,null,null,null,null,null,null,null,null,null,500,500,500]
[null,null,null,null,null,null,null,null,null,null,400,500,500]
[null,null,null,null,null,null,null,null,null,null,450,500,500]
[null,null,null,null,null,null,null,null,null,null,450,500,500]
[null,null,null,null,null,null,null,null,null,null,500,300,500]
[null,null,null,null,null,null,null,null,null,null,450,500,333.33333333333331]
[null,null,null,null,null,null,null,null,null,null,450,400,500]
[null,null,null,null,null,null,null,null,null,null,500,500,500]
[null,null,null,null,null,null,null,null,null,null,500,500,500]
[null,null,null,null,null,null,null,null,null,null,500,500,500]
[null,null,null,null,null,null,null,null,null,null,400,500,500]
[null,null,null,null,null,null,null,null,null,null,450,500,500]
[null,null,null,null,null,null,null,null,null,null,450,500,166.66666666666666]
[null,null,null,null,null,null,null,null,null,null,450,400,500]
[null,null,null,null,null,null,null,null,null,null,400,400,500]
[null,null,null,null,null,null,null,null,null,null,500,500,333.33333333333331]
[null,null,null,null,null,null,null,null,null,null,500,500,500]
[null,null,null,null,null,null,null,null,null,null,500,500,500]
[null,null,null,null,null,null,null,null,null,null,500,500,333.33333333333331]
[null,null,null,null,null,null,null,null,null,null,450,400,500]
[null,null,null,null,null,null,null,null,null,null,500,400,500]
[null,null,null,null,null,null,null,null,null,null,500,500,500]
[null,null,null,null,null,null,null,null,null,null,500,500,500]
[null,null,null,null,null,null,null,null,null,null,400,500,500]
[null,null,null,null,null,null,null,null,null,null,450,500,333.33333333333331]
[null,null,null,null,null,null,null,null,null,null,450,500,500]
[null,null,null,null,null,null,null,null,null,null,500,400,500]
[null,null,null,null,null,null,null,null,null,null,350,500,500]
[null,null,null,null,null,null,null,null,null,null,300,500,500]
[null,null,null,null,null,null,null,null,null,null,450,500,333.33333333333331]
[null,null,null,null,null,null,null,null,null,null,450,500,500]
[null,null,null,null,null,null,null,null,null,null,500,500,500]
[null,null,null,null,null,null,null,null,null,null,500,500,333.33333333333331]
[null,null,null,null,null,null,null,null,null,null,500,500,500]
[null,null,null,null,null,null,null,null,null,null,500,300,333.33333333333331]
[null,null,null,null,null,null,null,null,null,null,400,500,333.33333333333331]
[null,null,null,null,null,null,null,null,null,null,450,400,500]
[null,null,null,null,null,null,null,null,null,null,500,500,500]
[null,null,null,null,null,null,null,null,null,null,450,500,500]
[null,null,null,null,null,null,null,null,null,null,450,500,333.33333333333331]
[null,null,null,null,null,null,null,null,null,null,500,500,500]
[null,null,null,null,null,null,null,null,null,null,500,500,500]
[null,null,null,null,null,null,null,null,null,null,450,500,500]
[null,null,null,null,null,null,null,null,null,null,400,400,500]
[null,null,null,null,null,null,null,null,null,null,450,500,500]
[null,null,null,null,null,null,null,null,null,null,400,500,500]
[null,null,null,null,null,null,null,null,null,null,450,500,500]
[null,null,null,null,null,null,null,null,null,null,450,500,500]
[null,null,null,null,null,null,null,null,null,null,500,500,500]
[null,null,null,null,null,null,null,null,null,null,450,300,500]
[null,null,null,null,null,null,null,null,null,null,450,500,500]
[null,null,null,null,null,null,null,null,null,null,500,500,500]
[null,null,null,null,null,null,null,null,null,null,400,500,500]
[null,null,null,null,null,null,null,null,null,null,450,500,500]
[null,null,null,null,null,null,null,null,null,null,500,400,333.33333333333331]
[null,null,null,null,null,null,null,null,null,null,500,400,500]
[null,null,null,null,null,null,null,null,null,null,500,300,500]
[null,null,null,null,null,null,null,null,null,null,500,500,500]
[null,null,null,null,null,null,null,null,null,null,400,500,500]
[null,null,null,null,null,null,null,null,null,null,500,500,500]
[null,null,null,null,null,null,null,null,null,null,500,500,500]
[null,null,null,null,null,null,null,null,null,null,400,500,333.33333333333331]
[null,null,null,null,null,null,null,null,null,null,350,400,500]
[null,null,null,null,null,null,null,null,null,null,450,300,500]
[null,null,null,null,null,null,null,null,null,null,450,500,500]
[null,null,null,null,null,null,null,null,null,null,500,400,500]
[null,null,null,null,null,null,null,null,null,null,500,500,500]
[null,null,null,null,null,null,null,null,null,null,500,400,500]
[null,null,null,null,null,null,null,null,null,null,500,400,500]
[null,null,null,null,null,null,null,null,null,null,500,500,500]
[null,null,null,null,null,null,null,null,null,null,500,500,500]
[null,null,null,null,null,null,null,null,null,null,500,500,500]
[null,null,null,null,null,null,null,null,null,null,400,500,500]
[null,null,null,null,null,null,null,null,null,null,450,500,500]
[null,null,null,null,null,null,null,null,null,null,450,300,500]
[null,null,null,null,null,null,null,null,null,null,500,500,333.33333333333331]
[null,null,null,null,null,null,null,null,null,null,500,500,500]
[null,null,null,null,null,null,null,null,null,null,450,500,333.33333333333331]
[null,null,null,null,null,null,null,null,null,null,450,500,500]
[null,null,null,null,null,null,null,null,null,null,500,500,500]
[null,null,null,null,null,null,null,null,null,null,400,400,500]
[null,null,null,null,null,null,null,null,null,null,300,400,500]
[null,null,null,null,null,null,null,null,null,null,400,500,500]
[null,null,null,null,null,null,null,null,null,null,500,500,500]
[null,null,null,null,null,null,null,null,null,null,500,400,500]
[null,null,null,null,null,null,null,null,null,null,400,400,500]
[null,null,null,null,null,null,null,null,null,null,450,400,500]
[null,null,null,null,null,null,null,null,null,null,400,400,500]
[null,null,null,null,null,null,null,null,null,null,500,500,500]
[null,null,null,null,null,null,null,null,null,null,500,500,333.33333333333331]
[null,null,null,null,null,null,null,null,null,null,500,400,500]
[null,null,null,null,null,null,null,null,null,null,500,500,500]
[null,null,null,null,null,null,null,null,null,null,500,400,500]
[null,null,null,null,null,null,null,null,null,null,450,500,500]
[null,null,null,null,null,null,null,null,null,null,450,500,500]
[null,null,null,null,null,null,null,null,null,null,500,500,500]
[null,null,null,null,null,null,null,null,null,null,450,500,500]
[null,null,null,null,null,null,null,null,null,null,500,400,500]
[null,null,null,null,null,null,null,null,null,null,400,500,500]
[null,null,null,null,null,null,null,null,null,null,450,500,500]
[null,null,null,null,null,null,null,null,null,null,450,400,500]
[null,null,null,null,null,null,null,null,null,null,500,500,500]
[null,null,null,null,null,null,null,null,null,null,450,500,500]
[null,null,null,null,null,null,null,null,null,null,450,400,500]
[null,null,null,null,null,null,null,null,null,null,500,500,500]
[null,null,null,null,null,null,null,null,null,null,450,500,500]
[null,null,null,null,null,null,null,null,null,null,450,400,500]
[null,null,null,null,null,null,null,null,null,null,450,500,500]
[null,null,null,null,null,null,null,null,null,null,500,500,500]
[null,null,null,null,null,null,null,null,null,null,500,500,333.33333333333331]
[null,null,null,null,null,null,null,null,null,null,450,500,500]
[null,null,null,null,null,null,null,null,null,null,500,400,500]
[null,null,null,null,null,null,null,null,null,null,500,400,500]
[null,null,null,null,null,null,null,null,null,null,500,400,333.33333333333331]
[null,null,null,null,null,null,null,null,null,null,500,500,500]
[null,null,null,null,null,null,null,null,null,null,500,500,500]
[null,null,null,null,null,null,null,null,null,null,450,500,500]
[null,null,null,null,null,null,null,null,null,null,450,500,500]
[null,null,null,null,null,null,null,null,null,null,500,400,500]
[null,null,null,null,null,null,null,null,null,null,500,400,500]
[null,null,null,null,null,null,null,null,null,null,350,500,500]
[null,null,null,null,null,null,null,null,null,null,450,500,500]
[null,null,null,null,null,null,null,null,null,null,450,500,500]
[null,null,null,null,null,null,null,null,null,null,500,500,500]
[null,null,null,null,null,null,null,null,null,null,400,300,333.33333333333331]
[null,null,null,null,null,null,null,null,null,null,500,500,500]
[null,null,null,null,null,null,null,null,null,null,500,500,500]
[null,null,null,null,null,null,null,null,null,null,450,500,500]
[null,null,null,null,null,null,null,null,null,null,450,400,500]
[null,null,null,null,null,null,null,null,null,null,500,500,500]
[null,null,null,null,null,null,null,null,null,null,400,500,166.66666666666666]
[null,null,null,null,null,null,null,null,null,null,500,500,500]
[null,null,null,null,null,null,null,null,null,null,450,500,500]
[null,null,null,null,null,null,null,null,null,null,500,500,500]
[null,null,null,null,null,null,null,null,null,null,500,500,500]
[null,null,null,null,null,null,null,null,null,null,500,500,333.33333333333331]
[null,null,null,null,null,null,null,null,null,null,500,300,500]
[null,null,null,null,null,null,null,null,null,null,450,500,500]
[null,null,null,null,null,null,null,null,null,null,450,400,500]
[null,null,null,null,null,null,null,null,null,null,400,400,500]
[null,null,null,null,null,null,null,null,null,null,450,400,500]
[null,null,null,null,null,null,null,null,null,null,450,500,500]
[null,null,null,null,null,null,null,null,null,null,450,500,500]
[null,null,null,null,null,null,null,null,null,null,400,500,333.33333333333331]
[null,null,null,null,null,null,null,null,null,null,450,200,500]
[null,null,null,null,null,null,null,null,null,null,400,400,500]
[null,null,null,null,null,null,null,null,null,null,500,500,500]
[null,null,null,null,null,null,null,null,null,null,500,400,500]
[null,null,null,null,null,null,null,null,null,null,450,500,500]
[null,null,null,null,null,null,null,null,null,null,400,400,500]
[null,null,null,null,null,null,null,null,null,null,500,500,500]
[null,null,null,null,null,null,null,null,null,null,450,500,500]
[null,null,null,null,null,null,null,null,null,null,500,500,500]
[null,null,null,null,null,null,null,null,null,null,450,500,500]
[null,null,null,null,null,null,null,null,null,null,350,300,500]
[null,null,null,null,null,null,null,null,null,null,400,500,500]
[null,null,null,null,null,null,null,null,null,null,500,500,333.33333333333331]
[null,null,null,null,null,null,null,null,null,null,500,400,500]
[null,null,null,null,null,null,null,null,null,null,450,400,500]
[null,null,null,null,null,null,null,null,null,null,500,500,500]
[null,null,null,null,null,null,null,null,null,null,500,400,500]
[null,null,null,null,null,null,null,null,null,null,500,500,333.33333333333331]
[null,null,null,null,null,null,null,null,null,null,500,200,500]
[null,null,null,null,null,null,null,null,null,null,350,400,500]
[null,null,null,null,null,null,null,null,null,null,450,500,500]
[null,null,null,null,null,null,null,null,null,null,500,500,500]
[null,null,null,null,null,null,null,null,null,null,450,500,500]
[null,null,null,null,null,null,null,null,null,null,400,500,333.33333333333331]
[null,null,null,null,null,null,null,null,null,null,500,300,500]
[null,null,null,null,null,null,null,null,null,null,450,500,333.33333333333331]
[null,null,null,null,null,null,null,null,null,null,450,400,500]
[null,null,null,null,null,null,null,null,null,null,450,400,500]
[null,null,null,null,null,null,null,null,null,null,450,500,500]
[null,null,null,null,null,null,null,null,null,null,350,500,500]
[null,null,null,null,null,null,null,null,null,null,500,500,500]
[null,null,null,null,null,null,null,null,null,null,450,400,500]
[null,null,null,null,null,null,null,null,null,null,500,500,500]
[null,null,null,null,null,null,null,null,null,null,500,400,500]
[null,null,null,null,null,null,null,null,null,null,500,500,333.33333333333331]
[null,null,null,null,null,null,null,null,null,null,450,500,500]
[null,null,null,null,null,null,null,null,null,null,500,400,500]
[null,null,null,null,null,null,null,null,null,null,400,500,333.33333333333331]
[null,null,null,null,null,null,null,null,null,null,400,400,333.33333333333331]
[null,null,null,null,null,null,null,null,null,null,400,400,500]
[null,null,null,null,null,null,null,null,null,null,500,400,500]
[null,null,null,null,null,null,null,null,null,null,500,500,500]
[null,null,null,null,null,null,null,null,null,null,450,400,333.33333333333331]
[null,null,null,null,null,null,null,null,null,null,500,500,500]
[null,null,null,null,null,null,null,null,null,null,500,500,333.33333333333331]
[null,null,null,null,null,null,null,null,null,null,450,500,500]
[null,null,null,null,null,null,null,null,null,null,500,500,500]
[null,null,null,null,null,null,null,null,null,null,500,500,500]
[null,null,null,null,null,null,null,null,null,null,500,500,500]
[null,null,null,null,null,null,null,null,null,null,500,500,500]
[null,null,null,null,null,null,null,null,null,null,500,300,500]
[null,null,null,null,null,null,null,null,null,null,500,500,500]
[null,null,null,null,null,null,null,null,null,null,500,500,500]
[null,null,null,null,null,null,null,null,null,null,500,500,500]
[null,null,null,null,null,null,null,null,null,null,500,500,500]
[null,null,null,null,null,null,null,null,null,null,450,400,500]
[null,null,null,null,null,null,null,null,null,null,450,400,500]
[null,null,null,null,null,null,null,null,null,null,400,500,500]
[null,null,null,null,null,null,null,null,null,null,450,500,500]
[null,null,null,null,null,null,null,null,null,null,500,400,500]
[null,null,null,null,null,null,null,null,null,null,500,400,333.33333333333331]
[null,null,null,null,null,null,null,null,null,null,500,400,500]
[null,null,null,null,null,null,null,null,null,null,500,500,166.66666666666666]
[null,null,null,null,null,null,null,null,null,null,500,500,500]
[null,null,null,null,null,null,null,null,null,null,450,400,500]
[null,null,null,null,null,null,null,null,null,null,400,500,166.66666666666666]
[null,null,null,null,null,null,null,null,null,null,500,500,166.66666666666666]
[null,null,null,null,null,null,null,null,null,null,450,500,500]
[null,null,null,null,null,null,null,null,null,null,400,400,500]
[null,null,null,null,null,null,null,null,null,null,500,500,333.33333333333331]
[null,null,null,null,null,null,null,null,null,null,450,500,500]
[null,null,null,null,null,null,null,null,null,null,450,500,500]
[null,null,null,null,null,null,null,null,null,null,500,500,333.33333333333331]
[null,null,null,null,null,null,null,null,null,null,500,500,500]
[null,null,null,null,null,null,null,null,null,null,450,500,333.33333333333331]
[null,null,null,null,null,null,null,null,null,null,450,500,500]
[null,null,null,null,null,null,null,null,null,null,400,400,333.33333333333331]
[null,null,null,null,null,null,null,null,null,null,450,400,500]
[null,null,null,null,null,null,null,null,null,null,500,500,500]
[null,null,null,null,null,null,null,null,null,null,450,500,500]
[null,null,null,null,null,null,null,null,null,null,450,500,500]
[null,null,null,null,null,null,null,null,null,null,400,500,333.33333333333331]
[null,null,null,null,null,null,null,null,null,null,500,500,333.33333333333331]
[null,null,null,null,null,null,null,null,null,null,500,500,500]
[null,null,null,null,null,null,null,null,null,null,450,500,500]
[null,null,null,null,null,null,null,null,null,null,400,500,500]
[null,null,null,null,null,null,null,null,null,null,500,500,500]
[null,null,null,null,null,null,null,null,null,null,500,500,333.33333333333331]
[null,null,null,null,null,null,null,null,null,null,450,500,500]
[null,null,null,null,null,null,null,null,null,null,500,500,500]
[null,null,null,null,null,null,null,null,null,null,450,500,500]
[null,null,null,null,null,null,null,null,null,null,500,500,500]
[null,null,null,null,null,null,null,null,null,null,400,500,500]
[null,null,null,null,null,null,null,null,null,null,450,500,500]
[null,null,null,null,null,null,null,null,null,null,450,300,333.33333333333331]
[null,null,null,null,null,null,null,null,null,null,500,500,166.66666666666666]
[null,null,null,null,null,null,null,null,null,null,400,500,500]
[null,null,null,null,null,null,null,null,null,null,450,400,500]
[null,null,null,null,null,null,null,null,null,null,450,500,500]
[null,null,null,null,null,null,null,null,null,null,300,500,500]
[null,null,null,null,null,null,null,null,null,null,400,400,500]
[null,null,null,null,null,null,null,null,null,null,450,400,333.33333333333331]
[null,null,null,null,null,null,null,null,null,null,500,400,500]
[null,null,null,null,null,null,null,null,null,null,500,400,166.66666666666666]
[null,null,null,null,null,null,null,null,null,null,500,400,333.33333333333331]
[null,null,null,null,null,null,null,null,null,null,500,500,500]
[null,null,null,null,null,null,null,null,null,null,450,400,500]
[null,null,null,null,null,null,null,null,null,null,400,500,500]
[null,null,null,null,null,null,null,null,null,null,500,500,500]
[null,null,null,null,null,null,null,null,null,null,450,500,500]
[null,null,null,null,null,null,null,null,null,null,500,500,500]
[null,null,null,null,null,null,null,null,null,null,500,500,500]
[null,null,null,null,null,null,null,null,null,null,450,400,500]
[null,null,null,null,null,null,null,null,null,null,450,400,500]
[null,null,null,null,null,null,null,null,null,null,400,500,500]
[null,null,null,null,null,null,null,null,null,null,450,500,500]
[null,null,null,null,null,null,null,null,null,null,400,500,500]
[null,null,null,null,null,null,null,null,null,null,350,500,333.33333333333331]
[null,null,null,null,null,null,null,null,null,null,450,500,500]
[null,null,null,null,null,null,null,null,null,null,500,400,333.33333333333331]
[null,null,null,null,null,null,null,null,null,null,500,500,500]
[null,null,null,null,null,null,null,null,null,null,500,500,500]
[null,null,null,null,null,null,null,null,null,null,500,500,500]
[null,null,null,null,null,null,null,null,null,null,450,500,500]
[null,null,null,null,null,null,null,null,null,null,450,500,333.33333333333331]
[null,null,null,null,null,null,null,null,null,null,500,500,500]
[null,null,null,null,null,null,null,null,null,null,500,500,500]
[null,null,null,null,null,null,null,null,null,null,500,500,333.33333333333331]
[null,null,null,null,null,null,null,null,null,null,500,300,500]
[null,null,null,null,null,null,null,null,null,null,500,500,500]
[null,null,null,null,null,null,null,null,null,null,500,400,500]
[null,null,null,null,null,null,null,null,null,null,500,500,500]
[null,null,null,null,null,null,null,null,null,null,500,300,500]
[null,null,null,null,null,null,null,null,null,null,400,400,500]
[null,null,null,null,null,null,null,null,null,null,450,400,500]
[null,null,null,null,null,null,null,null,null,null,450,500,500]
[null,null,null,null,null,null,null,null,null,null,450,500,333.33333333333331]
[null,null,null,null,null,null,null,null,null,null,450,500,500]
[null,null,null,null,null,null,null,null,null,null,500,500,500]
[null,null,null,null,null,null,null,null,null,null,400,400,333.33333333333331]
[null,null,null,null,null,null,null,null,null,null,500,500,500]
[null,null,null,null,null,null,null,null,null,null,450,400,500]
[null,null,null,null,null,null,null,null,null,null,450,400,500]
[null,null,null,null,null,null,null,null,null,null,450,400,500]
[null,null,null,null,null,null,null,null,null,null,400,500,500]
[null,null,null,null,null,null,null,null,null,null,500,500,333.33333333333331]
[null,null,null,null,null,null,null,null,null,null,450,400,500]
[null,null,null,null,null,null,null,null,null,null,450,500,500]
[null,null,null,null,null,null,null,null,null,null,450,400,500]
[null,null,null,null,null,null,null,null,null,null,500,500,333.33333333333331]
[null,null,null,null,null,null,null,null,null,null,400,400,500]
[null,null,null,null,null,null,null,null,null,null,350,400,500]
[null,null,null,null,null,null,null,null,null,null,500,500,500]
[null,null,null,null,null,null,null,null,null,null,400,400,500]
[null,null,null,null,null,null,null,null,null,null,450,400,500]
[null,null,null,null,null,null,null,null,null,null,500,300,500]
[null,null,null,null,null,null,null,null,null,null,500,500,500]
[null,null,null,null,null,null,null,null,null,null,450,400,500]
[null,null,null,null,null,null,null,null,null,null,400,400,333.33333333333331]
[null,null,null,null,null,null,null,null,null,null,500,500,333.33333333333331]
[null,null,null,null,null,null,null,null,null,null,500,500,500]
[null,null,null,null,null,null,null,null,null,null,450,500,333.33333333333331]
[null,null,null,null,null,null,null,null,null,null,450,500,500]
[null,null,null,null,null,null,null,null,null,null,450,500,500]
[null,null,null,null,null,null,null,null,null,null,500,200,333.33333333333331]
[null,null,null,null,null,null,null,null,null,null,450,500,500]
[null,null,null,null,null,null,null,null,null,null,450,400,500]
[null,null,null,null,null,null,null,null,null,null,450,500,500]
[null,null,null,null,null,null,null,null,null,null,450,500,500]
[null,null,null,null,null,null,null,null,null,null,500,500,500]
[null,null,null,null,null,null,null,null,null,null,500,500,500]
[null,null,null,null,null,null,null,null,null,null,500,500,500]
[null,null,null,null,null,null,null,null,null,null,500,500,500]
[null,null,null,null,null,null,null,null,null,null,450,500,500]
[null,null,null,null,null,null,null,null,null,null,450,400,500]
[null,null,null,null,null,null,null,null,null,null,500,500,500]
[null,null,null,null,null,null,null,null,null,null,500,400,333.33333333333331]
[null,null,null,null,null,null,null,null,null,null,500,500,500]
[null,null,null,null,null,null,null,null,null,null,450,500,333.33333333333331]
[null,null,null,null,null,null,null,null,null,null,500,500,500]
[null,null,null,null,null,null,null,null,null,null,400,500,500]
[null,null,null,null,null,null,null,null,null,null,450,500,500]
[null,null,null,null,null,null,null,null,null,null,500,400,500]
[null,null,null,null,null,null,null,null,null,null,500,500,500]
[null,null,null,null,null,null,null,null,null,null,450,400,500]
[null,null,null,null,null,null,null,null,null,null,450,500,500]
[null,null,null,null,null,null,null,null,null,null,500,400,500]
[null,null,null,null,null,null,null,null,null,null,500,500,500]
[null,null,null,null,null,null,null,null,null,null,500,400,500]
[null,null,null,null,null,null,null,null,null,null,500,400,333.33333333333331]
[null,null,null,null,null,null,null,null,null,null,500,400,500]
[null,null,null,null,null,null,null,null,null,null,500,400,333.33333333333331]
[null,null,null,null,null,null,null,null,null,null,450,500,500]
[null,null,null,null,null,null,null,null,null,null,500,500,500]
[null,null,null,null,null,null,null,null,null,null,500,500,333.33333333333331]
[null,null,null,null,null,null,null,null,null,null,500,300,166.66666666666666]
[null,null,null,null,null,null,null,null,null,null,500,500,500]
[null,null,null,null,null,null,null,null,null,null,450,400,500]
[null,null,null,null,null,null,null,null,null,null,450,300,500]
[null,null,null,null,null,null,null,null,null,null,500,400,500]
[null,null,null,null,null,null,null,null,null,null,500,400,500]
[null,null,null,null,null,null,null,null,null,null,500,500,500]
[null,null,null,null,null,null,null,null,null,null,500,500,500]
[null,null,null,null,null,null,null,null,null,null,500,500,333.33333333333331]
[null,null,null,null,null,null,null,null,null,null,350,400,500]
[null,null,null,null,null,null,null,null,null,null,450,500,500]
[null,null,null,null,null,null,null,null,null,null,450,500,500]
[null,null,null,null,null,null,null,null,null,null,450,500,333.33333333333331]
[null,null,null,null,null,null,null,null,null,null,400,500,333.33333333333331]
[null,null,null,null,null,null,null,null,null,null,400,500,500]
[null,null,null,null,null,null,null,null,null,null,450,300,500]
[null,null,null,null,null,null,null,null,null,null,450,500,500]
[null,null,null,null,null,null,null,null,null,null,450,400,333.33333333333331]
[null,null,null,null,null,null,null,null,null,null,450,500,500]
[null,null,null,null,null,null,null,null,null,null,450,500,500]
[null,null,null,null,null,null,null,null,null,null,450,400,500]
[null,null,null,null,null,null,null,null,null,null,500,500,500]
[null,null,null,null,null,null,null,null,null,null,400,400,333.33333333333331]
[null,null,null,null,null,null,null,null,null,null,500,400,500]
[null,null,null,null,null,null,null,null,null,null,500,500,333.33333333333331]
[null,null,null,null,null,null,null,null,null,null,450,400,500]
[null,null,null,null,null,null,null,null,null,null,450,400,500]
[null,null,null,null,null,null,null,null,null,null,400,400,500]
[null,null,null,null,null,null,null,null,null,null,450,500,500]
[null,null,null,null,null,null,null,null,null,null,500,500,500]
[null,null,null,null,null,null,null,null,null,null,450,500,500]
[null,null,null,null,null,null,null,null,null,null,450,400,500]
[null,null,null,null,null,null,null,null,null,null,350,500,333.33333333333331]
[null,null,null,null,null,null,null,null,null,null,500,500,333.33333333333331]
[null,null,null,null,null,null,null,null,null,null,350,400,500]
[null,null,null,null,null,null,null,null,null,null,450,500,500]
[null,null,null,null,null,null,null,null,null,null,500,500,500]
[null,null,null,null,null,null,null,null,null,null,500,400,333.33333333333331]
[null,null,null,null,null,null,null,null,null,null,400,400,500]
[null,null,null,null,null,null,null,null,null,null,400,500,500]
[null,null,null,null,null,null,null,null,null,null,450,500,500]
[null,null,null,null,null,null,null,null,null,null,500,500,500]
[null,null,null,null,null,null,null,null,null,null,500,400,500]
[null,null,null,null,null,null,null,null,null,null,500,500,333.33333333333331]
[null,null,null,null,null,null,null,null,null,null,450,400,500]
[null,null,null,null,null,null,null,null,null,null,500,500,333.33333333333331]
[null,null,null,null,null,null,null,null,null,null,450,500,500]
[null,null,null,null,null,null,null,null,null,null,400,500,500]
[null,null,null,null,null,null,null,null,null,null,450,400,500]
[null,null,null,null,null,null,null,null,null,null,500,400,500]
[null,null,null,null,null,null,null,null,null,null,400,500,500]
[null,null,null,null,null,null,null,null,null,null,400,500,333.33333333333331]
[null,null,null,null,null,null,null,null,null,null,500,500,500]
[null,null,null,null,null,null,null,null,null,null,500,500,500]
[null,null,null,null,null,null,null,null,null,null,450,500,500]
[null,null,null,null,null,null,null,null,null,null,450,400,500]
[null,null,null,null,null,null,null,null,null,null,400,500,500]
[null,null,null,null,null,null,null,null,null,null,500,400,500]
[null,null,null,null,null,null,null,null,null,null,450,400,500]
[null,null,null,null,null,null,null,null,null,null,450,500,500]
[null,null,null,null,null,null,null,null,null,null,450,500,333.33333333333331]
[null,null,null,null,null,null,null,null,null,null,400,500,500]
[null,null,null,null,null,null,null,null,null,null,450,500,500]
[null,null,null,null,null,null,null,null,null,null,450,500,333.33333333333331]
[null,null,null,null,null,null,null,null,null,null,450,500,500]
[null,null,null,null,null,null,null,null,null,null,450,500,333.33333333333331]
[null,null,null,null,null,null,null,null,null,null,450,400,500]
[null,null,null,null,null,null,null,null,null,null,450,400,500]
[null,null,null,null,null,null,null,null,null,null,450,500,500]
[null,null,null,null,null,null,null,null,null,null,500,500,333.33333333333331]
[null,null,null,null,null,null,null,null,null,null,500,500,333.33333333333331]
[null,null,null,null,null,null,null,null,null,null,400,500,500]
[null,null,null,null,null,null,null,null,null,null,450,500,500]
[null,null,null,null,null,null,null,null,null,null,450,500,500]
[null,null,null,null,null,null,null,null,null,null,450,500,500]
[null,null,null,null,null,null,null,null,null,null,500,500,500]
[null,null,null,null,null,null,null,null,null,null,500,500,500]
[null,null,null,null,null,null,null,null,null,null,450,500,500]
[null,null,null,null,null,null,null,null,null,null,400,500,500]
[null,null,null,null,null,null,null,null,null,null,450,400,500]
[null,null,null,null,null,null,null,null,null,null,450,500,333.33333333333331]
[null,null,null,null,null,null,null,null,null,null,500,500,500]
[null,null,null,null,null,null,null,null,null,null,450,400,500]
[null,null,null,null,null,null,null,null,null,null,400,500,500]
[null,null,null,null,null,null,null,null,null,null,450,400,333.33333333333331]
[null,null,null,null,null,null,null,null,null,null,500,500,500]
[null,null,null,null,null,null,null,null,null,null,500,400,333.33333333333331]
[null,null,null,null,null,null,null,null,null,null,450,500,500]
[null,null,null,null,null,null,null,null,null,null,500,400,500]
[null,null,null,null,null,null,null,null,null,null,450,500,500]
[null,null,null,null,null,null,null,null,null,null,500,400,333.33333333333331]
[null,null,null,null,null,null,null,null,null,null,400,400,333.33333333333331]
[null,null,null,null,null,null,null,null,null,null,500,400,500]
[null,null,null,null,null,null,null,null,null,null,400,300,500]
[null,null,null,null,null,null,null,null,null,null,450,500,500]
[null,null,null,null,null,null,null,null,null,null,500,500,500]
[null,null,null,null,null,null,null,null,null,null,500,500,333.33333333333331]
[null,null,null,null,null,null,null,null,null,null,400,500,500]
[null,null,null,null,null,null,null,null,null,null,500,500,500]
[null,null,null,null,null,null,null,null,null,null,500,400,500]
[null,null,null,null,null,null,null,null,null,null,500,400,500]
[null,null,null,null,null,null,null,null,null,null,500,500,333.33333333333331]
[null,null,null,null,null,null,null,null,null,null,450,500,500]
[null,null,null,null,null,null,null,null,null,null,350,400,500]
[null,null,null,null,null,null,null,null,null,null,400,400,333.33333333333331]
[null,null,null,null,null,null,null,null,null,null,500,500,333.33333333333331]
[null,null,null,null,null,null,null,null,null,null,400,400,500]
[null,null,null,null,null,null,null,null,null,null,450,500,500]
[null,null,null,null,null,null,null,null,null,null,500,500,500]
[null,null,null,null,null,null,null,null,null,null,500,500,500]
[null,null,null,null,null,null,null,null,null,null,400,200,500]
[null,null,null,null,null,null,null,null,null,null,450,400,500]
[null,null,null,null,null,null,null,null,null,null,500,400,500]
[null,null,null,null,null,null,null,null,null,null,500,500,333.33333333333331]
[null,null,null,null,null,null,null,null,null,null,450,300,500]
[null,null,null,null,null,null,null,null,null,null,450,400,500]
[null,null,null,null,null,null,null,null,null,null,500,400,500]
[null,null,null,null,null,null,null,null,null,null,500,500,500]
[null,null,null,null,null,null,null,null,null,null,400,500,333.33333333333331]
[null,null,null,null,null,null,null,null,null,null,450,400,500]
[null,null,null,null,null,null,null,null,null,null,400,400,333.33333333333331]
[null,null,null,null,null,null,null,null,null,null,500,500,500]
[null,null,null,null,null,null,null,null,null,null,500,500,500]
[null,null,null,null,null,null,null,null,null,null,500,500,500]
[null,null,null,null,null,null,null,null,null,null,500,400,500]
[null,null,null,null,null,null,null,null,null,null,500,400,500]
[null,null,null,null,null,null,null,null,null,null,400,500,500]
[null,null,null,null,null,null,null,null,null,null,400,500,500]
[null,null,null,null,null,null,null,null,null,null,400,500,333.33333333333331]
[null,null,null,null,null,null,null,null,null,null,450,500,500]
[null,null,null,null,null,null,null,null,null,null,450,400,333.33333333333331]
[null,null,null,null,null,null,null,null,null,null,450,400,500]
[null,null,null,null,null,null,null,null,null,null,500,500,500]
[null,null,null,null,null,null,null,null,null,null,450,500,500]
[null,null,null,null,null,null,null,null,null,null,400,500,500]
[null,null,null,null,null,null,null,null,null,null,500,500,500]
[null,null,null,null,null,null,null,null,null,null,450,400,500]
[null,null,null,null,null,null,null,null,null,null,500,400,500]
[null,null,null,null,null,null,null,null,null,null,450,500,500]
[null,null,null,null,null,null,null,null,null,null,400,400,500]
[null,null,null,null,null,null,null,null,null,null,500,500,500]
[null,null,null,null,null,null,null,null,null,null,450,500,500]
[null,null,null,null,null,null,null,null,null,null,450,500,333.33333333333331]
[null,null,null,null,null,null,null,null,null,null,450,500,333.33333333333331]
[null,null,null,null,null,null,null,null,null,null,500,500,500]
[null,null,null,null,null,null,null,null,null,null,400,500,500]
[null,null,null,null,null,null,null,null,null,null,500,500,500]
[null,null,null,null,null,null,null,null,null,null,500,500,500]
[null,null,null,null,null,null,null,null,null,null,450,500,333.33333333333331]
[null,null,null,null,null,null,null,null,null,null,450,400,500]
[null,null,null,null,null,null,null,null,null,null,450,500,333.33333333333331]
[null,null,null,null,null,null,null,null,null,null,400,400,333.33333333333331]
[null,null,null,null,null,null,null,null,null,null,500,500,333.33333333333331]
[null,null,null,null,null,null,null,null,null,null,450,500,500]
[null,null,null,null,null,null,null,null,null,null,450,500,500]
[null,null,null,null,null,null,null,null,null,null,450,300,333.33333333333331]
[null,null,null,null,null,null,null,null,null,null,450,500,500]
[null,null,null,null,null,null,null,null,null,null,450,500,500]
[null,null,null,null,null,null,null,null,null,null,450,500,500]
[null,null,null,null,null,null,null,null,null,null,500,400,500]
[null,null,null,null,null,null,null,null,null,null,450,500,333.33333333333331]
[null,null,null,null,null,null,null,null,null,null,500,500,500]
[null,null,null,null,null,null,null,null,null,null,500,400,333.33333333333331]
[null,null,null,null,null,null,null,null,null,null,450,500,500]
[null,null,null,null,null,null,null,null,null,null,450,500,500]
[null,null,null,null,null,null,null,null,null,null,450,500,500]
[null,null,null,null,null,null,null,null,null,null,500,500,500]
[null,null,null,null,null,null,null,null,null,null,500,400,500]
[null,null,null,null,null,null,null,null,null,null,450,500,500]
[null,null,null,null,null,null,null,null,null,null,500,400,500]
[null,null,null,null,null,null,null,null,null,null,500,500,500]
[null,null,null,null,null,null,null,null,null,null,400,500,500]
[null,null,null,null,null,null,null,null,null,null,500,400,500]
[null,null,null,null,null,null,null,null,null,null,450,500,333.33333333333331]
[null,null,null,null,null,null,null,null,null,null,500,500,500]
[null,null,null,null,null,null,null,null,null,null,400,500,333.33333333333331]
[null,null,null,null,null,null,null,null,null,null,500,500,500]
[null,null,null,null,null,null,null,null,null,null,500,500,500]
[null,null,null,null,null,null,null,null,null,null,500,400,500]
[null,null,null,null,null,null,null,null,null,null,500,500,500]
[null,null,null,null,null,null,null,null,null,null,450,400,500]
[null,null,null,null,null,null,null,null,null,null,500,500,500]
[null,null,null,null,null,null,null,null,null,null,500,400,333.33333333333331]
[null,null,null,null,null,null,null,null,null,null,500,500,333.33333333333331]
[null,null,null,null,null,null,null,null,null,null,500,500,500]
[null,null,null,null,null,null,null,null,null,null,450,500,500]
[null,null,null,null,null,null,null,null,null,null,500,500,500]
[null,null,null,null,null,null,null,null,null,null,500,400,500]
[null,null,null,null,null,null,null,null,null,null,400,500,500]
[null,null,null,null,null,null,null,null,null,null,450,500,500]
[null,null,null,null,null,null,null,null,null,null,450,500,500]
[null,null,null,null,null,null,null,null,null,null,450,400,500]
[null,null,null,null,null,null,null,null,null,null,350,500,333.33333333333331]
[null,null,null,null,null,null,null,null,null,null,500,500,500]
[null,null,null,null,null,null,null,null,null,null,500,500,500]
[null,null,null,null,null,null,null,null,null,null,400,500,500]
[null,null,null,null,null,null,null,null,null,null,450,400,333.33333333333331]
[null,null,null,null,null,null,null,null,null,null,450,500,500]
[null,null,null,null,null,null,null,null,null,null,450,400,500]
[null,null,null,null,null,null,null,null,null,null,500,500,500]
[null,null,null,null,null,null,null,null,null,null,500,400,500]
[null,null,null,null,null,null,null,null,null,null,300,500,500]
[null,null,null,null,null,null,null,null,null,null,500,500,500]
[null,null,null,null,null,null,null,null,null,null,500,500,333.33333333333331]
[null,null,null,null,null,null,null,null,null,null,500,400,500]
[null,null,null,null,null,null,null,null,null,null,450,500,500]
[null,null,null,null,null,null,null,null,null,null,500,400,500]
[null,null,null,null,null,null,null,null,null,null,450,500,500]
[null,null,null,null,null,null,null,null,null,null,500,500,500]
[null,null,null,null,null,null,null,null,null,null,400,400,500]
[null,null,null,null,null,null,null,null,null,null,400,400,500]
[null,null,null,null,null,null,null,null,null,null,450,500,500]
[null,null,null,null,null,null,null,null,null,null,500,500,500]
[null,null,null,null,null,null,null,null,null,null,500,400,500]
[null,null,null,null,null,null,null,null,null,null,500,500,500]
[null,null,null,null,null,null,null,null,null,null,450,500,500]
[null,null,null,null,null,null,null,null,null,null,500,500,333.33333333333331]
[null,null,null,null,null,null,null,null,null,null,450,400,333.33333333333331]
[null,null,null,null,null,null,null,null,null,null,500,500,500]
[null,null,null,null,null,null,null,null,null,null,500,400,500]
[null,null,null,null,null,null,null,null,null,null,450,500,500]
[null,null,null,null,null,null,null,null,null,null,400,400,500]
[null,null,null,null,null,null,null,null,null,null,450,500,500]
[null,null,null,null,null,null,null,null,null,null,450,500,500]
[null,null,null,null,null,null,null,null,null,null,500,400,500]
[null,null,null,null,null,null,null,null,null,null,450,200,333.33333333333331]
[null,null,null,null,null,null,null,null,null,null,450,500,500]
[null,null,null,null,null,null,null,null,null,null,500,500,500]
[null,null,null,null,null,null,null,null,null,null,400,500,500]
[null,null,null,null,null,null,null,null,null,null,500,500,500]
[null,null,null,null,null,null,null,null,null,null,500,500,500]
[null,null,null,null,null,null,null,null,null,null,450,500,500]
[null,null,null,null,null,null,null,null,null,null,450,500,500]
[null,null,null,null,null,null,null,null,null,null,400,500,333.33333333333331]
[null,null,null,null,null,null,null,null,null,null,450,500,500]
[null,null,null,null,null,null,null,null,null,null,450,300,500]
[null,null,null,null,null,null,null,null,null,null,450,500,500]
[null,null,null,null,null,null,null,null,null,null,500,300,333.33333333333331]
[null,null,null,null,null,null,null,null,null,null,400,400,500]
[null,null,null,null,null,null,null,null,null,null,500,500,333.33333333333331]
[null,null,null,null,null,null,null,null,null,null,500,400,333.33333333333331]
[null,null,null,null,null,null,null,null,null,null,450,500,500]
[null,null,null,null,null,null,null,null,null,null,450,500,500]
[null,null,null,null,null,null,null,null,null,null,500,500,500]
[null,null,null,null,null,null,null,null,null,null,450,500,333.33333333333331]
[null,null,null,null,null,null,null,null,null,null,400,500,500]
[null,null,null,null,null,null,null,null,null,null,500,500,500]
[null,null,null,null,null,null,null,null,null,null,500,500,500]
[null,null,null,null,null,null,null,null,null,null,450,400,500]
[null,null,null,null,null,null,null,null,null,null,500,400,333.33333333333331]
[null,null,null,null,null,null,null,null,null,null,400,500,333.33333333333331]
[null,null,null,null,null,null,null,null,null,null,400,500,500]
[null,null,null,null,null,null,null,null,null,null,400,500,500]
[null,null,null,null,null,null,null,null,null,null,400,500,500]
[null,null,null,null,null,null,null,null,null,null,500,500,500]
[null,null,null,null,null,null,null,null,null,null,400,500,500]
[null,null,null,null,null,null,null,null,null,null,350,500,500]
[null,null,null,null,null,null,null,null,null,null,500,500,333.33333333333331]
[null,null,null,null,null,null,null,null,null,null,400,500,500]
[null,null,null,null,null,null,null,null,null,null,400,200,333.33333333333331]
[null,null,null,null,null,null,null,null,null,null,500,400,500]
[null,null,null,null,null,null,null,null,null,null,450,400,500]
[null,null,null,null,null,null,null,null,null,null,500,500,500]
[null,null,null,null,null,null,null,null,null,null,450,500,500]
[null,null,null,null,null,null,null,null,null,null,500,300,500]
[null,null,null,null,null,null,null,null,null,null,450,500,333.33333333333331]
[null,null,null,null,null,null,null,null,null,null,400,300,500]
[null,null,null,null,null,null,null,null,null,null,450,400,333.33333333333331]
[null,null,null,null,null,null,null,null,null,null,500,500,500]
[null,null,null,null,null,null,null,null,null,null,500,400,500]
[null,null,null,null,null,null,null,null,null,null,500,500,333.33333333333331]
[null,null,null,null,null,null,null,null,null,null,450,500,500]
[null,null,null,null,null,null,null,null,null,null,450,400,500]
[null,null,null,null,null,null,null,null,null,null,500,500,500]
[null,null,null,null,null,null,null,null,null,null,500,400,333.33333333333331]
[null,null,null,null,null,null,null,null,null,null,400,500,333.33333333333331]
[null,null,null,null,null,null,null,null,null,null,350,500,500]
[null,null,null,null,null,null,null,null,null,null,400,500,333.33333333333331]
[null,null,null,null,null,null,null,null,null,null,500,500,333.33333333333331]
[null,null,null,null,null,null,null,null,null,null,500,400,500]
[null,null,null,null,null,null,null,null,null,null,400,500,500]
[null,null,null,null,null,null,null,null,null,null,450,400,333.33333333333331]
[null,null,null,null,null,null,null,null,null,null,400,400,500]
[null,null,null,null,null,null,null,null,null,null,450,500,500]
[null,null,null,null,null,null,null,null,null,null,500,500,500]
[null,null,null,null,null,null,null,null,null,null,500,400,500]
[null,null,null,null,null,null,null,null,null,null,500,400,500]
[null,null,null,null,null,null,null,null,null,null,450,500,166.66666666666666]
[null,null,null,null,null,null,null,null,null,null,500,400,333.33333333333331]
[null,null,null,null,null,null,null,null,null,null,500,500,500]
[null,null,null,null,null,null,null,null,null,null,500,500,500]
[null,null,null,null,null,null,null,null,null,null,500,400,333.33333333333331]
[null,null,null,null,null,null,null,null,null,null,450,500,500]
[null,null,null,null,null,null,null,null,null,null,400,500,500]
[null,null,null,null,null,null,null,null,null,null,400,500,500]
[null,null,null,null,null,null,null,null,null,null,500,500,500]
[null,null,null,null,null,null,null,null,null,null,400,400,500]
[null,null,null,null,null,null,null,null,null,null,500,500,500]
[null,null,null,null,null,null,null,null,null,null,500,300,500]
[null,null,null,null,null,null,null,null,null,null,500,500,500]
[null,null,null,null,null,null,null,null,null,null,500,500,333.33333333333331]
[null,null,null,null,null,null,null,null,null,null,400,500,500]
[null,null,null,null,null,null,null,null,null,null,350,500,500]
[null,null,null,null,null,null,null,null,null,null,400,400,500]
[null,null,null,null,null,null,null,null,null,null,500,500,500]
[null,null,null,null,null,null,null,null,null,null,500,400,333.33333333333331]
[null,null,null,null,null,null,null,null,null,null,500,500,500]
[null,null,null,null,null,null,null,null,null,null,400,400,333.33333333333331]
[null,null,null,null,null,null,null,null,null,null,500,500,500]
[null,null,null,null,null,null,null,null,null,null,500,500,500]
[null,null,null,null,null,null,null,null,null,null,400,500,500]
[null,null,null,null,null,null,null,null,null,null,500,400,500]
[null,null,null,null,null,null,null,null,null,null,450,500,500]
[null,null,null,null,null,null,null,null,null,null,450,500,333.33333333333331]
[null,null,null,null,null,null,null,null,null,null,400,500,500]
[null,null,null,null,null,null,null,null,null,null,400,500,333.33333333333331]
[null,null,null,null,null,null,null,null,null,null,500,500,500]
[null,null,null,null,null,null,null,null,null,null,500,500,166.66666666666666]
[null,null,null,null,null,null,null,null,null,null,350,500,500]
[null,null,null,null,null,null,null,null,null,null,500,500,500]
[null,null,null,null,null,null,null,null,null,null,500,500,333.33333333333331]
[null,null,null,null,null,null,null,null,null,null,450,400,500]
[null,null,null,null,null,null,null,null,null,null,500,500,500]
[null,null,null,null,null,null,null,null,null,null,500,500,500]
[null,null,null,null,null,null,null,null,null,null,500,500,500]
[null,null,null,null,null,null,null,null,null,null,500,500,500]
[null,null,null,null,null,null,null,null,null,null,450,500,500]
[null,null,null,null,null,null,null,null,null,null,500,500,500]
[null,null,null,null,null,null,null,null,null,null,500,400,500]
[null,null,null,null,null,null,null,null,null,null,450,500,333.33333333333331]
[null,null,null,null,null,null,null,null,null,null,450,500,500]
[null,null,null,null,null,null,null,null,null,null,500,500,500]
[null,null,null,null,null,null,null,null,null,null,450,500,500]
[null,null,null,null,null,null,null,null,null,null,450,400,500]
[null,null,null,null,null,null,null,null,null,null,500,400,333.33333333333331]
[null,null,null,null,null,null,null,null,null,null,450,400,500]
[null,null,null,null,null,null,null,null,null,null,450,400,500]
[null,null,null,null,null,null,null,null,null,null,400,500,500]
[null,null,null,null,null,null,null,null,null,null,450,400,500]
[null,null,null,null,null,null,null,null,null,null,500,500,500]
[null,null,null,null,null,null,null,null,null,null,500,400,500]
[null,null,null,null,null,null,null,null,null,null,500,500,500]
[null,null,null,null,null,null,null,null,null,null,450,400,166.66666666666666]
[null,null,null,null,null,null,null,null,null,null,450,500,500]
[null,null,null,null,null,null,null,null,null,null,450,400,500]
[null,null,null,null,null,null,null,null,null,null,450,400,500]
[null,null,null,null,null,null,null,null,null,null,450,500,333.33333333333331]
[null,null,null,null,null,null,null,null,null,null,450,400,500]
[null,null,null,null,null,null,null,null,null,null,350,500,500]
[null,null,null,null,null,null,null,null,null,null,500,500,500]
[null,null,null,null,null,null,null,null,null,null,500,500,500]
[null,null,null,null,null,null,null,null,null,null,500,500,500]
[null,null,null,null,null,null,null,null,null,null,500,400,500]
[null,null,null,null,null,null,null,null,null,null,450,500,333.33333333333331]
[null,null,null,null,null,null,null,null,null,null,500,300,500]
[null,null,null,null,null,null,null,null,null,null,450,500,500]
[null,null,null,null,null,null,null,null,null,null,500,400,500]
[null,null,null,null,null,null,null,null,null,null,500,500,500]
[null,null,null,null,null,null,null,null,null,null,450,500,500]
[null,null,null,null,null,null,null,null,null,null,450,500,333.33333333333331]
[null,null,null,null,null,null,null,null,null,null,500,500,500]
[null,null,null,null,null,null,null,null,null,null,350,400,500]
[null,null,null,null,null,null,null,null,null,null,450,400,500]
[null,null,null,null,null,null,null,null,null,null,500,400,333.33333333333331]
[null,null,null,null,null,null,null,null,null,null,450,400,500]
[null,null,null,null,null,null,null,null,null,null,450,500,500]
[null,null,null,null,null,null,null,null,null,null,400,500,500]
[null,null,null,null,null,null,null,null,null,null,500,500,333.33333333333331]
[null,null,null,null,null,null,null,null,null,null,500,200,500]
[null,null,null,null,null,null,null,null,null,null,500,500,500]
[null,null,null,null,null,null,null,null,null,null,450,400,500]
[null,null,null,null,null,null,null,null,null,null,450,500,500]
[null,null,null,null,null,null,null,null,null,null,400,500,500]
[null,null,null,null,null,null,null,null,null,null,400,500,500]
[null,null,null,null,null,null,null,null,null,null,500,400,500]
[null,null,null,null,null,null,null,null,null,null,450,500,166.66666666666666]
[null,null,null,null,null,null,null,null,null,null,450,400,500]
[null,null,null,null,null,null,null,null,null,null,500,400,500]
[null,null,null,null,null,null,null,null,null,null,500,500,500]
[null,null,null,null,null,null,null,null,null,null,400,500,333.33333333333331]
[null,null,null,null,null,null,null,null,null,null,450,500,500]
[null,null,null,null,null,null,null,null,null,null,400,500,500]
[null,null,null,null,null,null,null,null,null,null,450,500,333.33333333333331]
[null,null,null,null,null,null,null,null,null,null,450,500,333.33333333333331]
[null,null,null,null,null,null,null,null,null,null,450,500,500]
[null,null,null,null,null,null,null,null,null,null,450,500,500]
[null,null,null,null,null,null,null,null,null,null,450,500,500]
[null,null,null,null,null,null,null,null,null,null,500,400,500]
[null,null,null,null,null,null,null,null,null,null,500,500,500]
[null,null,null,null,null,null,null,null,null,null,500,500,500]
[null,null,null,null,null,null,null,null,null,null,400,500,500]
[null,null,null,null,null,null,null,null,null,null,500,400,333.33333333333331]
[null,null,null,null,null,null,null,null,null,null,450,500,500]
[null,null,null,null,null,null,null,null,null,null,450,500,500]
[null,null,null,null,null,null,null,null,null,null,500,500,500]
[null,null,null,null,null,null,null,null,null,null,350,500,500]
[null,null,null,null,null,null,null,null,null,null,500,400,333.33333333333331]
[null,null,null,null,null,null,null,null,null,null,450,500,500]
[null,null,null,null,null,null,null,null,null,null,450,500,500]
[null,null,null,null,null,null,null,null,null,null,450,500,500]
[null,null,null,null,null,null,null,null,null,null,400,500,500]
[null,null,null,null,null,null,null,null,null,null,400,300,500]
[null,null,null,null,null,null,null,null,null,null,500,500,500]
[null,null,null,null,null,null,null,null,null,null,500,500,500]
[null,null,null,null,null,null,null,null,null,null,500,500,500]
[null,null,null,null,null,null,null,null,null,null,500,400,500]
[null,null,null,null,null,null,null,null,null,null,500,500,500]
[null,null,null,null,null,null,null,null,null,null,450,500,500]
[null,null,null,null,null,null,null,null,null,null,500,300,500]
[null,null,null,null,null,null,null,null,null,null,450,500,500]
[null,null,null,null,null,null,null,null,null,null,500,400,500]
[null,null,null,null,null,null,null,null,null,null,500,500,500]
[null,null,null,null,null,null,null,null,null,null,450,500,500]
[null,null,null,null,null,null,null,null,null,null,500,400,500]
[null,null,null,null,null,null,null,null,null,null,500,500,500]
[null,null,null,null,null,null,null,null,null,null,500,500,500]
[null,null,null,null,null,null,null,null,null,null,400,500,333.33333333333331]
[null,null,null,null,null,null,null,null,null,null,500,500,500]
[null,null,null,null,null,null,null,null,null,null,500,400,500]
[null,null,null,null,null,null,null,null,null,null,400,500,333.33333333333331]
[null,null,null,null,null,null,null,null,null,null,450,500,500]
[null,null,null,null,null,null,null,null,null,null,450,500,500]
[null,null,null,null,null,null,null,null,null,null,450,500,500]
[null,null,null,null,null,null,null,null,null,null,500,500,500]
[null,null,null,null,null,null,null,null,null,null,450,400,500]
[null,null,null,null,null,null,null,null,null,null,450,500,500]
[null,null,null,null,null,null,null,null,null,null,500,500,500]
[null,null,null,null,null,null,null,null,null,null,400,500,500]
[null,null,null,null,null,null,null,null,null,null,450,400,500]
[null,null,null,null,null,null,null,null,null,null,350,500,333.33333333333331]
[null,null,null,null,null,null,null,null,null,null,500,400,500]
[null,null,null,null,null,null,null,null,null,null,450,400,500]
[null,null,null,null,null,null,null,null,null,null,450,500,333.33333333333331]
[null,null,null,null,null,null,null,null,null,null,500,500,333.33333333333331]
[null,null,null,null,null,null,null,null,null,null,450,500,333.33333333333331]
[null,null,null,null,null,null,null,null,null,null,450,500,500]
[null,null,null,null,null,null,null,null,null,null,450,500,500]
[null,null,null,null,null,null,null,null,null,null,500,400,333.33333333333331]
[null,null,null,null,null,null,null,null,null,null,450,500,500]
[null,null,null,null,null,null,null,null,null,null,450,500,500]
[null,null,null,null,null,null,null,null,null,null,400,400,500]
[null,null,null,null,null,null,null,null,null,null,500,500,500]
[null,null,null,null,null,null,null,null,null,null,450,400,500]
[null,null,null,null,null,null,null,null,null,null,500,300,500]
[null,null,null,null,null,null,null,null,null,null,450,500,500]
[null,null,null,null,null,null,null,null,null,null,500,500,333.33333333333331]
[null,null,null,null,null,null,null,null,null,null,450,500,500]
[null,null,null,null,null,null,null,null,null,null,500,400,500]
[null,null,null,null,null,null,null,null,null,null,450,300,500]
[null,null,null,null,null,null,null,null,null,null,500,500,500]
[null,null,null,null,null,null,null,null,null,null,500,500,500]
[null,null,null,null,null,null,null,null,null,null,500,500,500]
[null,null,null,null,null,null,null,null,null,null,450,500,500]
[null,null,null,null,null,null,null,null,null,null,500,500,500]
[null,null,null,null,null,null,null,null,null,null,450,500,500]
[null,null,null,null,null,null,null,null,null,null,450,400,500]
[null,null,null,null,null,null,null,null,null,null,450,500,500]
[null,null,null,null,null,null,null,null,null,null,450,500,333.33333333333331]
[null,null,null,null,null,null,null,null,null,null,500,500,333.33333333333331]
[null,null,null,null,null,null,null,null,null,null,500,500,500]
[null,null,null,null,null,null,null,null,null,null,450,400,500]
[null,null,null,null,null,null,null,null,null,null,500,500,500]
[null,null,null,null,null,null,null,null,null,null,500,500,500]
[null,null,null,null,null,null,null,null,null,null,500,400,500]
[null,null,null,null,null,null,null,null,null,null,500,500,500]
[null,null,null,null,null,null,null,null,null,null,500,400,500]
[null,null,null,null,null,null,null,null,null,null,500,500,500]
[null,null,null,null,null,null,null,null,null,null,400,400,500]
[null,null,null,null,null,null,null,null,null,null,400,500,500]
[null,null,null,null,null,null,null,null,null,null,500,500,500]
[null,null,null,null,null,null,null,null,null,null,350,500,500]
[null,null,null,null,null,null,null,null,null,null,400,400,500]
[null,null,null,null,null,null,null,null,null,null,400,500,500]
[null,null,null,null,null,null,null,null,null,null,500,500,500]
[null,null,null,null,null,null,null,null,null,null,500,400,500]
[null,null,null,null,null,null,null,null,null,null,400,400,500]
[null,null,null,null,null,null,null,null,null,null,500,500,500]
[null,null,null,null,null,null,null,null,null,null,400,500,500]
[null,null,null,null,null,null,null,null,null,null,350,500,500]
[null,null,null,null,null,null,null,null,null,null,450,500,500]
[null,null,null,null,null,null,null,null,null,null,500,500,500]
[null,null,null,null,null,null,null,null,null,null,500,500,500]
[null,null,null,null,null,null,null,null,null,null,500,500,500]
[null,null,null,null,null,null,null,null,null,null,450,500,500]
[null,null,null,null,null,null,null,null,null,null,450,400,500]
[null,null,null,null,null,null,null,null,null,null,500,500,500]
[null,null,null,null,null,null,null,null,null,null,500,500,333.33333333333331]
[null,null,null,null,null,null,null,null,null,null,450,400,500]
[null,null,null,null,null,null,null,null,null,null,500,500,500]
[null,null,null,null,null,null,null,null,null,null,500,500,333.33333333333331]
[null,null,null,null,null,null,null,null,null,null,450,400,500]
[null,null,null,null,null,null,null,null,null,null,450,500,500]
[null,null,null,null,null,null,null,null,null,null,450,400,500]
[null,null,null,null,null,null,null,null,null,null,500,400,500]
[null,null,null,null,null,null,null,null,null,null,500,500,500]
[null,null,null,null,null,null,null,null,null,null,450,500,500]
[null,null,null,null,null,null,null,null,null,null,500,400,333.33333333333331]
[null,null,null,null,null,null,null,null,null,null,400,400,500]
[null,null,null,null,null,null,null,null,null,null,400,500,500]
[null,null,null,null,null,null,null,null,null,null,450,500,500]
[null,null,null,null,null,null,null,null,null,null,450,500,333.33333333333331]
[null,null,null,null,null,null,null,null,null,null,450,500,333.33333333333331]
[null,null,null,null,null,null,null,null,null,null,400,500,500]
[null,null,null,null,null,null,null,null,null,null,450,400,500]
[null,null,null,null,null,null,null,null,null,null,450,500,500]
[null,null,null,null,null,null,null,null,null,null,500,500,500]
[null,null,null,null,null,null,null,null,null,null,400,400,500]
[null,null,null,null,null,null,null,null,null,null,500,500,500]
[null,null,null,null,null,null,null,null,null,null,450,400,500]
[null,null,null,null,null,null,null,null,null,null,450,500,500]
[null,null,null,null,null,null,null,null,null,null,450,500,500]
[null,null,null,null,null,null,null,null,null,null,400,300,333.33333333333331]
[null,null,null,null,null,null,null,null,null,null,500,500,500]
[null,null,null,null,null,null,null,null,null,null,400,400,500]
[null,null,null,null,null,null,null,null,null,null,450,500,500]
[null,null,null,null,null,null,null,null,null,null,500,500,166.66666666666666]
[null,null,null,null,null,null,null,null,null,null,450,300,500]
[null,null,null,null,null,null,null,null,null,null,500,400,500]
[null,null,null,null,null,null,null,null,null,null,450,500,500]
[null,null,null,null,null,null,null,null,null,null,500,500,500]
[null,null,null,null,null,null,null,null,null,null,450,400,500]
[null,null,null,null,null,null,null,null,null,null,500,500,333.33333333333331]
[null,null,null,null,null,null,null,null,null,null,500,500,500]
[null,null,null,null,null,null,null,null,null,null,450,400,500]
[null,null,null,null,null,null,null,null,null,null,500,500,500]
[null,null,null,null,null,null,null,null,null,null,500,500,500]
[null,null,null,null,null,null,null,null,null,null,500,400,500]
[null,null,null,null,null,null,null,null,null,null,400,500,500]
[null,null,null,null,null,null,null,null,null,null,450,400,333.33333333333331]
[null,null,null,null,null,null,null,null,null,null,500,400,333.33333333333331]
[null,null,null,null,null,null,null,null,null,null,450,500,333.33333333333331]
[null,null,null,null,null,null,null,null,null,null,500,500,333.33333333333331]
[null,null,null,null,null,null,null,null,null,null,500,400,500]
[null,null,null,null,null,null,null,null,null,null,300,500,500]
[null,null,null,null,null,null,null,null,null,null,450,400,500]
[null,null,null,null,null,null,null,null,null,null,500,500,500]
[null,null,null,null,null,null,null,null,null,null,500,500,333.33333333333331]
[null,null,null,null,null,null,null,null,null,null,500,400,500]
[null,null,null,null,null,null,null,null,null,null,400,500,500]
[null,null,null,null,null,null,null,null,null,null,500,400,500]
[null,null,null,null,null,null,null,null,null,null,500,400,333.33333333333331]
[null,null,null,null,null,null,null,null,null,null,450,400,500]
[null,null,null,null,null,null,null,null,null,null,450,500,500]
[null,null,null,null,null,null,null,null,null,null,450,500,500]
[null,null,null,null,null,null,null,null,null,null,500,400,500]
[null,null,null,null,null,null,null,null,null,null,500,500,333.33333333333331]
[null,null,null,null,null,null,null,null,null,null,500,500,500]
[null,null,null,null,null,null,null,null,null,null,350,500,500]
[null,null,null,null,null,null,null,null,null,null,500,400,333.33333333333331]
[null,null,null,null,null,null,null,null,null,null,450,500,333.33333333333331]
[null,null,null,null,null,null,null,null,null,null,400,400,333.33333333333331]
[null,null,null,null,null,null,null,null,null,null,400,500,500]
[null,null,null,null,null,null,null,null,null,null,500,400,500]
[null,null,null,null,null,null,null,null,null,null,500,500,500]
[null,null,null,null,null,null,null,null,null,null,500,400,500]
[null,null,null,null,null,null,null,null,null,null,400,500,333.33333333333331]
[null,null,null,null,null,null,null,null,null,null,450,500,333.33333333333331]
[null,null,null,null,null,null,null,null,null,null,500,500,500]
[null,null,null,null,null,null,null,null,null,null,500,300,500]
[null,null,null,null,null,null,null,null,null,null,500,500,500]
[null,null,null,null,null,null,null,null,null,null,400,500,500]
[null,null,null,null,null,null,null,null,null,null,500,400,500]
[null,null,null,null,null,null,null,null,null,null,500,400,500]
[null,null,null,null,null,null,null,null,null,null,450,500,500]
[null,null,null,null,null,null,null,null,null,null,500,500,500]
[null,null,null,null,null,null,null,null,null,null,500,500,500]
[null,null,null,null,null,null,null,null,null,null,500,500,333.33333333333331]
[null,null,null,null,null,null,null,null,null,null,500,400,500]
[null,null,null,null,null,null,null,null,null,null,450,500,333.33333333333331]
[null,null,null,null,null,null,null,null,null,null,500,500,500]
[null,null,null,null,null,null,null,null,null,null,500,400,500]
[null,null,null,null,null,null,null,null,null,null,500,400,500]
[null,null,null,null,null,null,null,null,null,null,400,500,333.33333333333331]
[null,null,null,null,null,null,null,null,null,null,400,400,500]
[null,null,null,null,null,null,null,null,null,null,450,400,500]
[null,null,null,null,null,null,null,null,null,null,400,500,500]
[null,null,null,null,null,null,null,null,null,null,500,500,500]
[null,null,null,null,null,null,null,null,null,null,500,400,333.33333333333331]
[null,null,null,null,null,null,null,null,null,null,500,500,500]
[null,null,null,null,null,null,null,null,null,null,450,400,500]
[null,null,null,null,null,null,null,null,null,null,400,400,500]
[null,null,null,null,null,null,null,null,null,null,500,500,500]
[null,null,null,null,null,null,null,null,null,null,400,500,500]
[null,null,null,null,null,null,null,null,null,null,500,500,500]
[null,null,null,null,null,null,null,null,null,null,400,500,500]
[null,null,null,null,null,null,null,null,null,null,450,300,333.33333333333331]
[null,null,null,null,null,null,null,null,null,null,500,500,333.33333333333331]
[null,null,null,null,null,null,null,null,null,null,500,500,500]
[null,null,null,null,null,null,null,null,null,null,500,500,500]
[null,null,null,null,null,null,null,null,null,null,450,400,333.33333333333331]
[null,null,null,null,null,null,null,null,null,null,500,500,500]
[null,null,null,null,null,null,null,null,null,null,450,400,500]
[null,null,null,null,null,null,null,null,null,null,400,400,333.33333333333331]
[null,null,null,null,null,null,null,null,null,null,450,500,500]
[null,null,null,null,null,null,null,null,null,null,450,500,500]
[null,null,null,null,null,null,null,null,null,null,450,500,500]
[null,null,null,null,null,null,null,null,null,null,500,500,333.33333333333331]
[null,null,null,null,null,null,null,null,null,null,400,500,333.33333333333331]
[null,null,null,null,null,null,null,null,null,null,450,500,500]
[null,null,null,null,null,null,null,null,null,null,500,300,333.33333333333331]
[null,null,null,null,null,null,null,null,null,null,500,400,500]
[null,null,null,null,null,null,null,null,null,null,500,500,500]
[null,null,null,null,null,null,null,null,null,null,450,400,500]
[null,null,null,null,null,null,null,null,null,null,500,500,500]
[null,null,null,null,null,null,null,null,null,null,450,500,500]
[null,null,null,null,null,null,null,null,null,null,400,500,500]
[null,null,null,null,null,null,null,null,null,null,500,500,333.33333333333331]
[null,null,null,null,null,null,null,null,null,null,400,500,500]
[null,null,null,null,null,null,null,null,null,null,500,500,500]
[null,null,null,null,null,null,null,null,null,null,500,500,500]
[null,null,null,null,null,null,null,null,null,null,500,500,500]
[null,null,null,null,null,null,null,null,null,null,450,500,500]
[null,null,null,null,null,null,null,null,null,null,500,500,500]
[null,null,null,null,null,null,null,null,null,null,450,400,500]
[null,null,null,null,null,null,null,null,null,null,400,300,500]
[null,null,null,null,null,null,null,null,null,null,500,500,333.33333333333331]
[null,null,null,null,null,null,null,null,null,null,450,500,500]
[null,null,null,null,null,null,null,null,null,null,500,400,500]
[null,null,null,null,null,null,null,null,null,null,500,500,333.33333333333331]
[null,null,null,null,null,null,null,null,null,null,450,400,500]
[null,null,null,null,null,null,null,null,null,null,500,500,500]
[null,null,null,null,null,null,null,null,null,null,450,500,500]
[null,null,null,null,null,null,null,null,null,null,450,300,500]
[null,null,null,null,null,null,null,null,null,null,450,400,500]
[null,null,null,null,null,null,null,null,null,null,500,500,500]
[null,null,null,null,null,null,null,null,null,null,450,500,500]
[null,null,null,null,null,null,null,null,null,null,500,400,500]
[null,null,null,null,null,null,null,null,null,null,450,500,500]
[null,null,null,null,null,null,null,null,null,null,450,500,500]
[null,null,null,null,null,null,null,null,null,null,500,400,500]
[null,null,null,null,null,null,null,null,null,null,500,400,333.33333333333331]
[null,null,null,null,null,null,null,null,null,null,500,500,333.33333333333331]
[null,null,null,null,null,null,null,null,null,null,500,300,500]
[null,null,null,null,null,null,null,null,null,null,500,500,500]
[null,null,null,null,null,null,null,null,null,null,450,500,500]
[null,null,null,null,null,null,null,null,null,null,450,400,500]
[null,null,null,null,null,null,null,null,null,null,450,400,333.33333333333331]
[null,null,null,null,null,null,null,null,null,null,500,400,500]
[null,null,null,null,null,null,null,null,null,null,300,500,500]
[null,null,null,null,null,null,null,null,null,null,450,400,500]
[null,null,null,null,null,null,null,null,null,null,450,500,500]
[null,null,null,null,null,null,null,null,null,null,500,300,333.33333333333331]
[null,null,null,null,null,null,null,null,null,null,450,400,333.33333333333331]
[null,null,null,null,null,null,null,null,null,null,400,500,500]
[null,null,null,null,null,null,null,null,null,null,450,500,500]
[null,null,null,null,null,null,null,null,null,null,400,500,500]
[null,null,null,null,null,null,null,null,null,null,500,500,500]
[null,null,null,null,null,null,null,null,null,null,500,500,500]
[null,null,null,null,null,null,null,null,null,null,450,500,500]
[null,null,null,null,null,null,null,null,null,null,500,500,500]
[null,null,null,null,null,null,null,null,null,null,500,400,500]
[null,null,null,null,null,null,null,null,null,null,450,300,500]
[null,null,null,null,null,null,null,null,null,null,400,500,333.33333333333331]
[null,null,null,null,null,null,null,null,null,null,500,500,500]
[null,null,null,null,null,null,null,null,null,null,450,500,333.33333333333331]
[null,null,null,null,null,null,null,null,null,null,450,500,500]
[null,null,null,null,null,null,null,null,null,null,350,500,500]
[null,null,null,null,null,null,null,null,null,null,500,500,500]
[null,null,null,null,null,null,null,null,null,null,500,500,333.33333333333331]
[null,null,null,null,null,null,null,null,null,null,400,400,333.33333333333331]
[null,null,null,null,null,null,null,null,null,null,450,500,500]
[null,null,null,null,null,null,null,null,null,null,500,500,500]
[null,null,null,null,null,null,null,null,null,null,500,500,333.33333333333331]
[null,null,null,null,null,null,null,null,null,null,400,500,500]
[null,null,null,null,null,null,null,null,null,null,500,400,500]
[null,null,null,null,null,null,null,null,null,null,500,400,500]
[null,null,null,null,null,null,null,null,null,null,500,400,500]
[null,null,null,null,null,null,null,null,null,null,500,500,166.66666666666666]
[null,null,null,null,null,null,null,null,null,null,450,500,500]
[null,null,null,null,null,null,null,null,null,null,500,500,500]
[null,null,null,null,null,null,null,null,null,null,500,500,500]
[null,null,null,null,null,null,null,null,null,null,500,500,500]
[null,null,null,null,null,null,null,null,null,null,500,400,333.33333333333331]
[null,null,null,null,null,null,null,null,null,null,500,500,333.33333333333331]
[null,null,null,null,null,null,null,null,null,null,450,500,333.33333333333331]
[null,null,null,null,null,null,null,null,null,null,450,400,500]
[null,null,null,null,null,null,null,null,null,null,500,500,500]
[null,null,null,null,null,null,null,null,null,null,450,500,500]
[null,null,null,null,null,null,null,null,null,null,450,500,500]
[null,null,null,null,null,null,null,null,null,null,500,400,500]
[null,null,null,null,null,null,null,null,null,null,450,500,500]
[null,null,null,null,null,null,null,null,null,null,450,500,333.33333333333331]
[null,null,null,null,null,null,null,null,null,null,400,400,500]
[null,null,null,null,null,null,null,null,null,null,500,500,333.33333333333331]
[null,null,null,null,null,null,null,null,null,null,450,500,500]
[null,null,null,null,null,null,null,null,null,null,450,500,333.33333333333331]
[null,null,null,null,null,null,null,null,null,null,450,400,500]
[null,null,null,null,null,null,null,null,null,null,450,400,500]
[null,null,null,null,null,null,null,null,null,null,500,500,500]
[null,null,null,null,null,null,null,null,null,null,500,500,166.66666666666666]
[null,null,null,null,null,null,null,null,null,null,500,400,500]
[null,null,null,null,null,null,null,null,null,null,500,400,500]
[null,null,null,null,null,null,null,null,null,null,400,500,500]
[null,null,null,null,null,null,null,null,null,null,500,500,500]
[null,null,null,null,null,null,null,null,null,null,350,400,500]
[null,null,null,null,null,null,null,null,null,null,450,400,500]
[null,null,null,null,null,null,null,null,null,null,450,500,500]
[null,null,null,null,null,null,null,null,null,null,450,500,500]
[null,null,null,null,null,null,null,null,null,null,350,500,500]
[null,null,null,null,null,null,null,null,null,null,500,500,500]
[null,null,null,null,null,null,null,null,null,null,450,500,333.33333333333331]
[null,null,null,null,null,null,null,null,null,null,500,500,500]
[null,null,null,null,null,null,null,null,null,null,500,500,500]
[null,null,null,null,null,null,null,null,null,null,500,500,500]
[null,null,null,null,null,null,null,null,null,null,450,300,500]
[null,null,null,null,null,null,null,null,null,null,500,500,500]
[null,null,null,null,null,null,null,null,null,null,400,400,500]
[null,null,null,null,null,null,null,null,null,null,450,500,500]
[null,null,null,null,null,null,null,null,null,null,500,500,333.33333333333331]
[null,null,null,null,null,null,null,null,null,null,450,400,333.33333333333331]
[null,null,null,null,null,null,null,null,null,null,450,500,500]
[null,null,null,null,null,null,null,null,null,null,450,400,500]
[null,null,null,null,null,null,null,null,null,null,400,400,500]
[null,null,null,null,null,null,null,null,null,null,500,500,500]
[null,null,null,null,null,null,null,null,null,null,500,500,500]
[null,null,null,null,null,null,null,null,null,null,500,400,333.33333333333331]
[null,null,null,null,null,null,null,null,null,null,400,400,500]
[null,null,null,null,null,null,null,null,null,null,500,400,500]
[null,null,null,null,null,null,null,null,null,null,500,500,500]
[null,null,null,null,null,null,null,null,null,null,450,500,500]
[null,null,null,null,null,null,null,null,null,null,500,500,333.33333333333331]
[null,null,null,null,null,null,null,null,null,null,450,400,500]
[null,null,null,null,null,null,null,null,null,null,450,500,333.33333333333331]
[null,null,null,null,null,null,null,null,null,null,450,500,500]
[null,null,null,null,null,null,null,null,null,null,450,400,333.33333333333331]
[null,null,null,null,null,null,null,null,null,null,500,500,500]
[null,null,null,null,null,null,null,null,null,null,350,500,166.66666666666666]
[null,null,null,null,null,null,null,null,null,null,450,400,500]
[null,null,null,null,null,null,null,null,null,null,500,500,500]
[null,null,null,null,null,null,null,null,null,null,500,500,333.33333333333331]
[null,null,null,null,null,null,null,null,null,null,400,500,500]
[null,null,null,null,null,null,null,null,null,null,500,500,333.33333333333331]
[null,null,null,null,null,null,null,null,null,null,500,500,333.33333333333331]
[null,null,null,null,null,null,null,null,null,null,500,500,500]
[null,null,null,null,null,null,null,null,null,null,500,500,500]
[null,null,null,null,null,null,null,null,null,null,500,500,166.66666666666666]
[null,null,null,null,null,null,null,null,null,null,450,400,500]
[null,null,null,null,null,null,null,null,null,null,350,400,333.33333333333331]
[null,null,null,null,null,null,null,null,null,null,500,300,500]
[null,null,null,null,null,null,null,null,null,null,450,500,500]
[null,null,null,null,null,null,null,null,null,null,500,400,500]
[null,null,null,null,null,null,null,null,null,null,450,500,500]
[null,null,null,null,null,null,null,null,null,null,400,500,500]
[null,null,null,null,null,null,null,null,null,null,500,500,500]
[null,null,null,null,null,null,null,null,null,null,450,400,333.33333333333331]
[null,null,null,null,null,null,null,null,null,null,500,400,500]
[null,null,null,null,null,null,null,null,null,null,500,500,500]
[null,null,null,null,null,null,null,null,null,null,500,500,333.33333333333331]
[null,null,null,null,null,null,null,null,null,null,500,500,500]
[null,null,null,null,null,null,null,null,null,null,500,500,500]
[null,null,null,null,null,null,null,null,null,null,450,400,500]
[null,null,null,null,null,null,null,null,null,null,500,400,333.33333333333331]
[null,null,null,null,null,null,null,null,null,null,450,400,500]
[null,null,null,null,null,null,null,null,null,null,500,400,500]
[null,null,null,null,null,null,null,null,null,null,400,400,500]
[null,null,null,null,null,null,null,null,null,null,450,400,500]
[null,null,null,null,null,null,null,null,null,null,500,500,500]
[null,null,null,null,null,null,null,null,null,null,400,500,500]
[null,null,null,null,null,null,null,null,null,null,500,500,500]
[null,null,null,null,null,null,null,null,null,null,500,500,333.33333333333331]
[null,null,null,null,null,null,null,null,null,null,450,500,500]
[null,null,null,null,null,null,null,null,null,null,450,500,500]
[null,null,null,null,null,null,null,null,null,null,400,200,333.33333333333331]
[null,null,null,null,null,null,null,null,null,null,450,500,500]
[null,null,null,null,null,null,null,null,null,null,500,400,500]
[null,null,null,null,null,null,null,null,null,null,500,500,500]
[null,null,null,null,null,null,null,null,null,null,450,400,500]
[null,null,null,null,null,null,null,null,null,null,500,500,500]
[null,null,null,null,null,null,null,null,null,null,450,400,500]
[null,null,null,null,null,null,null,null,null,null,500,500,500]
[null,null,null,null,null,null,null,null,null,null,500,500,500]
[null,null,null,null,null,null,null,null,null,null,500,400,500]
[null,null,null,null,null,null,null,null,null,null,500,500,500]
[null,null,null,null,null,null,null,null,null,null,400,500,333.33333333333331]
[null,null,null,null,null,null,null,null,null,null,500,500,500]
[null,null,null,null,null,null,null,null,null,null,500,400,500]
[null,null,null,null,null,null,null,null,null,null,450,500,500]
[null,null,null,null,null,null,null,null,null,null,450,500,500]
[null,null,null,null,null,null,null,null,null,null,450,500,333.33333333333331]
[null,null,null,null,null,null,null,null,null,null,500,500,333.33333333333331]
[null,null,null,null,null,null,null,null,null,null,450,400,333.33333333333331]
[null,null,null,null,null,null,null,null,null,null,500,500,333.33333333333331]
[null,null,null,null,null,null,null,null,null,null,500,400,500]
[null,null,null,null,null,null,null,null,null,null,350,500,500]
[null,null,null,null,null,null,null,null,null,null,400,500,500]
[null,null,null,null,null,null,null,null,null,null,400,500,500]
[null,null,null,null,null,null,null,null,null,null,450,300,500]
[null,null,null,null,null,null,null,null,null,null,500,500,500]
[null,null,null,null,null,null,null,null,null,null,400,500,333.33333333333331]
[null,null,null,null,null,null,null,null,null,null,500,500,500]
[null,null,null,null,null,null,null,null,null,null,450,400,500]
[null,null,null,null,null,null,null,null,null,null,450,400,500]
[null,null,null,null,null,null,null,null,null,null,500,500,500]
[null,null,null,null,null,null,null,null,null,null,500,500,500]
[null,null,null,null,null,null,null,null,null,null,450,500,500]
[null,null,null,null,null,null,null,null,null,null,450,500,500]
[null,null,null,null,null,null,null,null,null,null,450,500,500]
[null,null,null,null,null,null,null,null,null,null,400,500,333.33333333333331]
[null,null,null,null,null,null,null,null,null,null,500,400,333.33333333333331]
[null,null,null,null,null,null,null,null,null,null,450,400,500]
[null,null,null,null,null,null,null,null,null,null,500,400,333.33333333333331]
[null,null,null,null,null,null,null,null,null,null,450,500,500]
[null,null,null,null,null,null,null,null,null,null,450,300,500]
[null,null,null,null,null,null,null,null,null,null,500,500,500]
[null,null,null,null,null,null,null,null,null,null,450,500,500]
[null,null,null,null,null,null,null,null,null,null,500,500,166.66666666666666]
[null,null,null,null,null,null,null,null,null,null,500,400,500]
[null,null,null,null,null,null,null,null,null,null,450,500,500]
[null,null,null,null,null,null,null,null,null,null,450,500,500]
[null,null,null,null,null,null,null,null,null,null,500,400,500]
[null,null,null,null,null,null,null,null,null,null,500,400,500]
[null,null,null,null,null,null,null,null,null,null,500,500,166.66666666666666]
[null,null,null,null,null,null,null,null,null,null,400,500,500]
[null,null,null,null,null,null,null,null,null,null,400,300,500]
[null,null,null,null,null,null,null,null,null,null,500,500,500]
[null,null,null,null,null,null,null,null,null,null,500,500,500]
[null,null,null,null,null,null,null,null,null,null,450,500,500]
[null,null,null,null,null,null,null,null,null,null,500,400,500]
[null,null,null,null,null,null,null,null,null,null,350,500,500]
[null,null,null,null,null,null,null,null,null,null,400,500,500]
[null,null,null,null,null,null,null,null,null,null,400,400,500]
[null,null,null,null,null,null,null,null,null,null,400,500,500]
[null,null,null,null,null,null,null,null,null,null,350,400,500]
[null,null,null,null,null,null,null,null,null,null,450,500,500]
[null,null,null,null,null,null,null,null,null,null,450,500,500]
[null,null,null,null,null,null,null,null,null,null,450,500,500]
[null,null,null,null,null,null,null,null,null,null,350,400,500]
[null,null,null,null,null,null,null,null,null,null,400,400,500]
[null,null,null,null,null,null,null,null,null,null,450,500,500]
[null,null,null,null,null,null,null,null,null,null,300,300,500]
[null,null,null,null,null,null,null,null,null,null,500,300,500]
[null,null,null,null,null,null,null,null,null,null,500,500,500]
[null,null,null,null,null,null,null,null,null,null,500,400,333.33333333333331]
[null,null,null,null,null,null,null,null,null,null,450,500,166.66666666666666]
[null,null,null,null,null,null,null,null,null,null,500,500,500]
[null,null,null,null,null,null,null,null,null,null,450,300,500]
[null,null,null,null,null,null,null,null,null,null,400,500,333.33333333333331]
[null,null,null,null,null,null,null,null,null,null,450,300,333.33333333333331]
[null,null,null,null,null,null,null,null,null,null,500,500,500]
[null,null,null,null,null,null,null,null,null,null,500,500,333.33333333333331]
[null,null,null,null,null,null,null,null,null,null,500,400,333.33333333333331]
[null,null,null,null,null,null,null,null,null,null,450,400,500]
[null,null,null,null,null,null,null,null,null,null,450,500,333.33333333333331]
[null,null,null,null,null,null,null,null,null,null,450,500,500]
[null,null,null,null,null,null,null,null,null,null,450,500,500]
[null,null,null,null,null,null,null,null,null,null,450,500,500]
[null,null,null,null,null,null,null,null,null,null,350,400,500]
[null,null,null,null,null,null,null,null,null,null,500,500,500]
[null,null,null,null,null,null,null,null,null,null,400,500,500]
[null,null,null,null,null,null,null,null,null,null,450,400,333.33333333333331]
[null,null,null,null,null,null,null,null,null,null,450,500,500]
[null,null,null,null,null,null,null,null,null,null,450,400,500]
[null,null,null,null,null,null,null,null,null,null,450,500,500]
[null,null,null,null,null,null,null,null,null,null,450,500,500]
[null,null,null,null,null,null,null,null,null,null,500,500,500]
[null,null,null,null,null,null,null,null,null,null,500,500,500]
[null,null,null,null,null,null,null,null,null,null,500,400,500]
[null,null,null,null,null,null,null,null,null,null,450,500,500]
[null,null,null,null,null,null,null,null,null,null,500,500,500]
[null,null,null,null,null,null,null,null,null,null,400,400,500]
[null,null,null,null,null,null,null,null,null,null,450,300,500]
[null,null,null,null,null,null,null,null,null,null,500,400,500]
[null,null,null,null,null,null,null,null,null,null,500,500,333.33333333333331]
[null,null,null,null,null,null,null,null,null,null,450,500,500]
[null,null,null,null,null,null,null,null,null,null,450,500,500]
[null,null,null,null,null,null,null,null,null,null,450,500,333.33333333333331]
[null,null,null,null,null,null,null,null,null,null,500,500,500]
[null,null,null,null,null,null,null,null,null,null,500,400,500]
[null,null,null,null,null,null,null,null,null,null,500,500,333.33333333333331]
[null,null,null,null,null,null,null,null,null,null,500,500,500]
[null,null,null,null,null,null,null,null,null,null,500,400,500]
[null,null,null,null,null,null,null,null,null,null,450,500,500]
[null,null,null,null,null,null,null,null,null,null,450,500,500]
[null,null,null,null,null,null,null,null,null,null,450,500,500]
[null,null,null,null,null,null,null,null,null,null,500,400,333.33333333333331]
[null,null,null,null,null,null,null,null,null,null,450,500,333.33333333333331]
[null,null,null,null,null,null,null,null,null,null,450,500,500]
[null,null,null,null,null,null,null,null,null,null,500,500,500]
[null,null,null,null,null,null,null,null,null,null,450,500,500]
[null,null,null,null,null,null,null,null,null,null,500,500,333.33333333333331]
[null,null,null,null,null,null,null,null,null,null,450,500,500]
[null,null,null,null,null,null,null,null,null,null,400,500,500]
[null,null,null,null,null,null,null,null,null,null,400,400,500]
[null,null,null,null,null,null,null,null,null,null,450,500,500]
[null,null,null,null,null,null,null,null,null,null,500,500,500]
[null,null,null,null,null,null,null,null,null,null,450,400,500]
[null,null,null,null,null,null,null,null,null,null,450,300,333.33333333333331]
[null,null,null,null,null,null,null,null,null,null,500,300,500]
[null,null,null,null,null,null,null,null,null,null,500,400,500]
[null,null,null,null,null,null,null,null,null,null,450,500,500]
[null,null,null,null,null,null,null,null,null,null,450,400,500]
[null,null,null,null,null,null,null,null,null,null,450,500,500]
[null,null,null,null,null,null,null,null,null,null,500,500,500]
[null,null,null,null,null,null,null,null,null,null,450,500,500]
[null,null,null,null,null,null,null,null,null,null,500,500,333.33333333333331]
[null,null,null,null,null,null,null,null,null,null,450,500,500]
[null,null,null,null,null,null,null,null,null,null,450,300,333.33333333333331]
[null,null,null,null,null,null,null,null,null,null,500,500,500]
[null,null,null,null,null,null,null,null,null,null,450,500,500]
[null,null,null,null,null,null,null,null,null,null,500,400,333.33333333333331]
[null,null,null,null,null,null,null,null,null,null,500,500,500]
[null,null,null,null,null,null,null,null,null,null,450,300,500]
[null,null,null,null,null,null,null,null,null,null,400,500,166.66666666666666]
[null,null,null,null,null,null,null,null,null,null,500,300,500]
[null,null,null,null,null,null,null,null,null,null,500,500,333.33333333333331]
[null,null,null,null,null,null,null,null,null,null,500,500,500]
[null,null,null,null,null,null,null,null,null,null,500,400,500]
[null,null,null,null,null,null,null,null,null,null,350,500,500]
[null,null,null,null,null,null,null,null,null,null,500,500,333.33333333333331]
[null,null,null,null,null,null,null,null,null,null,500,400,500]
[null,null,null,null,null,null,null,null,null,null,450,500,333.33333333333331]
[null,null,null,null,null,null,null,null,null,null,450,400,500]
[null,null,null,null,null,null,null,null,null,null,500,500,500]
[null,null,null,null,null,null,null,null,null,null,450,500,500]
[null,null,null,null,null,null,null,null,null,null,350,500,333.33333333333331]
[null,null,null,null,null,null,null,null,null,null,450,500,500]
[null,null,null,null,null,null,null,null,null,null,500,500,500]
[null,null,null,null,null,null,null,null,null,null,400,500,500]
[null,null,null,null,null,null,null,null,null,null,400,500,500]
[null,null,null,null,null,null,null,null,null,null,450,500,500]
[null,null,null,null,null,null,null,null,null,null,450,500,500]
[null,null,null,null,null,null,null,null,null,null,450,500,166.66666666666666]
[null,null,null,null,null,null,null,null,null,null,450,500,500]
[null,null,null,null,null,null,null,null,null,null,400,500,500]
[null,null,null,null,null,null,null,null,null,null,500,500,500]
[null,null,null,null,null,null,null,null,null,null,450,500,500]
[null,null,null,null,null,null,null,null,null,null,400,500,500]
[null,null,null,null,null,null,null,null,null,null,450,400,500]
[null,null,null,null,null,null,null,null,null,null,400,500,166.66666666666666]
[null,null,null,null,null,null,null,null,null,null,500,500,500]
[null,null,null,null,null,null,null,null,null,null,450,500,333.33333333333331]
[null,null,null,null,null,null,null,null,null,null,500,500,500]
[null,null,null,null,null,null,null,null,null,null,500,400,500]
[null,null,null,null,null,null,null,null,null,null,450,300,500]
[null,null,null,null,null,null,null,null,null,null,500,500,166.66666666666666]
[null,null,null,null,null,null,null,null,null,null,500,500,500]
[null,null,null,null,null,null,null,null,null,null,400,500,500]
[null,null,null,null,null,null,null,null,null,null,450,500,500]
[null,null,null,null,null,null,null,null,null,null,450,400,500]
[null,null,null,null,null,null,null,null,null,null,400,500,500]
[null,null,null,null,null,null,null,null,null,null,400,500,500]
[null,null,null,null,null,null,null,null,null,null,500,500,500]
[null,null,null,null,null,null,null,null,null,null,450,500,333.33333333333331]
[null,null,null,null,null,null,null,null,null,null,450,500,500]
[null,null,null,null,null,null,null,null,null,null,400,400,500]
[null,null,null,null,null,null,null,null,null,null,450,500,500]
[null,null,null,null,null,null,null,null,null,null,400,300,500]
[null,null,null,null,null,null,null,null,null,null,450,500,333.33333333333331]
[null,null,null,null,null,null,null,null,null,null,450,500,500]
[null,null,null,null,null,null,null,null,null,null,500,500,500]
[null,null,null,null,null,null,null,null,null,null,500,500,500]
[null,null,null,null,null,null,null,null,null,null,450,500,500]
[null,null,null,null,null,null,null,null,null,null,500,500,333.33333333333331]
[null,null,null,null,null,null,null,null,null,null,500,500,333.33333333333331]
[null,null,null,null,null,null,null,null,null,null,500,500,500]
[null,null,null,null,null,null,null,null,null,null,500,500,500]
[null,null,null,null,null,null,null,null,null,null,450,500,333.33333333333331]
[null,null,null,null,null,null,null,null,null,null,450,500,333.33333333333331]
[null,null,null,null,null,null,null,null,null,null,450,400,500]
[null,null,null,null,null,null,null,null,null,null,500,400,500]
[null,null,null,null,null,null,null,null,null,null,500,500,500]
[null,null,null,null,null,null,null,null,null,null,500,500,500]
[null,null,null,null,null,null,null,null,null,null,450,500,500]
[null,null,null,null,null,null,null,null,null,null,500,500,333.33333333333331]
[null,null,null,null,null,null,null,null,null,null,400,500,333.33333333333331]
[null,null,null,null,null,null,null,null,null,null,500,500,500]
[null,null,null,null,null,null,null,null,null,null,500,500,500]
[null,null,null,null,null,null,null,null,null,null,450,500,500]
[null,null,null,null,null,null,null,null,null,null,350,400,500]
[null,null,null,null,null,null,null,null,null,null,500,400,500]
[null,null,null,null,null,null,null,null,null,null,500,400,500]
[null,null,null,null,null,null,null,null,null,null,500,300,500]
[null,null,null,null,null,null,null,null,null,null,500,400,500]
[null,null,null,null,null,null,null,null,null,null,500,400,500]
[null,null,null,null,null,null,null,null,null,null,450,400,500]
[null,null,null,null,null,null,null,null,null,null,400,500,333.33333333333331]
[null,null,null,null,null,null,null,null,null,null,450,400,500]
[null,null,null,null,null,null,null,null,null,null,450,500,333.33333333333331]
[null,null,null,null,null,null,null,null,null,null,500,300,500]
[null,null,null,null,null,null,null,null,null,null,500,500,500]
[null,null,null,null,null,null,null,null,null,null,450,400,500]
[null,null,null,null,null,null,null,null,null,null,500,500,500]
[null,null,null,null,null,null,null,null,null,null,450,500,500]
[null,null,null,null,null,null,null,null,null,null,450,500,500]
[null,null,null,null,null,null,null,null,null,null,500,500,500]
[null,null,null,null,null,null,null,null,null,null,450,500,500]
[null,null,null,null,null,null,null,null,null,null,400,500,333.33333333333331]
[null,null,null,null,null,null,null,null,null,null,500,300,500]
[null,null,null,null,null,null,null,null,null,null,450,500,500]
[null,null,null,null,null,null,null,null,null,null,400,400,333.33333333333331]
[null,null,null,null,null,null,null,null,null,null,450,500,500]
[null,null,null,null,null,null,null,null,null,null,400,500,500]
[null,null,null,null,null,null,null,null,null,null,450,300,333.33333333333331]
[null,null,null,null,null,null,null,null,null,null,450,500,500]
[null,null,null,null,null,null,null,null,null,null,350,500,500]
[null,null,null,null,null,null,null,null,null,null,500,400,500]
[null,null,null,null,null,null,null,null,null,null,500,500,500]
[null,null,null,null,null,null,null,null,null,null,500,500,500]
[null,null,null,null,null,null,null,null,null,null,500,500,500]
[null,null,null,null,null,null,null,null,null,null,500,500,333.33333333333331]
[null,null,null,null,null,null,null,null,null,null,500,300,166.66666666666666]
[null,null,null,null,null,null,null,null,null,null,400,400,500]
[null,null,null,null,null,null,null,null,null,null,500,500,500]
[null,null,null,null,null,null,null,null,null,null,500,500,500]
[null,null,null,null,null,null,null,null,null,null,350,500,500]
[null,null,null,null,null,null,null,null,null,null,450,400,500]
[null,null,null,null,null,null,null,null,null,null,500,500,500]
[null,null,null,null,null,null,null,null,null,null,500,400,500]
[null,null,null,null,null,null,null,null,null,null,400,400,500]
[null,null,null,null,null,null,null,null,null,null,500,400,500]
[null,null,null,null,null,null,null,null,null,null,500,500,500]
[null,null,null,null,null,null,null,null,null,null,450,500,500]
[null,null,null,null,null,null,null,null,null,null,400,500,333.33333333333331]
[null,null,null,null,null,null,null,null,null,null,450,400,500]
[null,null,null,null,null,null,null,null,null,null,500,500,500]
[null,null,null,null,null,null,null,null,null,null,400,500,500]
[null,null,null,null,null,null,null,null,null,null,450,300,500]
[null,null,null,null,null,null,null,null,null,null,450,500,500]
[null,null,null,null,null,null,null,null,null,null,400,500,500]
[null,null,null,null,null,null,null,null,null,null,500,500,500]
[null,null,null,null,null,null,null,null,null,null,400,500,500]
[null,null,null,null,null,null,null,null,null,null,450,400,500]
[null,null,null,null,null,null,null,null,null,null,500,500,500]
[null,null,null,null,null,null,null,null,null,null,500,400,333.33333333333331]
[null,null,null,null,null,null,null,null,null,null,450,500,500]
[null,null,null,null,null,null,null,null,null,null,450,300,500]
[null,null,null,null,null,null,null,null,null,null,450,500,500]
[null,null,null,null,null,null,null,null,null,null,400,500,333.33333333333331]
[null,null,null,null,null,null,null,null,null,null,500,500,333.33333333333331]
[null,null,null,null,null,null,null,null,null,null,500,500,500]
[null,null,null,null,null,null,null,null,null,null,450,500,333.33333333333331]
[null,null,null,null,null,null,null,null,null,null,400,500,500]
[null,null,null,null,null,null,null,null,null,null,500,500,500]
[null,null,null,null,null,null,null,null,null,null,500,500,333.33333333333331]
[null,null,null,null,null,null,null,null,null,null,450,400,500]
[null,null,null,null,null,null,null,null,null,null,500,500,500]
[null,null,null,null,null,null,null,null,null,null,500,500,333.33333333333331]
[null,null,null,null,null,null,null,null,null,null,500,500,333.33333333333331]
[null,null,null,null,null,null,null,null,null,null,500,500,500]
[null,null,null,null,null,null,null,null,null,null,400,500,500]
[null,null,null,null,null,null,null,null,null,null,450,500,333.33333333333331]
[null,null,null,null,null,null,null,null,null,null,400,500,500]
[null,null,null,null,null,null,null,null,null,null,450,400,333.33333333333331]
[null,null,null,null,null,null,null,null,null,null,400,500,500]
[null,null,null,null,null,null,null,null,null,null,500,500,500]
[null,null,null,null,null,null,null,null,null,null,450,500,500]
[null,null,null,null,null,null,null,null,null,null,450,500,333.33333333333331]
[null,null,null,null,null,null,null,null,null,null,450,500,500]
[null,null,null,null,null,null,null,null,null,null,500,500,500]
[null,null,null,null,null,null,null,null,null,null,500,400,333.33333333333331]
[null,null,null,null,null,null,null,null,null,null,350,400,500]
[null,null,null,null,null,null,null,null,null,null,450,500,500]
[null,null,null,null,null,null,null,null,null,null,500,500,500]
[null,null,null,null,null,null,null,null,null,null,400,500,500]
[null,null,null,null,null,null,null,null,null,null,500,500,500]
[null,null,null,null,null,null,null,null,null,null,450,300,500]
[null,null,null,null,null,null,null,null,null,null,450,500,500]
[null,null,null,null,null,null,null,null,null,null,450,500,500]
[null,null,null,null,null,null,null,null,null,null,450,500,333.33333333333331]
[null,null,null,null,null,null,null,null,null,null,400,300,500]
[null,null,null,null,null,null,null,null,null,null,400,500,333.33333333333331]
[null,null,null,null,null,null,null,null,null,null,400,500,500]
[null,null,null,null,null,null,null,null,null,null,400,500,500]
[null,null,null,null,null,null,null,null,null,null,500,500,500]
[null,null,null,null,null,null,null,null,null,null,400,500,500]
[null,null,null,null,null,null,null,null,null,null,500,500,500]
[null,null,null,null,null,null,null,null,null,null,500,400,500]
[null,null,null,null,null,null,null,null,null,null,350,400,500]
[null,null,null,null,null,null,null,null,null,null,450,500,500]
[null,null,null,null,null,null,null,null,null,null,450,500,500]
[null,null,null,null,null,null,null,null,null,null,450,500,500]
[null,null,null,null,null,null,null,null,null,null,450,400,500]
[null,null,null,null,null,null,null,null,null,null,400,500,500]
[null,null,null,null,null,null,null,null,null,null,500,400,500]
[null,null,null,null,null,null,null,null,null,null,400,500,500]
[null,null,null,null,null,null,null,null,null,null,450,500,500]
[null,null,null,null,null,null,null,null,null,null,450,500,500]
[null,null,null,null,null,null,null,null,null,null,400,500,500]
[null,null,null,null,null,null,null,null,null,null,450,500,333.33333333333331]
[null,null,null,null,null,null,null,null,null,null,450,500,500]
[null,null,null,null,null,null,null,null,null,null,500,400,500]
[null,null,null,null,null,null,null,null,null,null,500,500,333.33333333333331]
[null,null,null,null,null,null,null,null,null,null,500,500,333.33333333333331]
[null,null,null,null,null,null,null,null,null,null,450,500,500]
[null,null,null,null,null,null,null,null,null,null,500,500,500]
[null,null,null,null,null,null,null,null,null,null,500,500,500]
[null,null,null,null,null,null,null,null,null,null,400,500,500]
[null,null,null,null,null,null,null,null,null,null,500,400,333.33333333333331]
[null,null,null,null,null,null,null,null,null,null,500,500,500]
[null,null,null,null,null,null,null,null,null,null,400,400,333.33333333333331]
[null,null,null,null,null,null,null,null,null,null,400,500,500]
[null,null,null,null,null,null,null,null,null,null,500,500,500]
[null,null,null,null,null,null,null,null,null,null,450,400,500]
[null,null,null,null,null,null,null,null,null,null,400,500,500]
[null,null,null,null,null,null,null,null,null,null,500,500,500]
[null,null,null,null,null,null,null,null,null,null,450,500,500]
[null,null,null,null,null,null,null,null,null,null,500,500,500]
[null,null,null,null,null,null,null,null,null,null,500,500,500]
[null,null,null,null,null,null,null,null,null,null,500,500,333.33333333333331]
[null,null,null,null,null,null,null,null,null,null,450,400,500]
[null,null,null,null,null,null,null,null,null,null,500,500,500]
[null,null,null,null,null,null,null,null,null,null,450,500,500]
[null,null,null,null,null,null,null,null,null,null,400,500,500]
[null,null,null,null,null,null,null,null,null,null,400,500,500]
[null,null,null,null,null,null,null,null,null,null,450,500,333.33333333333331]
[null,null,null,null,null,null,null,null,null,null,400,500,500]
[null,null,null,null,null,null,null,null,null,null,500,400,500]
[null,null,null,null,null,null,null,null,null,null,500,500,500]
[null,null,null,null,null,null,null,null,null,null,450,500,500]
[null,null,null,null,null,null,null,null,null,null,450,400,500]
[null,null,null,null,null,null,null,null,null,null,350,500,500]
[null,null,null,null,null,null,null,null,null,null,500,500,500]
[null,null,null,null,null,null,null,null,null,null,500,500,500]
[null,null,null,null,null,null,null,null,null,null,400,500,500]
[null,null,null,null,null,null,null,null,null,null,450,400,500]
[null,null,null,null,null,null,null,null,null,null,450,500,500]
[null,null,null,null,null,null,null,null,null,null,500,500,500]
[null,null,null,null,null,null,null,null,null,null,450,400,500]
[null,null,null,null,null,null,null,null,null,null,450,500,500]
[null,null,null,null,null,null,null,null,null,null,450,400,500]
[null,null,null,null,null,null,null,null,null,null,400,500,500]
[null,null,null,null,null,null,null,null,null,null,500,500,500]
[null,null,null,null,null,null,null,null,null,null,450,400,333.33333333333331]
[null,null,null,null,null,null,null,null,null,null,450,400,500]
[null,null,null,null,null,null,null,null,null,null,400,500,500]
[null,null,null,null,null,null,null,null,null,null,500,500,500]
[null,null,null,null,null,null,null,null,null,null,450,500,500]
[null,null,null,null,null,null,null,null,null,null,450,500,500]
[null,null,null,null,null,null,null,null,null,null,450,300,500]
[null,null,null,null,null,null,null,null,null,null,450,500,500]
[null,null,null,null,null,null,null,null,null,null,500,500,500]
[null,null,null,null,null,null,null,null,null,null,500,500,500]
[null,null,null,null,null,null,null,null,null,null,450,500,500]
[null,null,null,null,null,null,null,null,null,null,400,400,500]
[null,null,null,null,null,null,null,null,null,null,500,500,333.33333333333331]
[null,null,null,null,null,null,null,null,null,null,500,400,500]
[null,null,null,null,null,null,null,null,null,null,500,500,500]
[null,null,null,null,null,null,null,null,null,null,450,500,500]
[null,null,null,null,null,null,null,null,null,null,500,400,500]
[null,null,null,null,null,null,null,null,null,null,450,500,500]
[null,null,null,null,null,null,null,null,null,null,350,500,500]
[null,null,null,null,null,null,null,null,null,null,500,400,333.33333333333331]
[null,null,null,null,null,null,null,null,null,null,450,500,333.33333333333331]
[null,null,null,null,null,null,null,null,null,null,500,500,500]
[null,null,null,null,null,null,null,null,null,null,450,400,500]
[null,null,null,null,null,null,null,null,null,null,400,400,500]
[null,null,null,null,null,null,null,null,null,null,500,500,500]
[null,null,null,null,null,null,null,null,null,null,450,500,333.33333333333331]
[null,null,null,null,null,null,null,null,null,null,500,400,500]
[null,null,null,null,null,null,null,null,null,null,400,400,500]
[null,null,null,null,null,null,null,null,null,null,500,400,500]
[null,null,null,null,null,null,null,null,null,null,450,500,166.66666666666666]
[null,null,null,null,null,null,null,null,null,null,500,300,333.33333333333331]
[null,null,null,null,null,null,null,null,null,null,500,500,500]
[null,null,null,null,null,null,null,null,null,null,500,400,500]
[null,null,null,null,null,null,null,null,null,null,450,400,500]
[null,null,null,null,null,null,null,null,null,null,500,500,500]
[null,null,null,null,null,null,null,null,null,null,450,500,500]
[null,null,null,null,null,null,null,null,null,null,450,500,333.33333333333331]
[null,null,null,null,null,null,null,null,null,null,450,500,500]
[null,null,null,null,null,null,null,null,null,null,500,400,500]
[null,null,null,null,null,null,null,null,null,null,400,400,500]
[null,null,null,null,null,null,null,null,null,null,450,500,500]
[null,null,null,null,null,null,null,null,null,null,500,500,333.33333333333331]
[null,null,null,null,null,null,null,null,null,null,400,500,500]
[null,null,null,null,null,null,null,null,null,null,500,400,500]
[null,null,null,null,null,null,null,null,null,null,450,400,500]
[null,null,null,null,null,null,null,null,null,null,500,500,500]
[null,null,null,null,null,null,null,null,null,null,400,500,333.33333333333331]
[null,null,null,null,null,null,null,null,null,null,350,500,500]
[null,null,null,null,null,null,null,null,null,null,450,400,500]
[null,null,null,null,null,null,null,null,null,null,500,500,500]
[null,null,null,null,null,null,null,null,null,null,450,300,500]
[null,null,null,null,null,null,null,null,null,null,500,500,500]
[null,null,null,null,null,null,null,null,null,null,450,500,500]
[null,null,null,null,null,null,null,null,null,null,450,500,500]
[null,null,null,null,null,null,null,null,null,null,350,300,333.33333333333331]
[null,null,null,null,null,null,null,null,null,null,450,400,333.33333333333331]
[null,null,null,null,null,null,null,null,null,null,500,500,500]
[null,null,null,null,null,null,null,null,null,null,500,400,500]
[null,null,null,null,null,null,null,null,null,null,500,500,500]
[null,null,null,null,null,null,null,null,null,null,450,300,500]
[null,null,null,null,null,null,null,null,null,null,500,500,500]
[null,null,null,null,null,null,null,null,null,null,450,500,500]
[null,null,null,null,null,null,null,null,null,null,500,500,500]
[null,null,null,null,null,null,null,null,null,null,450,400,500]
[null,null,null,null,null,null,null,null,null,null,500,500,500]
[null,null,null,null,null,null,null,null,null,null,500,500,500]
[null,null,null,null,null,null,null,null,null,null,500,500,500]
[null,null,null,null,null,null,null,null,null,null,500,400,500]
[null,null,null,null,null,null,null,null,null,null,400,500,500]
[null,null,null,null,null,null,null,null,null,null,450,500,500]
[null,null,null,null,null,null,null,null,null,null,450,500,500]
[null,null,null,null,null,null,null,null,null,null,500,500,166.66666666666666]
[null,null,null,null,null,null,null,null,null,null,450,500,500]
[null,null,null,null,null,null,null,null,null,null,500,400,500]
[null,null,null,null,null,null,null,null,null,null,500,500,333.33333333333331]
[null,null,null,null,null,null,null,null,null,null,450,400,500]
[null,null,null,null,null,null,null,null,null,null,450,500,500]
[null,null,null,null,null,null,null,null,null,null,400,500,333.33333333333331]
[null,null,null,null,null,null,null,null,null,null,500,500,500]
[null,null,null,null,null,null,null,null,null,null,500,300,500]
[null,null,null,null,null,null,null,null,null,null,500,500,500]
[null,null,null,null,null,null,null,null,null,null,450,400,500]
[null,null,null,null,null,null,null,null,null,null,500,400,500]
[null,null,null,null,null,null,null,null,null,null,350,500,333.33333333333331]
[null,null,null,null,null,null,null,null,null,null,400,400,500]
[null,null,null,null,null,null,null,null,null,null,450,500,500]
[null,null,null,null,null,null,null,null,null,null,500,500,500]
[null,null,null,null,null,null,null,null,null,null,500,500,500]
[null,null,null,null,null,null,null,null,null,null,400,400,500]
[null,null,null,null,null,null,null,null,null,null,500,500,500]
[null,null,null,null,null,null,null,null,null,null,400,500,500]
[null,null,null,null,null,null,null,null,null,null,500,500,333.33333333333331]
[null,null,null,null,null,null,null,null,null,null,450,400,333.33333333333331]
[null,null,null,null,null,null,null,null,null,null,450,300,500]
[null,null,null,null,null,null,null,null,null,null,400,500,333.33333333333331]
[null,null,null,null,null,null,null,null,null,null,400,500,500]
[null,null,null,null,null,null,null,null,null,null,450,500,500]
[null,null,null,null,null,null,null,null,null,null,500,400,500]
[null,null,null,null,null,null,null,null,null,null,500,500,500]
[null,null,null,null,null,null,null,null,null,null,500,300,500]
[null,null,null,null,null,null,null,null,null,null,400,300,500]
[null,null,null,null,null,null,null,null,null,null,500,500,500]
[null,null,null,null,null,null,null,null,null,null,500,500,500]
[null,null,null,null,null,null,null,null,null,null,450,500,333.33333333333331]
[null,null,null,null,null,null,null,null,null,null,350,500,333.33333333333331]
[null,null,null,null,null,null,null,null,null,null,500,500,500]
[null,null,null,null,null,null,null,null,null,null,450,400,500]
[null,null,null,null,null,null,null,null,null,null,450,500,500]
[null,null,null,null,null,null,null,null,null,null,500,500,333.33333333333331]
[null,null,null,null,null,null,null,null,null,null,400,500,333.33333333333331]
[null,null,null,null,null,null,null,null,null,null,450,500,500]
[null,null,null,null,null,null,null,null,null,null,500,300,500]
[null,null,null,null,null,null,null,null,null,null,500,400,500]
[null,null,null,null,null,null,null,null,null,null,500,400,333.33333333333331]
[null,null,null,null,null,null,null,null,null,null,500,500,333.33333333333331]
[null,null,null,null,null,null,null,null,null,null,450,400,333.33333333333331]
[null,null,null,null,null,null,null,null,null,null,500,500,500]
[null,null,null,null,null,null,null,null,null,null,400,500,333.33333333333331]
[null,null,null,null,null,null,null,null,null,null,450,300,500]
[null,null,null,null,null,null,null,null,null,null,500,500,500]
[null,null,null,null,null,null,null,null,null,null,500,400,333.33333333333331]
[null,null,null,null,null,null,null,null,null,null,500,500,333.33333333333331]
[null,null,null,null,null,null,null,null,null,null,500,500,500]
[null,null,null,null,null,null,null,null,null,null,450,500,500]
[null,null,null,null,null,null,null,null,null,null,500,500,500]
[null,null,null,null,null,null,null,null,null,null,400,500,500]
[null,null,null,null,null,null,null,null,null,null,400,500,500]
[null,null,null,null,null,null,null,null,null,null,400,400,500]
[null,null,null,null,null,null,null,null,null,null,450,400,500]
[null,null,null,null,null,null,null,null,null,null,450,400,500]
[null,null,null,null,null,null,null,null,null,null,450,400,500]
[null,null,null,null,null,null,null,null,null,null,400,500,500]
[null,null,null,null,null,null,null,null,null,null,500,500,500]
[null,null,null,null,null,null,null,null,null,null,500,400,500]
[null,null,null,null,null,null,null,null,null,null,450,400,500]
[null,null,null,null,null,null,null,null,null,null,450,400,500]
[null,null,null,null,null,null,null,null,null,null,500,500,333.33333333333331]
[null,null,null,null,null,null,null,null,null,null,450,500,500]
[null,null,null,null,null,null,null,null,null,null,400,500,500]
[null,null,null,null,null,null,null,null,null,null,500,500,500]
[null,null,null,null,null,null,null,null,null,null,500,400,500]
[null,null,null,null,null,null,null,null,null,null,450,400,500]
[null,null,null,null,null,null,null,null,null,null,500,500,500]
[null,null,null,null,null,null,null,null,null,null,450,500,500]
[null,null,null,null,null,null,null,null,null,null,400,500,500]
[null,null,null,null,null,null,null,null,null,null,500,400,500]
[null,null,null,null,null,null,null,null,null,null,500,500,333.33333333333331]
[null,null,null,null,null,null,null,null,null,null,500,500,333.33333333333331]
[null,null,null,null,null,null,null,null,null,null,500,400,333.33333333333331]
[null,null,null,null,null,null,null,null,null,null,500,500,500]
[null,null,null,null,null,null,null,null,null,null,450,400,500]
[null,null,null,null,null,null,null,null,null,null,400,400,500]
[null,null,null,null,null,null,null,null,null,null,400,500,500]
[null,null,null,null,null,null,null,null,null,null,500,500,500]
[null,null,null,null,null,null,null,null,null,null,500,500,500]
[null,null,null,null,null,null,null,null,null,null,500,500,500]
[null,null,null,null,null,null,null,null,null,null,500,500,166.66666666666666]
[null,null,null,null,null,null,null,null,null,null,450,500,333.33333333333331]
[null,null,null,null,null,null,null,null,null,null,450,400,500]
[null,null,null,null,null,null,null,null,null,null,400,500,500]
[null,null,null,null,null,null,null,null,null,null,500,500,500]
[null,null,null,null,null,null,null,null,null,null,450,500,500]
[null,null,null,null,null,null,null,null,null,null,400,200,500]
[null,null,null,null,null,null,null,null,null,null,500,500,500]
[null,null,null,null,null,null,null,null,null,null,450,500,500]
[null,null,null,null,null,null,null,null,null,null,450,400,500]
[null,null,null,null,null,null,null,null,null,null,400,500,166.66666666666666]
[null,null,null,null,null,null,null,null,null,null,450,500,333.33333333333331]
[null,null,null,null,null,null,null,null,null,null,500,400,500]
[null,null,null,null,null,null,null,null,null,null,450,500,500]
[null,null,null,null,null,null,null,null,null,null,450,500,500]
[null,null,null,null,null,null,null,null,null,null,450,500,500]
[null,null,null,null,null,null,null,null,null,null,500,500,500]
[null,null,null,null,null,null,null,null,null,null,400,500,500]
[null,null,null,null,null,null,null,null,null,null,500,500,500]
[null,null,null,null,null,null,null,null,null,null,500,500,333.33333333333331]
[null,null,null,null,null,null,null,null,null,null,500,400,500]
[null,null,null,null,null,null,null,null,null,null,450,400,500]
[null,null,null,null,null,null,null,null,null,null,450,400,500]
[null,null,null,null,null,null,null,null,null,null,450,400,500]
[null,null,null,null,null,null,null,null,null,null,400,500,500]
[null,null,null,null,null,null,null,null,null,null,450,400,333.33333333333331]
[null,null,null,null,null,null,null,null,null,null,500,400,333.33333333333331]
[null,null,null,null,null,null,null,null,null,null,450,400,500]
[null,null,null,null,null,null,null,null,null,null,400,500,500]
[null,null,null,null,null,null,null,null,null,null,500,400,500]
[null,null,null,null,null,null,null,null,null,null,400,500,500]
[null,null,null,null,null,null,null,null,null,null,400,500,333.33333333333331]
[null,null,null,null,null,null,null,null,null,null,500,400,333.33333333333331]
[null,null,null,null,null,null,null,null,null,null,450,500,500]
[null,null,null,null,null,null,null,null,null,null,450,400,500]
[null,null,null,null,null,null,null,null,null,null,450,500,500]
[null,null,null,null,null,null,null,null,null,null,500,500,500]
[null,null,null,null,null,null,null,null,null,null,500,500,333.33333333333331]
[null,null,null,null,null,null,null,null,null,null,500,500,333.33333333333331]
[null,null,null,null,null,null,null,null,null,null,350,500,500]
[null,null,null,null,null,null,null,null,null,null,400,500,500]
[null,null,null,null,null,null,null,null,null,null,350,500,333.33333333333331]
[null,null,null,null,null,null,null,null,null,null,450,500,333.33333333333331]
[null,null,null,null,null,null,null,null,null,null,450,500,500]
[null,null,null,null,null,null,null,null,null,null,400,500,333.33333333333331]
[null,null,null,null,null,null,null,null,null,null,450,500,500]
[null,null,null,null,null,null,null,null,null,null,450,500,500]
[null,null,null,null,null,null,null,null,null,null,450,400,333.33333333333331]
[null,null,null,null,null,null,null,null,null,null,400,500,500]
[null,null,null,null,null,null,null,null,null,null,450,500,333.33333333333331]
[null,null,null,null,null,null,null,null,null,null,400,400,500]
[null,null,null,null,null,null,null,null,null,null,500,400,500]
[null,null,null,null,null,null,null,null,null,null,500,400,500]
[null,null,null,null,null,null,null,null,null,null,500,400,333.33333333333331]
[null,null,null,null,null,null,null,null,null,null,500,500,500]
[null,null,null,null,null,null,null,null,null,null,500,500,500]
[null,null,null,null,null,null,null,null,null,null,500,400,500]
[null,null,null,null,null,null,null,null,null,null,500,500,500]
[null,null,null,null,null,null,null,null,null,null,500,500,333.33333333333331]
[null,null,null,null,null,null,null,null,null,null,450,500,500]
[null,null,null,null,null,null,null,null,null,null,500,500,500]
[null,null,null,null,null,null,null,null,null,null,450,500,500]
[null,null,null,null,null,null,null,null,null,null,500,400,500]
[null,null,null,null,null,null,null,null,null,null,400,500,500]
[null,null,null,null,null,null,null,null,null,null,500,500,500]
[null,null,null,null,null,null,null,null,null,null,450,500,500]
[null,null,null,null,null,null,null,null,null,null,400,400,0]
[null,null,null,null,null,null,null,null,null,null,400,400,500]
[null,null,null,null,null,null,null,null,null,null,500,500,500]
[null,null,null,null,null,null,null,null,null,null,450,500,500]
[null,null,null,null,null,null,null,null,null,null,500,500,500]
[null,null,null,null,null,null,null,null,null,null,500,400,500]
[null,null,null,null,null,null,null,null,null,null,500,400,333.33333333333331]
[null,null,null,null,null,null,null,null,null,null,500,400,500]
[null,null,null,null,null,null,null,null,null,null,500,500,500]
[null,null,null,null,null,null,null,null,null,null,500,400,333.33333333333331]
[null,null,null,null,null,null,null,null,null,null,350,500,333.33333333333331]
[null,null,null,null,null,null,null,null,null,null,450,500,500]
[null,null,null,null,null,null,null,null,null,null,500,500,333.33333333333331]
[null,null,null,null,null,null,null,null,null,null,500,400,500]
[null,null,null,null,null,null,null,null,null,null,500,500,333.33333333333331]
[null,null,null,null,null,null,null,null,null,null,500,400,500]
[null,null,null,null,null,null,null,null,null,null,500,400,500]
[null,null,null,null,null,null,null,null,null,null,500,500,333.33333333333331]
[null,null,null,null,null,null,null,null,null,null,500,500,500]
[null,null,null,null,null,null,null,null,null,null,450,500,500]
[null,null,null,null,null,null,null,null,null,null,500,500,333.33333333333331]
[null,null,null,null,null,null,null,null,null,null,500,500,333.33333333333331]
[null,null,null,null,null,null,null,null,null,null,500,400,500]
[null,null,null,null,null,null,null,null,null,null,450,500,500]
[null,null,null,null,null,null,null,null,null,null,450,300,500]
[null,null,null,null,null,null,null,null,null,null,450,400,500]
[null,null,null,null,null,null,null,null,null,null,500,500,500]
[null,null,null,null,null,null,null,null,null,null,400,400,500]
[null,null,null,null,null,null,null,null,null,null,450,500,500]
[null,null,null,null,null,null,null,null,null,null,350,400,500]
[null,null,null,null,null,null,null,null,null,null,500,500,500]
[null,null,null,null,null,null,null,null,null,null,450,400,500]
[null,null,null,null,null,null,null,null,null,null,450,400,500]
[null,null,null,null,null,null,null,null,null,null,450,500,500]
[null,null,null,null,null,null,null,null,null,null,500,500,500]
[null,null,null,null,null,null,null,null,null,null,450,500,500]
[null,null,null,null,null,null,null,null,null,null,500,500,500]
[null,null,null,null,null,null,null,null,null,null,500,500,500]
[null,null,null,null,null,null,null,null,null,null,400,400,500]
[null,null,null,null,null,null,null,null,null,null,450,500,500]
[null,null,null,null,null,null,null,null,null,null,450,400,500]
[null,null,null,null,null,null,null,null,null,null,500,400,500]
[null,null,null,null,null,null,null,null,null,null,450,400,500]
[null,null,null,null,null,null,null,null,null,null,450,500,333.33333333333331]
[null,null,null,null,null,null,null,null,null,null,500,500,333.33333333333331]
[null,null,null,null,null,null,null,null,null,null,450,500,500]
[null,null,null,null,null,null,null,null,null,null,450,500,500]
[null,null,null,null,null,null,null,null,null,null,500,400,500]
[null,null,null,null,null,null,null,null,null,null,500,400,500]
[null,null,null,null,null,null,null,null,null,null,500,500,500]
[null,null,null,null,null,null,null,null,null,null,450,500,500]
[null,null,null,null,null,null,null,null,null,null,450,300,500]
[null,null,null,null,null,null,null,null,null,null,400,500,500]
[null,null,null,null,null,null,null,null,null,null,450,500,500]
[null,null,null,null,null,null,null,null,null,null,450,400,500]
[null,null,null,null,null,null,null,null,null,null,500,400,333.33333333333331]
[null,null,null,null,null,null,null,null,null,null,400,400,333.33333333333331]
[null,null,null,null,null,null,null,null,null,null,450,400,500]
[null,null,null,null,null,null,null,null,null,null,500,500,500]
[null,null,null,null,null,null,null,null,null,null,450,500,333.33333333333331]
[null,null,null,null,null,null,null,null,null,null,500,500,500]
[null,null,null,null,null,null,null,null,null,null,450,400,333.33333333333331]
[null,null,null,null,null,null,null,null,null,null,500,500,333.33333333333331]
[null,null,null,null,null,null,null,null,null,null,500,500,500]
[null,null,null,null,null,null,null,null,null,null,450,500,500]
[null,null,null,null,null,null,null,null,null,null,450,500,500]
[null,null,null,null,null,null,null,null,null,null,500,500,500]
[null,null,null,null,null,null,null,null,null,null,500,400,500]
[null,null,null,null,null,null,null,null,null,null,450,500,500]
[null,null,null,null,null,null,null,null,null,null,450,500,333.33333333333331]
[null,null,null,null,null,null,null,null,null,null,300,500,333.33333333333331]
[null,null,null,null,null,null,null,null,null,null,500,400,333.33333333333331]
[null,null,null,null,null,null,null,null,null,null,350,500,500]
[null,null,null,null,null,null,null,null,null,null,450,500,500]
[null,null,null,null,null,null,null,null,null,null,500,400,333.33333333333331]
[null,null,null,null,null,null,null,null,null,null,300,400,333.33333333333331]
[null,null,null,null,null,null,null,null,null,null,500,500,333.33333333333331]
[null,null,null,null,null,null,null,null,null,null,450,500,500]
[null,null,null,null,null,null,null,null,null,null,400,400,500]
[null,null,null,null,null,null,null,null,null,null,400,500,333.33333333333331]
[null,null,null,null,null,null,null,null,null,null,400,200,500]
[null,null,null,null,null,null,null,null,null,null,500,400,500]
[null,null,null,null,null,null,null,null,null,null,450,400,500]
[null,null,null,null,null,null,null,null,null,null,500,500,333.33333333333331]
[null,null,null,null,null,null,null,null,null,null,450,400,333.33333333333331]
[null,null,null,null,null,null,null,null,null,null,500,300,500]
[null,null,null,null,null,null,null,null,null,null,400,500,333.33333333333331]
[null,null,null,null,null,null,null,null,null,null,400,400,500]
[null,null,null,null,null,null,null,null,null,null,500,500,500]
[null,null,null,null,null,null,null,null,null,null,450,500,500]
[null,null,null,null,null,null,null,null,null,null,500,500,333.33333333333331]
[null,null,null,null,null,null,null,null,null,null,500,500,500]
[null,null,null,null,null,null,null,null,null,null,500,500,333.33333333333331]
[null,null,null,null,null,null,null,null,null,null,450,500,333.33333333333331]
[null,null,null,null,null,null,null,null,null,null,450,500,500]
[null,null,null,null,null,null,null,null,null,null,500,500,500]
[null,null,null,null,null,null,null,null,null,null,500,500,500]
[null,null,null,null,null,null,null,null,null,null,450,500,333.33333333333331]
[null,null,null,null,null,null,null,null,null,null,500,400,500]
[null,null,null,null,null,null,null,null,null,null,500,500,500]
[null,null,null,null,null,null,null,null,null,null,450,500,500]
[null,null,null,null,null,null,null,null,null,null,450,500,333.33333333333331]
[null,null,null,null,null,null,null,null,null,null,500,500,500]
[null,null,null,null,null,null,null,null,null,null,400,500,333.33333333333331]
[null,null,null,null,null,null,null,null,null,null,400,500,500]
[null,null,null,null,null,null,null,null,null,null,450,300,500]
[null,null,null,null,null,null,null,null,null,null,400,400,500]
[null,null,null,null,null,null,null,null,null,null,500,500,500]
[null,null,null,null,null,null,null,null,null,null,450,500,333.33333333333331]
[null,null,null,null,null,null,null,null,null,null,450,500,500]
[null,null,null,null,null,null,null,null,null,null,450,500,333.33333333333331]
[null,null,null,null,null,null,null,null,null,null,450,500,166.66666666666666]
[null,null,null,null,null,null,null,null,null,null,450,500,333.33333333333331]
[null,null,null,null,null,null,null,null,null,null,400,500,500]
[null,null,null,null,null,null,null,null,null,null,400,300,500]
[null,null,null,null,null,null,null,null,null,null,450,400,500]
[null,null,null,null,null,null,null,null,null,null,450,500,500]
[null,null,null,null,null,null,null,null,null,null,500,400,500]
[null,null,null,null,null,null,null,null,null,null,500,500,500]
[null,null,null,null,null,null,null,null,null,null,450,500,500]
[null,null,null,null,null,null,null,null,null,null,450,500,333.33333333333331]
[null,null,null,null,null,null,null,null,null,null,500,500,333.33333333333331]
[null,null,null,null,null,null,null,null,null,null,450,400,333.33333333333331]
[null,null,null,null,null,null,null,null,null,null,450,500,500]
[null,null,null,null,null,null,null,null,null,null,500,400,500]
[null,null,null,null,null,null,null,null,null,null,400,500,500]
[null,null,null,null,null,null,null,null,null,null,450,500,500]
[null,null,null,null,null,null,null,null,null,null,500,500,333.33333333333331]
[null,null,null,null,null,null,null,null,null,null,450,400,500]
[null,null,null,null,null,null,null,null,null,null,450,500,500]
[null,null,null,null,null,null,null,null,null,null,450,500,500]
[null,null,null,null,null,null,null,null,null,null,450,500,500]
[null,null,null,null,null,null,null,null,null,null,500,500,500]
[null,null,null,null,null,null,null,null,null,null,500,500,500]
[null,null,null,null,null,null,null,null,null,null,400,500,333.33333333333331]
[null,null,null,null,null,null,null,null,null,null,450,400,333.33333333333331]
[null,null,null,null,null,null,null,null,null,null,450,500,500]
[null,null,null,null,null,null,null,null,null,null,500,500,333.33333333333331]
[null,null,null,null,null,null,null,null,null,null,500,400,500]
[null,null,null,null,null,null,null,null,null,null,500,500,500]
[null,null,null,null,null,null,null,null,null,null,450,500,500]
[null,null,null,null,null,null,null,null,null,null,450,500,333.33333333333331]
[null,null,null,null,null,null,null,null,null,null,450,500,500]
[null,null,null,null,null,null,null,null,null,null,500,300,500]
[null,null,null,null,null,null,null,null,null,null,400,500,500]
[null,null,null,null,null,null,null,null,null,null,500,500,500]
[null,null,null,null,null,null,null,null,null,null,450,500,500]
[null,null,null,null,null,null,null,null,null,null,500,500,500]
[null,null,null,null,null,null,null,null,null,null,500,500,333.33333333333331]
[null,null,null,null,null,null,null,null,null,null,500,500,500]
[null,null,null,null,null,null,null,null,null,null,450,500,333.33333333333331]
[null,null,null,null,null,null,null,null,null,null,450,500,500]
[null,null,null,null,null,null,null,null,null,null,500,400,500]
[null,null,null,null,null,null,null,null,null,null,500,500,500]
[null,null,null,null,null,null,null,null,null,null,400,300,333.33333333333331]
[null,null,null,null,null,null,null,null,null,null,450,500,500]
[null,null,null,null,null,null,null,null,null,null,450,500,500]
[null,null,null,null,null,null,null,null,null,null,500,500,500]
[null,null,null,null,null,null,null,null,null,null,500,500,500]
[null,null,null,null,null,null,null,null,null,null,500,500,500]
[null,null,null,null,null,null,null,null,null,null,450,500,500]
[null,null,null,null,null,null,null,null,null,null,400,400,500]
[null,null,null,null,null,null,null,null,null,null,500,500,500]
[null,null,null,null,null,null,null,null,null,null,500,500,500]
[null,null,null,null,null,null,null,null,null,null,450,400,500]
[null,null,null,null,null,null,null,null,null,null,500,500,500]
[null,null,null,null,null,null,null,null,null,null,400,500,500]
[null,null,null,null,null,null,null,null,null,null,350,500,333.33333333333331]
[null,null,null,null,null,null,null,null,null,null,450,400,500]
[null,null,null,null,null,null,null,null,null,null,450,500,500]
[null,null,null,null,null,null,null,null,null,null,400,500,500]
[null,null,null,null,null,null,null,null,null,null,400,500,500]
[null,null,null,null,null,null,null,null,null,null,400,500,500]
[null,null,null,null,null,null,null,null,null,null,450,500,500]
[null,null,null,null,null,null,null,null,null,null,500,500,500]
[null,null,null,null,null,null,null,null,null,null,450,500,333.33333333333331]
[null,null,null,null,null,null,null,null,null,null,450,500,500]
[null,null,null,null,null,null,null,null,null,null,450,400,333.33333333333331]
[null,null,null,null,null,null,null,null,null,null,500,500,500]
[null,null,null,null,null,null,null,null,null,null,400,500,500]
[null,null,null,null,null,null,null,null,null,null,450,500,500]
[null,null,null,null,null,null,null,null,null,null,400,500,500]
[null,null,null,null,null,null,null,null,null,null,450,500,500]
[null,null,null,null,null,null,null,null,null,null,450,500,166.66666666666666]
[null,null,null,null,null,null,null,null,null,null,400,500,333.33333333333331]
[null,null,null,null,null,null,null,null,null,null,500,500,500]
[null,null,null,null,null,null,null,null,null,null,500,400,166.66666666666666]
[null,null,null,null,null,null,null,null,null,null,400,500,500]
[null,null,null,null,null,null,null,null,null,null,450,400,500]
[null,null,null,null,null,null,null,null,null,null,450,500,333.33333333333331]
[null,null,null,null,null,null,null,null,null,null,500,500,333.33333333333331]
[null,null,null,null,null,null,null,null,null,null,450,500,500]
[null,null,null,null,null,null,null,null,null,null,500,500,333.33333333333331]
[null,null,null,null,null,null,null,null,null,null,500,500,500]
[null,null,null,null,null,null,null,null,null,null,500,400,500]
[null,null,null,null,null,null,null,null,null,null,400,500,500]
[null,null,null,null,null,null,null,null,null,null,400,500,500]
[null,null,null,null,null,null,null,null,null,null,400,400,500]
[null,null,null,null,null,null,null,null,null,null,450,400,333.33333333333331]
[null,null,null,null,null,null,null,null,null,null,500,500,500]
[null,null,null,null,null,null,null,null,null,null,450,400,333.33333333333331]
[null,null,null,null,null,null,null,null,null,null,450,500,500]
[null,null,null,null,null,null,null,null,null,null,500,500,500]
[null,null,null,null,null,null,null,null,null,null,500,500,500]
[null,null,null,null,null,null,null,null,null,null,500,500,500]
[null,null,null,null,null,null,null,null,null,null,500,400,500]
[null,null,null,null,null,null,null,null,null,null,500,500,500]
[null,null,null,null,null,null,null,null,null,null,500,500,500]
[null,null,null,null,null,null,null,null,null,null,450,400,500]
[null,null,null,null,null,null,null,null,null,null,500,400,500]
[null,null,null,null,null,null,null,null,null,null,500,500,500]
[null,null,null,null,null,null,null,null,null,null,450,500,500]
[null,null,null,null,null,null,null,null,null,null,500,500,500]
[null,null,null,null,null,null,null,null,null,null,500,500,500]
[null,null,null,null,null,null,null,null,null,null,450,500,500]
[null,null,null,null,null,null,null,null,null,null,500,400,500]
[null,null,null,null,null,null,null,null,null,null,450,500,500]
[null,null,null,null,null,null,null,null,null,null,450,400,500]
[null,null,null,null,null,null,null,null,null,null,450,400,500]
[null,null,null,null,null,null,null,null,null,null,450,400,500]
[null,null,null,null,null,null,null,null,null,null,500,300,500]
[null,null,null,null,null,null,null,null,null,null,450,500,500]
[null,null,null,null,null,null,null,null,null,null,450,400,500]
[null,null,null,null,null,null,null,null,null,null,450,500,500]
[null,null,null,null,null,null,null,null,null,null,400,300,333.33333333333331]
[null,null,null,null,null,null,null,null,null,null,500,500,500]
[null,null,null,null,null,null,null,null,null,null,450,500,500]
[null,null,null,null,null,null,null,null,null,null,400,500,333.33333333333331]
[null,null,null,null,null,null,null,null,null,null,400,400,500]
[null,null,null,null,null,null,null,null,null,null,500,300,500]
[null,null,null,null,null,null,null,null,null,null,500,500,500]
[null,null,null,null,null,null,null,null,null,null,400,400,500]
[null,null,null,null,null,null,null,null,null,null,500,500,500]
[null,null,null,null,null,null,null,null,null,null,300,500,500]
[null,null,null,null,null,null,null,null,null,null,450,500,500]
[null,null,null,null,null,null,null,null,null,null,500,500,333.33333333333331]
[null,null,null,null,null,null,null,null,null,null,450,400,500]
[null,null,null,null,null,null,null,null,null,null,500,400,500]
[null,null,null,null,null,null,null,null,null,null,450,500,500]
[null,null,null,null,null,null,null,null,null,null,500,400,333.33333333333331]
[null,null,null,null,null,null,null,null,null,null,500,500,500]
[null,null,null,null,null,null,null,null,null,null,450,400,500]
[null,null,null,null,null,null,null,null,null,null,500,500,500]
[null,null,null,null,null,null,null,null,null,null,450,500,500]
[null,null,null,null,null,null,null,null,null,null,400,500,500]
[null,null,null,null,null,null,null,null,null,null,350,500,500]
[null,null,null,null,null,null,null,null,null,null,500,500,500]
[null,null,null,null,null,null,null,null,null,null,450,500,500]
[null,null,null,null,null,null,null,null,null,null,500,400,500]
[null,null,null,null,null,null,null,null,null,null,450,300,500]
[null,null,null,null,null,null,null,null,null,null,450,500,333.33333333333331]
[null,null,null,null,null,null,null,null,null,null,500,500,500]
[null,null,null,null,null,null,null,null,null,null,500,500,166.66666666666666]
[null,null,null,null,null,null,null,null,null,null,500,500,500]
[null,null,null,null,null,null,null,null,null,null,400,500,333.33333333333331]
[null,null,null,null,null,null,null,null,null,null,450,400,500]
[null,null,null,null,null,null,null,null,null,null,500,500,500]
[null,null,null,null,null,null,null,null,null,null,400,500,500]
[null,null,null,null,null,null,null,null,null,null,400,500,500]
[null,null,null,null,null,null,null,null,null,null,500,500,500]
[null,null,null,null,null,null,null,null,null,null,500,500,333.33333333333331]
[null,null,null,null,null,null,null,null,null,null,500,300,333.33333333333331]
[null,null,null,null,null,null,null,null,null,null,450,500,500]
[null,null,null,null,null,null,null,null,null,null,450,400,500]
[null,null,null,null,null,null,null,null,null,null,450,400,333.33333333333331]
[null,null,null,null,null,null,null,null,null,null,500,500,500]
[null,null,null,null,null,null,null,null,null,null,400,500,500]
[null,null,null,null,null,null,null,null,null,null,450,400,500]
[null,null,null,null,null,null,null,null,null,null,500,500,500]
[null,null,null,null,null,null,null,null,null,null,500,500,500]
[null,null,null,null,null,null,null,null,null,null,350,500,333.33333333333331]
[null,null,null,null,null,null,null,null,null,null,450,400,500]
[null,null,null,null,null,null,null,null,null,null,500,500,500]
[null,null,null,null,null,null,null,null,null,null,450,400,500]
[null,null,null,null,null,null,null,null,null,null,500,500,166.66666666666666]
[null,null,null,null,null,null,null,null,null,null,400,500,333.33333333333331]
[null,null,null,null,null,null,null,null,null,null,500,500,500]
[null,null,null,null,null,null,null,null,null,null,500,300,500]
[null,null,null,null,null,null,null,null,null,null,500,400,500]
[null,null,null,null,null,null,null,null,null,null,450,500,500]
[null,null,null,null,null,null,null,null,null,null,500,400,500]
[null,null,null,null,null,null,null,null,null,null,450,500,500]
[null,null,null,null,null,null,null,null,null,null,450,400,500]
[null,null,null,null,null,null,null,null,null,null,500,400,333.33333333333331]
[null,null,null,null,null,null,null,null,null,null,500,500,500]
[null,null,null,null,null,null,null,null,null,null,400,500,500]
[null,null,null,null,null,null,null,null,null,null,450,500,500]
[null,null,null,null,null,null,null,null,null,null,450,500,500]
[null,null,null,null,null,null,null,null,null,null,450,500,500]
[null,null,null,null,null,null,null,null,null,null,500,400,500]
[null,null,null,null,null,null,null,null,null,null,500,500,333.33333333333331]
[null,null,null,null,null,null,null,null,null,null,500,500,333.33333333333331]
[null,null,null,null,null,null,null,null,null,null,500,500,500]
[null,null,null,null,null,null,null,null,null,null,400,500,500]
[null,null,null,null,null,null,null,null,null,null,500,500,333.33333333333331]
[null,null,null,null,null,null,null,null,null,null,450,500,500]
[null,null,null,null,null,null,null,null,null,null,400,500,500]
[null,null,null,null,null,null,null,null,null,null,500,400,500]
[null,null,null,null,null,null,null,null,null,null,500,300,500]
[null,null,null,null,null,null,null,null,null,null,500,400,333.33333333333331]
[null,null,null,null,null,null,null,null,null,null,500,500,333.33333333333331]
[null,null,null,null,null,null,null,null,null,null,450,400,500]
[null,null,null,null,null,null,null,null,null,null,450,400,500]
[null,null,null,null,null,null,null,null,null,null,400,400,500]
[null,null,null,null,null,null,null,null,null,null,450,500,500]
[null,null,null,null,null,null,null,null,null,null,400,500,333.33333333333331]
[null,null,null,null,null,null,null,null,null,null,400,500,500]
[null,null,null,null,null,null,null,null,null,null,450,300,500]
[null,null,null,null,null,null,null,null,null,null,450,500,500]
[null,null,null,null,null,null,null,null,null,null,500,500,500]
[null,null,null,null,null,null,null,null,null,null,450,500,333.33333333333331]
[null,null,null,null,null,null,null,null,null,null,500,500,500]
[null,null,null,null,null,null,null,null,null,null,500,500,500]
[null,null,null,null,null,null,null,null,null,null,400,500,500]
[null,null,null,null,null,null,null,null,null,null,450,400,500]
[null,null,null,null,null,null,null,null,null,null,450,500,500]
[null,null,null,null,null,null,null,null,null,null,450,400,333.33333333333331]
[null,null,null,null,null,null,null,null,null,null,450,500,333.33333333333331]
[null,null,null,null,null,null,null,null,null,null,450,400,500]
[null,null,null,null,null,null,null,null,null,null,500,400,333.33333333333331]
[null,null,null,null,null,null,null,null,null,null,450,500,500]
[null,null,null,null,null,null,null,null,null,null,500,500,500]
[null,null,null,null,null,null,null,null,null,null,450,500,500]
[null,null,null,null,null,null,null,null,null,null,500,500,500]
[null,null,null,null,null,null,null,null,null,null,450,500,500]
[null,null,null,null,null,null,null,null,null,null,450,400,500]
[null,null,null,null,null,null,null,null,null,null,400,500,500]
[null,null,null,null,null,null,null,null,null,null,450,500,333.33333333333331]
[null,null,null,null,null,null,null,null,null,null,500,400,333.33333333333331]
[null,null,null,null,null,null,null,null,null,null,450,500,500]
[null,null,null,null,null,null,null,null,null,null,350,500,333.33333333333331]
[null,null,null,null,null,null,null,null,null,null,450,500,500]
[null,null,null,null,null,null,null,null,null,null,500,400,333.33333333333331]
[null,null,null,null,null,null,null,null,null,null,500,500,500]
[null,null,null,null,null,null,null,null,null,null,500,300,333.33333333333331]
[null,null,null,null,null,null,null,null,null,null,450,400,500]
[null,null,null,null,null,null,null,null,null,null,400,500,500]
[null,null,null,null,null,null,null,null,null,null,400,500,500]
[null,null,null,null,null,null,null,null,null,null,500,500,333.33333333333331]
[null,null,null,null,null,null,null,null,null,null,450,500,500]
[null,null,null,null,null,null,null,null,null,null,500,500,500]
[null,null,null,null,null,null,null,null,null,null,400,500,500]
[null,null,null,null,null,null,null,null,null,null,500,500,500]
[null,null,null,null,null,null,null,null,null,null,450,300,500]
[null,null,null,null,null,null,null,null,null,null,400,500,500]
[null,null,null,null,null,null,null,null,null,null,400,400,500]
[null,null,null,null,null,null,null,null,null,null,500,500,166.66666666666666]
[null,null,null,null,null,null,null,null,null,null,450,500,333.33333333333331]
[null,null,null,null,null,null,null,null,null,null,500,500,333.33333333333331]
[null,null,null,null,null,null,null,null,null,null,500,500,500]
[null,null,null,null,null,null,null,null,null,null,500,500,500]
[null,null,null,null,null,null,null,null,null,null,400,400,500]
[null,null,null,null,null,null,null,null,null,null,500,300,500]
[null,null,null,null,null,null,null,null,null,null,500,400,500]
[null,null,null,null,null,null,null,null,null,null,400,400,333.33333333333331]
[null,null,null,null,null,null,null,null,null,null,400,400,500]
[null,null,null,null,null,null,null,null,null,null,500,500,500]
[null,null,null,null,null,null,null,null,null,null,500,500,500]
[null,null,null,null,null,null,null,null,null,null,500,400,500]
[null,null,null,null,null,null,null,null,null,null,450,400,500]
[null,null,null,null,null,null,null,null,null,null,500,400,500]
[null,null,null,null,null,null,null,null,null,null,400,500,500]
[null,null,null,null,null,null,null,null,null,null,350,500,500]
[null,null,null,null,null,null,null,null,null,null,500,500,500]
[null,null,null,null,null,null,null,null,null,null,400,400,500]
[null,null,null,null,null,null,null,null,null,null,500,500,500]
[null,null,null,null,null,null,null,null,null,null,400,500,500]
[null,null,null,null,null,null,null,null,null,null,500,500,500]
[null,null,null,null,null,null,null,null,null,null,450,500,500]
[null,null,null,null,null,null,null,null,null,null,500,500,333.33333333333331]
[null,null,null,null,null,null,null,null,null,null,400,400,500]
[null,null,null,null,null,null,null,null,null,null,500,500,500]
[null,null,null,null,null,null,null,null,null,null,500,400,500]
[null,null,null,null,null,null,null,null,null,null,400,500,500]
[null,null,null,null,null,null,null,null,null,null,450,500,500]
[null,null,null,null,null,null,null,null,null,null,500,500,333.33333333333331]
[null,null,null,null,null,null,null,null,null,null,450,500,500]
[null,null,null,null,null,null,null,null,null,null,500,400,500]
[null,null,null,null,null,null,null,null,null,null,500,500,500]
[null,null,null,null,null,null,null,null,null,null,400,500,500]
[null,null,null,null,null,null,null,null,null,null,500,400,166.66666666666666]
[null,null,null,null,null,null,null,null,null,null,500,500,500]
[null,null,null,null,null,null,null,null,null,null,500,400,500]
[null,null,null,null,null,null,null,null,null,null,500,400,500]
[null,null,null,null,null,null,null,null,null,null,500,500,500]
[null,null,null,null,null,null,null,null,null,null,400,400,500]
[null,null,null,null,null,null,null,null,null,null,450,500,333.33333333333331]
[null,null,null,null,null,null,null,null,null,null,400,500,333.33333333333331]
[null,null,null,null,null,null,null,null,null,null,500,500,500]
[null,null,null,null,null,null,null,null,null,null,500,500,500]
[null,null,null,null,null,null,null,null,null,null,500,500,500]
[null,null,null,null,null,null,null,null,null,null,400,500,500]
[null,null,null,null,null,null,null,null,null,null,400,500,333.33333333333331]
[null,null,null,null,null,null,null,null,null,null,500,500,500]
[null,null,null,null,null,null,null,null,null,null,500,500,500]
[null,null,null,null,null,null,null,null,null,null,500,500,500]
[null,null,null,null,null,null,null,null,null,null,500,400,500]
[null,null,null,null,null,null,null,null,null,null,450,500,333.33333333333331]
[null,null,null,null,null,null,null,null,null,null,500,500,500]
[null,null,null,null,null,null,null,null,null,null,500,500,500]
[null,null,null,null,null,null,null,null,null,null,400,400,500]
[null,null,null,null,null,null,null,null,null,null,400,400,500]
[null,null,null,null,null,null,null,null,null,null,500,400,333.33333333333331]
[null,null,null,null,null,null,null,null,null,null,350,500,500]
[null,null,null,null,null,null,null,null,null,null,500,400,500]
[null,null,null,null,null,null,null,null,null,null,500,500,500]
[null,null,null,null,null,null,null,null,null,null,450,500,500]
[null,null,null,null,null,null,null,null,null,null,400,500,500]
[null,null,null,null,null,null,null,null,null,null,450,500,500]
[null,null,null,null,null,null,null,null,null,null,450,400,500]
[null,null,null,null,null,null,null,null,null,null,450,500,333.33333333333331]
[null,null,null,null,null,null,null,null,null,null,450,500,500]
[null,null,null,null,null,null,null,null,null,null,450,500,333.33333333333331]
[null,null,null,null,null,null,null,null,null,null,450,500,500]
[null,null,null,null,null,null,null,null,null,null,450,500,500]
[null,null,null,null,null,null,null,null,null,null,400,300,333.33333333333331]
[null,null,null,null,null,null,null,null,null,null,500,500,500]
[null,null,null,null,null,null,null,null,null,null,450,500,500]
[null,null,null,null,null,null,null,null,null,null,450,500,333.33333333333331]
[null,null,null,null,null,null,null,null,null,null,450,400,500]
[null,null,null,null,null,null,null,null,null,null,450,500,500]
[null,null,null,null,null,null,null,null,null,null,450,500,500]
[null,null,null,null,null,null,null,null,null,null,450,500,333.33333333333331]
[null,null,null,null,null,null,null,null,null,null,450,400,333.33333333333331]
[null,null,null,null,null,null,null,null,null,null,500,400,500]
[null,null,null,null,null,null,null,null,null,null,450,500,333.33333333333331]
[null,null,null,null,null,null,null,null,null,null,400,500,500]
[null,null,null,null,null,null,null,null,null,null,500,400,500]
[null,null,null,null,null,null,null,null,null,null,450,400,500]
[null,null,null,null,null,null,null,null,null,null,500,500,333.33333333333331]
[null,null,null,null,null,null,null,null,null,null,500,500,500]
[null,null,null,null,null,null,null,null,null,null,450,500,500]
[null,null,null,null,null,null,null,null,null,null,500,500,500]
[null,null,null,null,null,null,null,null,null,null,450,500,500]
[null,null,null,null,null,null,null,null,null,null,500,500,500]
[null,null,null,null,null,null,null,null,null,null,500,400,500]
[null,null,null,null,null,null,null,null,null,null,450,400,500]
[null,null,null,null,null,null,null,null,null,null,400,400,333.33333333333331]
[null,null,null,null,null,null,null,null,null,null,500,500,500]
[null,null,null,null,null,null,null,null,null,null,400,400,500]
[null,null,null,null,null,null,null,null,null,null,450,500,500]
[null,null,null,null,null,null,null,null,null,null,450,500,500]
[null,null,null,null,null,null,null,null,null,null,450,500,333.33333333333331]
[null,null,null,null,null,null,null,null,null,null,450,500,500]
[null,null,null,null,null,null,null,null,null,null,500,500,500]
[null,null,null,null,null,null,null,null,null,null,500,400,333.33333333333331]
[null,null,null,null,null,null,null,null,null,null,500,500,500]
[null,null,null,null,null,null,null,null,null,null,450,500,500]
[null,null,null,null,null,null,null,null,null,null,450,500,333.33333333333331]
[null,null,null,null,null,null,null,null,null,null,450,500,500]
[null,null,null,null,null,null,null,null,null,null,450,500,500]
[null,null,null,null,null,null,null,null,null,null,500,500,500]
[null,null,null,null,null,null,null,null,null,null,500,500,500]
[null,null,null,null,null,null,null,null,null,null,350,500,333.33333333333331]
[null,null,null,null,null,null,null,null,null,null,400,500,333.33333333333331]
[null,null,null,null,null,null,null,null,null,null,500,500,500]
[null,null,null,null,null,null,null,null,null,null,450,500,333.33333333333331]
[null,null,null,null,null,null,null,null,null,null,450,500,500]
[null,null,null,null,null,null,null,null,null,null,500,500,500]
[null,null,null,null,null,null,null,null,null,null,350,500,500]
[null,null,null,null,null,null,null,null,null,null,400,500,500]
[null,null,null,null,null,null,null,null,null,null,500,500,500]
[null,null,null,null,null,null,null,null,null,null,450,500,500]
[null,null,null,null,null,null,null,null,null,null,450,500,333.33333333333331]
[null,null,null,null,null,null,null,null,null,null,500,500,500]
[null,null,null,null,null,null,null,null,null,null,450,500,333.33333333333331]
[null,null,null,null,null,null,null,null,null,null,500,400,500]
[null,null,null,null,null,null,null,null,null,null,500,500,333.33333333333331]
[null,null,null,null,null,null,null,null,null,null,500,300,500]
[null,null,null,null,null,null,null,null,null,null,450,500,500]
[null,null,null,null,null,null,null,null,null,null,500,300,500]
[null,null,null,null,null,null,null,null,null,null,500,500,500]
[null,null,null,null,null,null,null,null,null,null,500,400,500]
[null,null,null,null,null,null,null,null,null,null,400,400,500]
[null,null,null,null,null,null,null,null,null,null,400,500,500]
[null,null,null,null,null,null,null,null,null,null,450,500,500]
[null,null,null,null,null,null,null,null,null,null,500,500,500]
[null,null,null,null,null,null,null,null,null,null,450,500,500]
[null,null,null,null,null,null,null,null,null,null,450,500,500]
[null,null,null,null,null,null,null,null,null,null,450,500,500]
[null,null,null,null,null,null,null,null,null,null,500,500,500]
[null,null,null,null,null,null,null,null,null,null,450,400,500]
[null,null,null,null,null,null,null,null,null,null,450,500,500]
[null,null,null,null,null,null,null,null,null,null,450,500,500]
[null,null,null,null,null,null,null,null,null,null,400,500,500]
[null,null,null,null,null,null,null,null,null,null,450,500,333.33333333333331]
[null,null,null,null,null,null,null,null,null,null,500,500,500]
[null,null,null,null,null,null,null,null,null,null,500,500,500]
[null,null,null,null,null,null,null,null,null,null,450,400,500]
[null,null,null,null,null,null,null,null,null,null,400,500,500]
[null,null,null,null,null,null,null,null,null,null,450,500,500]
[null,null,null,null,null,null,null,null,null,null,500,400,500]
[null,null,null,null,null,null,null,null,null,null,500,500,500]
[null,null,null,null,null,null,null,null,null,null,450,500,333.33333333333331]
[null,null,null,null,null,null,null,null,null,null,450,400,333.33333333333331]
[null,null,null,null,null,null,null,null,null,null,500,500,500]
[null,null,null,null,null,null,null,null,null,null,500,400,500]
[null,null,null,null,null,null,null,null,null,null,450,500,333.33333333333331]
[null,null,null,null,null,null,null,null,null,null,450,500,500]
[null,null,null,null,null,null,null,null,null,null,500,500,500]
[null,null,null,null,null,null,null,null,null,null,300,400,500]
[null,null,null,null,null,null,null,null,null,null,450,400,166.66666666666666]
[null,null,null,null,null,null,null,null,null,null,500,500,500]
[null,null,null,null,null,null,null,null,null,null,450,500,333.33333333333331]
[null,null,null,null,null,null,null,null,null,null,450,400,500]
[null,null,null,null,null,null,null,null,null,null,400,300,500]
[null,null,null,null,null,null,null,null,null,null,500,400,500]
[null,null,null,null,null,null,null,null,null,null,500,500,333.33333333333331]
[null,null,null,null,null,null,null,null,null,null,500,400,500]
[null,null,null,null,null,null,null,null,null,null,500,400,500]
[null,null,null,null,null,null,null,null,null,null,400,500,500]
[null,null,null,null,null,null,null,null,null,null,450,400,500]
[null,null,null,null,null,null,null,null,null,null,500,500,500]
[null,null,null,null,null,null,null,null,null,null,450,300,500]
[null,null,null,null,null,null,null,null,null,null,450,500,500]
[null,null,null,null,null,null,null,null,null,null,350,500,500]
[null,null,null,null,null,null,null,null,null,null,500,500,500]
[null,null,null,null,null,null,null,null,null,null,450,400,333.33333333333331]
[null,null,null,null,null,null,null,null,null,null,450,500,333.33333333333331]
[null,null,null,null,null,null,null,null,null,null,450,300,500]
[null,null,null,null,null,null,null,null,null,null,450,500,333.33333333333331]
[null,null,null,null,null,null,null,null,null,null,500,400,333.33333333333331]
[null,null,null,null,null,null,null,null,null,null,500,500,500]
[null,null,null,null,null,null,null,null,null,null,450,400,500]
[null,null,null,null,null,null,null,null,null,null,500,400,333.33333333333331]
[null,null,null,null,null,null,null,null,null,null,400,500,500]
[null,null,null,null,null,null,null,null,null,null,400,500,500]
[null,null,null,null,null,null,null,null,null,null,450,500,500]
[null,null,null,null,null,null,null,null,null,null,500,500,500]
[null,null,null,null,null,null,null,null,null,null,500,500,500]
[null,null,null,null,null,null,null,null,null,null,450,500,166.66666666666666]
[null,null,null,null,null,null,null,null,null,null,500,300,500]
[null,null,null,null,null,null,null,null,null,null,450,500,500]
[null,null,null,null,null,null,null,null,null,null,450,500,166.66666666666666]
[null,null,null,null,null,null,null,null,null,null,500,400,500]
[null,null,null,null,null,null,null,null,null,null,500,300,500]
[null,null,null,null,null,null,null,null,null,null,300,500,500]
[null,null,null,null,null,null,null,null,null,null,450,500,500]
[null,null,null,null,null,null,null,null,null,null,500,400,500]
[null,null,null,null,null,null,null,null,null,null,450,400,333.33333333333331]
[null,null,null,null,null,null,null,null,null,null,500,400,500]
[null,null,null,null,null,null,null,null,null,null,400,400,500]
[null,null,null,null,null,null,null,null,null,null,450,400,500]
[null,null,null,null,null,null,null,null,null,null,400,500,500]
[null,null,null,null,null,null,null,null,null,null,500,300,166.66666666666666]
[null,null,null,null,null,null,null,null,null,null,500,500,500]
[null,null,null,null,null,null,null,null,null,null,400,500,500]
[null,null,null,null,null,null,null,null,null,null,450,400,500]
[null,null,null,null,null,null,null,null,null,null,450,500,500]
[null,null,null,null,null,null,null,null,null,null,500,500,333.33333333333331]
[null,null,null,null,null,null,null,null,null,null,500,400,500]
[null,null,null,null,null,null,null,null,null,null,500,400,500]
[null,null,null,null,null,null,null,null,null,null,400,400,500]
[null,null,null,null,null,null,null,null,null,null,400,500,500]
[null,null,null,null,null,null,null,null,null,null,500,500,166.66666666666666]
[null,null,null,null,null,null,null,null,null,null,400,400,500]
[null,null,null,null,null,null,null,null,null,null,450,300,500]
[null,null,null,null,null,null,null,null,null,null,450,500,500]
[null,null,null,null,null,null,null,null,null,null,400,400,500]
[null,null,null,null,null,null,null,null,null,null,450,500,500]
[null,null,null,null,null,null,null,null,null,null,400,500,500]
[null,null,null,null,null,null,null,null,null,null,500,500,500]
[null,null,null,null,null,null,null,null,null,null,450,500,500]
[null,null,null,null,null,null,null,null,null,null,500,400,500]
[null,null,null,null,null,null,null,null,null,null,500,500,500]
[null,null,null,null,null,null,null,null,null,null,450,500,500]
[null,null,null,null,null,null,null,null,null,null,450,500,500]
[null,null,null,null,null,null,null,null,null,null,400,400,500]
[null,null,null,null,null,null,null,null,null,null,400,500,500]
[null,null,null,null,null,null,null,null,null,null,500,300,333.33333333333331]
[null,null,null,null,null,null,null,null,null,null,450,500,500]
[null,null,null,null,null,null,null,null,null,null,500,400,500]
[null,null,null,null,null,null,null,null,null,null,400,500,500]
[null,null,null,null,null,null,null,null,null,null,450,500,333.33333333333331]
[null,null,null,null,null,null,null,null,null,null,500,500,333.33333333333331]
[null,null,null,null,null,null,null,null,null,null,450,500,500]
[null,null,null,null,null,null,null,null,null,null,500,400,500]
[null,null,null,null,null,null,null,null,null,null,500,500,500]
[null,null,null,null,null,null,null,null,null,null,450,500,500]
[null,null,null,null,null,null,null,null,null,null,450,500,500]
[null,null,null,null,null,null,null,null,null,null,500,300,500]
[null,null,null,null,null,null,null,null,null,null,450,500,500]
[null,null,null,null,null,null,null,null,null,null,500,400,333.33333333333331]
[null,null,null,null,null,null,null,null,null,null,500,400,500]
[null,null,null,null,null,null,null,null,null,null,500,500,166.66666666666666]
[null,null,null,null,null,null,null,null,null,null,450,400,500]
[null,null,null,null,null,null,null,null,null,null,500,500,500]
[null,null,null,null,null,null,null,null,null,null,500,400,500]
[null,null,null,null,null,null,null,null,null,null,500,500,500]
[null,null,null,null,null,null,null,null,null,null,450,400,500]
[null,null,null,null,null,null,null,null,null,null,500,500,500]
[null,null,null,null,null,null,null,null,null,null,500,500,500]
[null,null,null,null,null,null,null,null,null,null,500,300,500]
[null,null,null,null,null,null,null,null,null,null,500,400,500]
[null,null,null,null,null,null,null,null,null,null,450,300,500]
[null,null,null,null,null,null,null,null,null,null,450,500,500]
[null,null,null,null,null,null,null,null,null,null,350,500,333.33333333333331]
[null,null,null,null,null,null,null,null,null,null,500,500,333.33333333333331]
[null,null,null,null,null,null,null,null,null,null,500,500,500]
[null,null,null,null,null,null,null,null,null,null,400,400,500]
[null,null,null,null,null,null,null,null,null,null,400,500,500]
[null,null,null,null,null,null,null,null,null,null,500,500,500]
[null,null,null,null,null,null,null,null,null,null,500,400,500]
[null,null,null,null,null,null,null,null,null,null,500,300,500]
[null,null,null,null,null,null,null,null,null,null,300,300,500]
[null,null,null,null,null,null,null,null,null,null,500,500,500]
[null,null,null,null,null,null,null,null,null,null,350,500,500]
[null,null,null,null,null,null,null,null,null,null,450,400,500]
[null,null,null,null,null,null,null,null,null,null,450,400,333.33333333333331]
[null,null,null,null,null,null,null,null,null,null,450,500,333.33333333333331]
[null,null,null,null,null,null,null,null,null,null,450,500,500]
[null,null,null,null,null,null,null,null,null,null,500,500,500]
[null,null,null,null,null,null,null,null,null,null,500,500,500]
[null,null,null,null,null,null,null,null,null,null,500,500,500]
[null,null,null,null,null,null,null,null,null,null,450,500,333.33333333333331]
[null,null,null,null,null,null,null,null,null,null,450,500,333.33333333333331]
[null,null,null,null,null,null,null,null,null,null,400,500,500]
[null,null,null,null,null,null,null,null,null,null,400,500,333.33333333333331]
[null,null,null,null,null,null,null,null,null,null,500,500,500]
[null,null,null,null,null,null,null,null,null,null,450,500,500]
[null,null,null,null,null,null,null,null,null,null,450,500,500]
[null,null,null,null,null,null,null,null,null,null,400,400,500]
[null,null,null,null,null,null,null,null,null,null,500,500,500]
[null,null,null,null,null,null,null,null,null,null,500,500,500]
[null,null,null,null,null,null,null,null,null,null,450,300,500]
[null,null,null,null,null,null,null,null,null,null,450,500,500]
[null,null,null,null,null,null,null,null,null,null,450,400,333.33333333333331]
[null,null,null,null,null,null,null,null,null,null,450,300,333.33333333333331]
[null,null,null,null,null,null,null,null,null,null,450,400,500]
[null,null,null,null,null,null,null,null,null,null,500,500,500]
[null,null,null,null,null,null,null,null,null,null,350,400,500]
[null,null,null,null,null,null,null,null,null,null,450,500,333.33333333333331]
[null,null,null,null,null,null,null,null,null,null,450,400,500]
[null,null,null,null,null,null,null,null,null,null,500,400,500]
[null,null,null,null,null,null,null,null,null,null,500,400,500]
[null,null,null,null,null,null,null,null,null,null,450,300,500]
[null,null,null,null,null,null,null,null,null,null,500,500,166.66666666666666]
[null,null,null,null,null,null,null,null,null,null,400,500,500]
[null,null,null,null,null,null,null,null,null,null,250,400,500]
[null,null,null,null,null,null,null,null,null,null,500,500,333.33333333333331]
[null,null,null,null,null,null,null,null,null,null,450,500,333.33333333333331]
[null,null,null,null,null,null,null,null,null,null,500,400,500]
[null,null,null,null,null,null,null,null,null,null,500,500,333.33333333333331]
[null,null,null,null,null,null,null,null,null,null,450,500,333.33333333333331]
[null,null,null,null,null,null,null,null,null,null,500,500,500]
[null,null,null,null,null,null,null,null,null,null,500,400,500]
[null,null,null,null,null,null,null,null,null,null,450,500,500]
[null,null,null,null,null,null,null,null,null,null,500,400,500]
[null,null,null,null,null,null,null,null,null,null,450,500,500]
[null,null,null,null,null,null,null,null,null,null,450,500,500]
[null,null,null,null,null,null,null,null,null,null,450,500,500]
[null,null,null,null,null,null,null,null,null,null,500,300,333.33333333333331]
[null,null,null,null,null,null,null,null,null,null,500,500,500]
[null,null,null,null,null,null,null,null,null,null,500,500,500]
[null,null,null,null,null,null,null,null,null,null,450,400,500]
[null,null,null,null,null,null,null,null,null,null,450,500,333.33333333333331]
[null,null,null,null,null,null,null,null,null,null,500,500,500]
[null,null,null,null,null,null,null,null,null,null,500,500,500]
[null,null,null,null,null,null,null,null,null,null,450,400,500]
[null,null,null,null,null,null,null,null,null,null,500,500,500]
[null,null,null,null,null,null,null,null,null,null,450,500,333.33333333333331]
[null,null,null,null,null,null,null,null,null,null,500,400,500]
[null,null,null,null,null,null,null,null,null,null,500,500,333.33333333333331]
[null,null,null,null,null,null,null,null,null,null,250,500,333.33333333333331]
[null,null,null,null,null,null,null,null,null,null,500,400,500]
[null,null,null,null,null,null,null,null,null,null,500,500,500]
[null,null,null,null,null,null,null,null,null,null,500,500,500]
[null,null,null,null,null,null,null,null,null,null,500,500,333.33333333333331]
[null,null,null,null,null,null,null,null,null,null,500,400,500]
[null,null,null,null,null,null,null,null,null,null,450,400,333.33333333333331]
[null,null,null,null,null,null,null,null,null,null,450,400,500]
[null,null,null,null,null,null,null,null,null,null,500,300,500]
[null,null,null,null,null,null,null,null,null,null,350,400,500]
[null,null,null,null,null,null,null,null,null,null,500,500,500]
[null,null,null,null,null,null,null,null,null,null,500,400,333.33333333333331]
[null,null,null,null,null,null,null,null,null,null,500,400,500]
[null,null,null,null,null,null,null,null,null,null,450,500,500]
[null,null,null,null,null,null,null,null,null,null,450,500,500]
[null,null,null,null,null,null,null,null,null,null,500,500,500]
[null,null,null,null,null,null,null,null,null,null,500,500,500]
[null,null,null,null,null,null,null,null,null,null,500,500,500]
[null,null,null,null,null,null,null,null,null,null,450,500,500]
[null,null,null,null,null,null,null,null,null,null,350,500,500]
[null,null,null,null,null,null,null,null,null,null,450,400,500]
[null,null,null,null,null,null,null,null,null,null,400,500,333.33333333333331]
[null,null,null,null,null,null,null,null,null,null,500,400,500]
[null,null,null,null,null,null,null,null,null,null,500,500,333.33333333333331]
[null,null,null,null,null,null,null,null,null,null,500,500,500]
[null,null,null,null,null,null,null,null,null,null,450,500,500]
[null,null,null,null,null,null,null,null,null,null,450,500,500]
[null,null,null,null,null,null,null,null,null,null,500,500,333.33333333333331]
[null,null,null,null,null,null,null,null,null,null,450,400,500]
[null,null,null,null,null,null,null,null,null,null,450,500,333.33333333333331]
[null,null,null,null,null,null,null,null,null,null,450,500,500]
[null,null,null,null,null,null,null,null,null,null,500,500,500]
[null,null,null,null,null,null,null,null,null,null,450,400,333.33333333333331]
[null,null,null,null,null,null,null,null,null,null,350,400,500]
[null,null,null,null,null,null,null,null,null,null,450,500,500]
[null,null,null,null,null,null,null,null,null,null,500,500,500]
[null,null,null,null,null,null,null,null,null,null,400,500,333.33333333333331]
[null,null,null,null,null,null,null,null,null,null,450,500,500]
[null,null,null,null,null,null,null,null,null,null,500,400,500]
[null,null,null,null,null,null,null,null,null,null,400,500,500]
[null,null,null,null,null,null,null,null,null,null,500,300,500]
[null,null,null,null,null,null,null,null,null,null,400,500,500]
[null,null,null,null,null,null,null,null,null,null,500,500,500]
[null,null,null,null,null,null,null,null,null,null,500,500,333.33333333333331]
[null,null,null,null,null,null,null,null,null,null,450,500,500]
[null,null,null,null,null,null,null,null,null,null,450,400,500]
[null,null,null,null,null,null,null,null,null,null,500,400,500]
[null,null,null,null,null,null,null,null,null,null,500,500,500]
[null,null,null,null,null,null,null,null,null,null,450,500,500]
[null,null,null,null,null,null,null,null,null,null,450,400,500]
[null,null,null,null,null,null,null,null,null,null,500,400,500]
[null,null,null,null,null,null,null,null,null,null,450,500,500]
[null,null,null,null,null,null,null,null,null,null,500,500,333.33333333333331]
[null,null,null,null,null,null,null,null,null,null,500,500,500]
[null,null,null,null,null,null,null,null,null,null,450,400,500]
[null,null,null,null,null,null,null,null,null,null,450,400,500]
[null,null,null,null,null,null,null,null,null,null,450,400,500]
[null,null,null,null,null,null,null,null,null,null,500,500,500]
[null,null,null,null,null,null,null,null,null,null,500,500,500]
[null,null,null,null,null,null,null,null,null,null,400,500,500]
[null,null,null,null,null,null,null,null,null,null,450,500,500]
[null,null,null,null,null,null,null,null,null,null,400,500,333.33333333333331]
[null,null,null,null,null,null,null,null,null,null,350,500,500]
[null,null,null,null,null,null,null,null,null,null,450,500,500]
[null,null,null,null,null,null,null,null,null,null,450,500,500]
[null,null,null,null,null,null,null,null,null,null,500,500,500]
[null,null,null,null,null,null,null,null,null,null,500,500,500]
[null,null,null,null,null,null,null,null,null,null,450,500,500]
[null,null,null,null,null,null,null,null,null,null,450,400,500]
[null,null,null,null,null,null,null,null,null,null,450,300,333.33333333333331]
[null,null,null,null,null,null,null,null,null,null,450,400,333.33333333333331]
[null,null,null,null,null,null,null,null,null,null,450,400,500]
[null,null,null,null,null,null,null,null,null,null,450,400,500]
[null,null,null,null,null,null,null,null,null,null,500,400,500]
[null,null,null,null,null,null,null,null,null,null,500,500,500]
[null,null,null,null,null,null,null,null,null,null,450,400,333.33333333333331]
[null,null,null,null,null,null,null,null,null,null,450,400,333.33333333333331]
[null,null,null,null,null,null,null,null,null,null,400,400,500]
[null,null,null,null,null,null,null,null,null,null,500,500,500]
[null,null,null,null,null,null,null,null,null,null,500,500,500]
[null,null,null,null,null,null,null,null,null,null,500,500,500]
[null,null,null,null,null,null,null,null,null,null,400,500,500]
[null,null,null,null,null,null,null,null,null,null,500,500,333.33333333333331]
[null,null,null,null,null,null,null,null,null,null,450,300,500]
[null,null,null,null,null,null,null,null,null,null,450,500,500]
[null,null,null,null,null,null,null,null,null,null,450,500,333.33333333333331]
[null,null,null,null,null,null,null,null,null,null,400,400,500]
[null,null,null,null,null,null,null,null,null,null,400,500,500]
[null,null,null,null,null,null,null,null,null,null,450,500,500]
[null,null,null,null,null,null,null,null,null,null,350,500,500]
[null,null,null,null,null,null,null,null,null,null,450,500,500]
[null,null,null,null,null,null,null,null,null,null,500,300,500]
[null,null,null,null,null,null,null,null,null,null,450,400,500]
[null,null,null,null,null,null,null,null,null,null,500,500,500]
[null,null,null,null,null,null,null,null,null,null,500,500,333.33333333333331]
[null,null,null,null,null,null,null,null,null,null,500,500,500]
[null,null,null,null,null,null,null,null,null,null,350,500,500]
[null,null,null,null,null,null,null,null,null,null,400,500,500]
[null,null,null,null,null,null,null,null,null,null,450,500,500]
[null,null,null,null,null,null,null,null,null,null,500,500,500]
[null,null,null,null,null,null,null,null,null,null,500,500,500]
[null,null,null,null,null,null,null,null,null,null,500,500,500]
[null,null,null,null,null,null,null,null,null,null,500,500,500]
[null,null,null,null,null,null,null,null,null,null,500,300,500]
[null,null,null,null,null,null,null,null,null,null,500,500,500]
[null,null,null,null,null,null,null,null,null,null,450,500,500]
[null,null,null,null,null,null,null,null,null,null,500,400,500]
[null,null,null,null,null,null,null,null,null,null,450,400,333.33333333333331]
[null,null,null,null,null,null,null,null,null,null,500,500,500]
[null,null,null,null,null,null,null,null,null,null,400,500,500]
[null,null,null,null,null,null,null,null,null,null,450,500,500]
[null,null,null,null,null,null,null,null,null,null,450,500,500]
[null,null,null,null,null,null,null,null,null,null,450,500,333.33333333333331]
[null,null,null,null,null,null,null,null,null,null,450,500,500]
[null,null,null,null,null,null,null,null,null,null,500,400,500]
[null,null,null,null,null,null,null,null,null,null,400,400,500]
[null,null,null,null,null,null,null,null,null,null,450,400,500]
[null,null,null,null,null,null,null,null,null,null,450,500,500]
[null,null,null,null,null,null,null,null,null,null,500,500,500]
[null,null,null,null,null,null,null,null,null,null,450,500,500]
[null,null,null,null,null,null,null,null,null,null,450,400,333.33333333333331]
[null,null,null,null,null,null,null,null,null,null,450,500,500]
[null,null,null,null,null,null,null,null,null,null,500,500,500]
[null,null,null,null,null,null,null,null,null,null,400,500,500]
[null,null,null,null,null,null,null,null,null,null,500,400,500]
[null,null,null,null,null,null,null,null,null,null,400,500,500]
[null,null,null,null,null,null,null,null,null,null,500,400,500]
[null,null,null,null,null,null,null,null,null,null,500,500,500]
[null,null,null,null,null,null,null,null,null,null,450,500,500]
[null,null,null,null,null,null,null,null,null,null,450,500,166.66666666666666]
[null,null,null,null,null,null,null,null,null,null,450,500,500]
[null,null,null,null,null,null,null,null,null,null,500,500,500]
[null,null,null,null,null,null,null,null,null,null,500,400,500]
[null,null,null,null,null,null,null,null,null,null,500,500,500]
[null,null,null,null,null,null,null,null,null,null,450,500,500]
[null,null,null,null,null,null,null,null,null,null,500,400,333.33333333333331]
[null,null,null,null,null,null,null,null,null,null,450,500,500]
[null,null,null,null,null,null,null,null,null,null,450,400,333.33333333333331]
[null,null,null,null,null,null,null,null,null,null,450,500,500]
[null,null,null,null,null,null,null,null,null,null,400,500,500]
[null,null,null,null,null,null,null,null,null,null,450,500,500]
[null,null,null,null,null,null,null,null,null,null,500,500,500]
[null,null,null,null,null,null,null,null,null,null,450,500,500]
[null,null,null,null,null,null,null,null,null,null,400,500,500]
[null,null,null,null,null,null,null,null,null,null,400,300,500]
[null,null,null,null,null,null,null,null,null,null,500,500,500]
[null,null,null,null,null,null,null,null,null,null,400,400,500]
[null,null,null,null,null,null,null,null,null,null,450,500,333.33333333333331]
[null,null,null,null,null,null,null,null,null,null,450,400,500]
[null,null,null,null,null,null,null,null,null,null,450,400,500]
[null,null,null,null,null,null,null,null,null,null,400,500,500]
[null,null,null,null,null,null,null,null,null,null,400,500,500]
[null,null,null,null,null,null,null,null,null,null,400,500,500]
[null,null,null,null,null,null,null,null,null,null,500,500,500]
[null,null,null,null,null,null,null,null,null,null,500,500,500]
[null,null,null,null,null,null,null,null,null,null,450,400,500]
[null,null,null,null,null,null,null,null,null,null,450,400,500]
[null,null,null,null,null,null,null,null,null,null,500,400,500]
[null,null,null,null,null,null,null,null,null,null,450,500,333.33333333333331]
[null,null,null,null,null,null,null,null,null,null,450,400,500]
[null,null,null,null,null,null,null,null,null,null,450,500,500]
[null,null,null,null,null,null,null,null,null,null,450,500,500]
[null,null,null,null,null,null,null,null,null,null,450,500,500]
[null,null,null,null,null,null,null,null,null,null,500,400,500]
[null,null,null,null,null,null,null,null,null,null,500,500,333.33333333333331]
[null,null,null,null,null,null,null,null,null,null,450,500,500]
[null,null,null,null,null,null,null,null,null,null,450,500,500]
[null,null,null,null,null,null,null,null,null,null,500,500,333.33333333333331]
[null,null,null,null,null,null,null,null,null,null,500,500,500]
[null,null,null,null,null,null,null,null,null,null,450,400,500]
[null,null,null,null,null,null,null,null,null,null,450,400,500]
[null,null,null,null,null,null,null,null,null,null,500,400,500]
[null,null,null,null,null,null,null,null,null,null,500,500,333.33333333333331]
[null,null,null,null,null,null,null,null,null,null,400,400,333.33333333333331]
[null,null,null,null,null,null,null,null,null,null,450,500,500]
[null,null,null,null,null,null,null,null,null,null,500,400,500]
[null,null,null,null,null,null,null,null,null,null,450,400,500]
[null,null,null,null,null,null,null,null,null,null,500,500,500]
[null,null,null,null,null,null,null,null,null,null,450,400,500]
[null,null,null,null,null,null,null,null,null,null,450,500,500]
[null,null,null,null,null,null,null,null,null,null,500,400,500]
[null,null,null,null,null,null,null,null,null,null,500,400,500]
[null,null,null,null,null,null,null,null,null,null,450,300,333.33333333333331]
[null,null,null,null,null,null,null,null,null,null,500,400,500]
[null,null,null,null,null,null,null,null,null,null,500,400,166.66666666666666]
[null,null,null,null,null,null,null,null,null,null,450,400,333.33333333333331]
[null,null,null,null,null,null,null,null,null,null,500,500,500]
[null,null,null,null,null,null,null,null,null,null,500,500,500]
[null,null,null,null,null,null,null,null,null,null,450,500,333.33333333333331]
[null,null,null,null,null,null,null,null,null,null,500,500,500]
[null,null,null,null,null,null,null,null,null,null,400,500,500]
[null,null,null,null,null,null,null,null,null,null,500,400,333.33333333333331]
[null,null,null,null,null,null,null,null,null,null,450,400,500]
[null,null,null,null,null,null,null,null,null,null,500,500,500]
[null,null,null,null,null,null,null,null,null,null,450,500,500]
[null,null,null,null,null,null,null,null,null,null,450,500,500]
[null,null,null,null,null,null,null,null,null,null,500,500,500]
[null,null,null,null,null,null,null,null,null,null,500,400,500]
[null,null,null,null,null,null,null,null,null,null,500,500,500]
[null,null,null,null,null,null,null,null,null,null,500,500,333.33333333333331]
[null,null,null,null,null,null,null,null,null,null,500,500,166.66666666666666]
[null,null,null,null,null,null,null,null,null,null,500,500,333.33333333333331]
[null,null,null,null,null,null,null,null,null,null,450,300,500]
[null,null,null,null,null,null,null,null,null,null,450,500,500]
[null,null,null,null,null,null,null,null,null,null,450,500,333.33333333333331]
[null,null,null,null,null,null,null,null,null,null,500,500,333.33333333333331]
[null,null,null,null,null,null,null,null,null,null,500,500,333.33333333333331]
[null,null,null,null,null,null,null,null,null,null,500,500,333.33333333333331]
[null,null,null,null,null,null,null,null,null,null,500,500,500]
[null,null,null,null,null,null,null,null,null,null,400,400,500]
[null,null,null,null,null,null,null,null,null,null,500,400,500]
[null,null,null,null,null,null,null,null,null,null,400,500,500]
[null,null,null,null,null,null,null,null,null,null,400,400,500]
[null,null,null,null,null,null,null,null,null,null,500,500,333.33333333333331]
[null,null,null,null,null,null,null,null,null,null,500,400,500]
[null,null,null,null,null,null,null,null,null,null,450,500,500]
[null,null,null,null,null,null,null,null,null,null,500,400,500]
[null,null,null,null,null,null,null,null,null,null,450,400,500]
[null,null,null,null,null,null,null,null,null,null,450,500,500]
[null,null,null,null,null,null,null,null,null,null,400,300,500]
[null,null,null,null,null,null,null,null,null,null,500,500,500]
[null,null,null,null,null,null,null,null,null,null,500,400,500]
[null,null,null,null,null,null,null,null,null,null,450,500,500]
[null,null,null,null,null,null,null,null,null,null,450,500,500]
[null,null,null,null,null,null,null,null,null,null,450,500,500]
[null,null,null,null,null,null,null,null,null,null,400,400,500]
[null,null,null,null,null,null,null,null,null,null,500,500,500]
[null,null,null,null,null,null,null,null,null,null,400,300,333.33333333333331]
[null,null,null,null,null,null,null,null,null,null,450,500,500]
[null,null,null,null,null,null,null,null,null,null,500,500,500]
[null,null,null,null,null,null,null,null,null,null,400,500,500]
[null,null,null,null,null,null,null,null,null,null,500,400,333.33333333333331]
[null,null,null,null,null,null,null,null,null,null,500,400,500]
[null,null,null,null,null,null,null,null,null,null,500,500,500]
[null,null,null,null,null,null,null,null,null,null,450,500,500]
[null,null,null,null,null,null,null,null,null,null,400,400,333.33333333333331]
[null,null,null,null,null,null,null,null,null,null,400,500,500]
[null,null,null,null,null,null,null,null,null,null,500,400,500]
[null,null,null,null,null,null,null,null,null,null,450,300,500]
[null,null,null,null,null,null,null,null,null,null,400,300,500]
[null,null,null,null,null,null,null,null,null,null,450,400,333.33333333333331]
[null,null,null,null,null,null,null,null,null,null,400,400,333.33333333333331]
[null,null,null,null,null,null,null,null,null,null,450,300,500]
[null,null,null,null,null,null,null,null,null,null,500,500,500]
[null,null,null,null,null,null,null,null,null,null,500,400,500]
[null,null,null,null,null,null,null,null,null,null,400,500,500]
[null,null,null,null,null,null,null,null,null,null,500,500,500]
[null,null,null,null,null,null,null,null,null,null,400,300,500]
[null,null,null,null,null,null,null,null,null,null,450,500,500]
[null,null,null,null,null,null,null,null,null,null,450,500,500]
[null,null,null,null,null,null,null,null,null,null,450,400,500]
[null,null,null,null,null,null,null,null,null,null,500,500,500]
[null,null,null,null,null,null,null,null,null,null,450,500,500]
[null,null,null,null,null,null,null,null,null,null,400,500,166.66666666666666]
[null,null,null,null,null,null,null,null,null,null,500,500,333.33333333333331]
[null,null,null,null,null,null,null,null,null,null,500,500,500]
[null,null,null,null,null,null,null,null,null,null,500,500,333.33333333333331]
[null,null,null,null,null,null,null,null,null,null,400,400,500]
[null,null,null,null,null,null,null,null,null,null,450,500,500]
[null,null,null,null,null,null,null,null,null,null,500,500,500]
[null,null,null,null,null,null,null,null,null,null,500,500,500]
[null,null,null,null,null,null,null,null,null,null,500,500,500]
[null,null,null,null,null,null,null,null,null,null,450,500,500]
[null,null,null,null,null,null,null,null,null,null,500,500,500]
[null,null,null,null,null,null,null,null,null,null,500,400,500]
[null,null,null,null,null,null,null,null,null,null,500,500,500]
[null,null,null,null,null,null,null,null,null,null,450,500,500]
[null,null,null,null,null,null,null,null,null,null,500,400,500]
[null,null,null,null,null,null,null,null,null,null,450,500,500]
[null,null,null,null,null,null,null,null,null,null,500,500,500]
[null,null,null,null,null,null,null,null,null,null,450,400,333.33333333333331]
[null,null,null,null,null,null,null,null,null,null,400,500,500]
[null,null,null,null,null,null,null,null,null,null,450,500,500]
[null,null,null,null,null,null,null,null,null,null,500,500,500]
[null,null,null,null,null,null,null,null,null,null,500,500,500]
[null,null,null,null,null,null,null,null,null,null,450,400,500]
[null,null,null,null,null,null,null,null,null,null,400,400,500]
[null,null,null,null,null,null,null,null,null,null,500,400,500]
[null,null,null,null,null,null,null,null,null,null,500,400,500]
[null,null,null,null,null,null,null,null,null,null,400,400,500]
[null,null,null,null,null,null,null,null,null,null,400,400,333.33333333333331]
[null,null,null,null,null,null,null,null,null,null,450,400,500]
[null,null,null,null,null,null,null,null,null,null,450,500,333.33333333333331]
[null,null,null,null,null,null,null,null,null,null,400,500,500]
[null,null,null,null,null,null,null,null,null,null,450,400,333.33333333333331]
[null,null,null,null,null,null,null,null,null,null,450,500,500]
[null,null,null,null,null,null,null,null,null,null,450,400,333.33333333333331]
[null,null,null,null,null,null,null,null,null,null,500,500,500]
[null,null,null,null,null,null,null,null,null,null,400,400,500]
[null,null,null,null,null,null,null,null,null,null,500,500,500]
[null,null,null,null,null,null,null,null,null,null,400,200,500]
[null,null,null,null,null,null,null,null,null,null,350,400,333.33333333333331]
[null,null,null,null,null,null,null,null,null,null,400,500,333.33333333333331]
[null,null,null,null,null,null,null,null,null,null,450,400,500]
[null,null,null,null,null,null,null,null,null,null,500,500,500]
[null,null,null,null,null,null,null,null,null,null,400,400,500]
[null,null,null,null,null,null,null,null,null,null,450,400,500]
[null,null,null,null,null,null,null,null,null,null,500,500,500]
[null,null,null,null,null,null,null,null,null,null,500,400,500]
[null,null,null,null,null,null,null,null,null,null,500,500,500]
[null,null,null,null,null,null,null,null,null,null,500,500,500]
[null,null,null,null,null,null,null,null,null,null,500,300,500]
[null,null,null,null,null,null,null,null,null,null,500,400,500]
[null,null,null,null,null,null,null,null,null,null,450,500,500]
[null,null,null,null,null,null,null,null,null,null,500,500,500]
[null,null,null,null,null,null,null,null,null,null,400,500,500]
[null,null,null,null,null,null,null,null,null,null,500,300,500]
[null,null,null,null,null,null,null,null,null,null,450,500,500]
[null,null,null,null,null,null,null,null,null,null,450,400,500]
[null,null,null,null,null,null,null,null,null,null,450,400,500]
[null,null,null,null,null,null,null,null,null,null,500,400,500]
[null,null,null,null,null,null,null,null,null,null,450,400,500]
[null,null,null,null,null,null,null,null,null,null,400,500,500]
[null,null,null,null,null,null,null,null,null,null,400,500,500]
[null,null,null,null,null,null,null,null,null,null,500,500,500]
[null,null,null,null,null,null,null,null,null,null,450,400,500]
[null,null,null,null,null,null,null,null,null,null,450,400,500]
[null,null,null,null,null,null,null,null,null,null,400,500,500]
[null,null,null,null,null,null,null,null,null,null,450,400,500]
[null,null,null,null,null,null,null,null,null,null,500,400,500]
[null,null,null,null,null,null,null,null,null,null,500,400,333.33333333333331]
[null,null,null,null,null,null,null,null,null,null,450,300,500]
[null,null,null,null,null,null,null,null,null,null,500,500,500]
[null,null,null,null,null,null,null,null,null,null,450,300,333.33333333333331]
[null,null,null,null,null,null,null,null,null,null,450,500,500]
[null,null,null,null,null,null,null,null,null,null,450,500,500]
[null,null,null,null,null,null,null,null,null,null,500,400,500]
[null,null,null,null,null,null,null,null,null,null,450,400,333.33333333333331]
[null,null,null,null,null,null,null,null,null,null,400,500,500]
[null,null,null,null,null,null,null,null,null,null,450,500,500]
[null,null,null,null,null,null,null,null,null,null,450,500,500]
[null,null,null,null,null,null,null,null,null,null,350,500,500]
[null,null,null,null,null,null,null,null,null,null,450,500,500]
[null,null,null,null,null,null,null,null,null,null,450,500,500]
[null,null,null,null,null,null,null,null,null,null,500,400,500]
[null,null,null,null,null,null,null,null,null,null,450,500,500]
[null,null,null,null,null,null,null,null,null,null,450,500,500]
[null,null,null,null,null,null,null,null,null,null,450,400,333.33333333333331]
[null,null,null,null,null,null,null,null,null,null,500,500,500]
[null,null,null,null,null,null,null,null,null,null,450,500,166.66666666666666]
[null,null,null,null,null,null,null,null,null,null,500,500,333.33333333333331]
[null,null,null,null,null,null,null,null,null,null,450,500,500]
[null,null,null,null,null,null,null,null,null,null,450,500,500]
[null,null,null,null,null,null,null,null,null,null,350,400,333.33333333333331]
[null,null,null,null,null,null,null,null,null,null,500,500,333.33333333333331]
[null,null,null,null,null,null,null,null,null,null,500,500,500]
[null,null,null,null,null,null,null,null,null,null,450,400,333.33333333333331]
[null,null,null,null,null,null,null,null,null,null,400,500,500]
[null,null,null,null,null,null,null,null,null,null,400,500,333.33333333333331]
[null,null,null,null,null,null,null,null,null,null,500,500,333.33333333333331]
[null,null,null,null,null,null,null,null,null,null,450,400,333.33333333333331]
[null,null,null,null,null,null,null,null,null,null,450,500,500]
[null,null,null,null,null,null,null,null,null,null,500,500,500]
[null,null,null,null,null,null,null,null,null,null,500,400,333.33333333333331]
[null,null,null,null,null,null,null,null,null,null,500,400,500]
[null,null,null,null,null,null,null,null,null,null,400,400,500]
[null,null,null,null,null,null,null,null,null,null,500,400,500]
[null,null,null,null,null,null,null,null,null,null,450,500,500]
[null,null,null,null,null,null,null,null,null,null,500,500,500]
[null,null,null,null,null,null,null,null,null,null,500,400,500]
[null,null,null,null,null,null,null,null,null,null,500,500,500]
[null,null,null,null,null,null,null,null,null,null,400,500,500]
[null,null,null,null,null,null,null,null,null,null,500,500,500]
[null,null,null,null,null,null,null,null,null,null,500,500,500]
[null,null,null,null,null,null,null,null,null,null,400,500,333.33333333333331]
[null,null,null,null,null,null,null,null,null,null,400,500,500]
[null,null,null,null,null,null,null,null,null,null,500,400,500]
[null,null,null,null,null,null,null,null,null,null,500,500,500]
[null,null,null,null,null,null,null,null,null,null,500,500,333.33333333333331]
[null,null,null,null,null,null,null,null,null,null,500,500,500]
[null,null,null,null,null,null,null,null,null,null,500,400,500]
[null,null,null,null,null,null,null,null,null,null,450,400,500]
[null,null,null,null,null,null,null,null,null,null,450,500,500]
[null,null,null,null,null,null,null,null,null,null,450,500,333.33333333333331]
[null,null,null,null,null,null,null,null,null,null,400,500,500]
[null,null,null,null,null,null,null,null,null,null,450,500,333.33333333333331]
[null,null,null,null,null,null,null,null,null,null,500,500,500]
[null,null,null,null,null,null,null,null,null,null,450,400,500]
[null,null,null,null,null,null,null,null,null,null,350,500,500]
[null,null,null,null,null,null,null,null,null,null,450,400,500]
[null,null,null,null,null,null,null,null,null,null,500,400,500]
[null,null,null,null,null,null,null,null,null,null,400,500,500]
[null,null,null,null,null,null,null,null,null,null,400,500,333.33333333333331]
[null,null,null,null,null,null,null,null,null,null,450,400,500]
[null,null,null,null,null,null,null,null,null,null,400,500,166.66666666666666]
[null,null,null,null,null,null,null,null,null,null,500,500,500]
[null,null,null,null,null,null,null,null,null,null,500,500,500]
[null,null,null,null,null,null,null,null,null,null,500,500,500]
[null,null,null,null,null,null,null,null,null,null,500,500,500]
[null,null,null,null,null,null,null,null,null,null,450,500,500]
[null,null,null,null,null,null,null,null,null,null,400,500,500]
[null,null,null,null,null,null,null,null,null,null,450,500,500]
[null,null,null,null,null,null,null,null,null,null,450,500,500]
[null,null,null,null,null,null,null,null,null,null,450,500,500]
[null,null,null,null,null,null,null,null,null,null,500,400,333.33333333333331]
[null,null,null,null,null,null,null,null,null,null,400,500,333.33333333333331]
[null,null,null,null,null,null,null,null,null,null,500,400,500]
[null,null,null,null,null,null,null,null,null,null,450,500,500]
[null,null,null,null,null,null,null,null,null,null,500,400,500]
[null,null,null,null,null,null,null,null,null,null,450,400,500]
[null,null,null,null,null,null,null,null,null,null,500,400,333.33333333333331]
[null,null,null,null,null,null,null,null,null,null,500,500,333.33333333333331]
[null,null,null,null,null,null,null,null,null,null,500,500,333.33333333333331]
[null,null,null,null,null,null,null,null,null,null,500,500,333.33333333333331]
[null,null,null,null,null,null,null,null,null,null,450,500,500]
[null,null,null,null,null,null,null,null,null,null,500,500,500]
[null,null,null,null,null,null,null,null,null,null,450,500,500]
[null,null,null,null,null,null,null,null,null,null,450,400,333.33333333333331]
[null,null,null,null,null,null,null,null,null,null,400,400,500]
[null,null,null,null,null,null,null,null,null,null,500,500,500]
[null,null,null,null,null,null,null,null,null,null,500,500,500]
[null,null,null,null,null,null,null,null,null,null,450,400,500]
[null,null,null,null,null,null,null,null,null,null,400,500,500]
[null,null,null,null,null,null,null,null,null,null,500,500,500]
[null,null,null,null,null,null,null,null,null,null,400,500,500]
[null,null,null,null,null,null,null,null,null,null,400,500,500]
[null,null,null,null,null,null,null,null,null,null,450,500,500]
[null,null,null,null,null,null,null,null,null,null,450,500,500]
[null,null,null,null,null,null,null,null,null,null,500,500,500]
[null,null,null,null,null,null,null,null,null,null,500,500,500]
[null,null,null,null,null,null,null,null,null,null,450,500,333.33333333333331]
[null,null,null,null,null,null,null,null,null,null,500,500,500]
[null,null,null,null,null,null,null,null,null,null,400,500,500]
[null,null,null,null,null,null,null,null,null,null,500,500,500]
[null,null,null,null,null,null,null,null,null,null,450,400,500]
[null,null,null,null,null,null,null,null,null,null,500,400,500]
[null,null,null,null,null,null,null,null,null,null,450,500,500]
[null,null,null,null,null,null,null,null,null,null,400,500,500]
[null,null,null,null,null,null,null,null,null,null,500,500,500]
[null,null,null,null,null,null,null,null,null,null,400,500,500]
[null,null,null,null,null,null,null,null,null,null,450,500,500]
[null,null,null,null,null,null,null,null,null,null,450,500,500]
[null,null,null,null,null,null,null,null,null,null,450,500,500]
[null,null,null,null,null,null,null,null,null,null,500,400,333.33333333333331]
[null,null,null,null,null,null,null,null,null,null,400,400,500]
[null,null,null,null,null,null,null,null,null,null,450,500,333.33333333333331]
[null,null,null,null,null,null,null,null,null,null,500,300,500]
[null,null,null,null,null,null,null,null,null,null,500,400,333.33333333333331]
[null,null,null,null,null,null,null,null,null,null,500,500,500]
[null,null,null,null,null,null,null,null,null,null,450,500,333.33333333333331]
[null,null,null,null,null,null,null,null,null,null,500,400,500]
[null,null,null,null,null,null,null,null,null,null,500,500,500]
[null,null,null,null,null,null,null,null,null,null,450,500,500]
[null,null,null,null,null,null,null,null,null,null,400,400,500]
[null,null,null,null,null,null,null,null,null,null,500,400,500]
[null,null,null,null,null,null,null,null,null,null,450,500,166.66666666666666]
[null,null,null,null,null,null,null,null,null,null,500,500,500]
[null,null,null,null,null,null,null,null,null,null,450,300,500]
[null,null,null,null,null,null,null,null,null,null,500,400,333.33333333333331]
[null,null,null,null,null,null,null,null,null,null,450,500,500]
[null,null,null,null,null,null,null,null,null,null,350,400,500]
[null,null,null,null,null,null,null,null,null,null,450,400,500]
[null,null,null,null,null,null,null,null,null,null,500,400,500]
[null,null,null,null,null,null,null,null,null,null,450,500,500]
[null,null,null,null,null,null,null,null,null,null,350,500,500]
[null,null,null,null,null,null,null,null,null,null,500,400,500]
[null,null,null,null,null,null,null,null,null,null,450,500,500]
[null,null,null,null,null,null,null,null,null,null,450,300,333.33333333333331]
[null,null,null,null,null,null,null,null,null,null,500,400,500]
[null,null,null,null,null,null,null,null,null,null,500,500,500]
[null,null,null,null,null,null,null,null,null,null,500,500,333.33333333333331]
[null,null,null,null,null,null,null,null,null,null,500,400,333.33333333333331]
[null,null,null,null,null,null,null,null,null,null,450,400,500]
[null,null,null,null,null,null,null,null,null,null,450,500,333.33333333333331]
[null,null,null,null,null,null,null,null,null,null,450,500,333.33333333333331]
[null,null,null,null,null,null,null,null,null,null,450,500,500]
[null,null,null,null,null,null,null,null,null,null,450,500,500]
[null,null,null,null,null,null,null,null,null,null,500,500,500]
[null,null,null,null,null,null,null,null,null,null,500,500,333.33333333333331]
[null,null,null,null,null,null,null,null,null,null,500,400,333.33333333333331]
[null,null,null,null,null,null,null,null,null,null,450,500,500]
[null,null,null,null,null,null,null,null,null,null,450,500,500]
[null,null,null,null,null,null,null,null,null,null,450,400,500]
[null,null,null,null,null,null,null,null,null,null,500,400,500]
[null,null,null,null,null,null,null,null,null,null,450,500,500]
[null,null,null,null,null,null,null,null,null,null,450,400,500]
[null,null,null,null,null,null,null,null,null,null,500,500,500]
[null,null,null,null,null,null,null,null,null,null,450,500,500]
[null,null,null,null,null,null,null,null,null,null,400,400,166.66666666666666]
[null,null,null,null,null,null,null,null,null,null,450,300,500]
[null,null,null,null,null,null,null,null,null,null,450,400,333.33333333333331]
[null,null,null,null,null,null,null,null,null,null,400,400,500]
[null,null,null,null,null,null,null,null,null,null,500,400,500]
[null,null,null,null,null,null,null,null,null,null,500,500,500]
[null,null,null,null,null,null,null,null,null,null,450,500,333.33333333333331]
[null,null,null,null,null,null,null,null,null,null,500,500,500]
[null,null,null,null,null,null,null,null,null,null,500,500,500]
[null,null,null,null,null,null,null,null,null,null,450,500,500]
[null,null,null,null,null,null,null,null,null,null,400,500,333.33333333333331]
[null,null,null,null,null,null,null,null,null,null,450,500,500]
[null,null,null,null,null,null,null,null,null,null,500,500,500]
[null,null,null,null,null,null,null,null,null,null,400,400,500]
[null,null,null,null,null,null,null,null,null,null,400,300,500]
[null,null,null,null,null,null,null,null,null,null,450,500,500]
[null,null,null,null,null,null,null,null,null,null,450,500,333.33333333333331]
[null,null,null,null,null,null,null,null,null,null,450,400,500]
[null,null,null,null,null,null,null,null,null,null,450,400,500]
[null,null,null,null,null,null,null,null,null,null,500,500,500]
[null,null,null,null,null,null,null,null,null,null,400,500,500]
[null,null,null,null,null,null,null,null,null,null,450,500,500]
[null,null,null,null,null,null,null,null,null,null,500,500,333.33333333333331]
[null,null,null,null,null,null,null,null,null,null,450,400,500]
[null,null,null,null,null,null,null,null,null,null,350,400,500]
[null,null,null,null,null,null,null,null,null,null,500,500,333.33333333333331]
[null,null,null,null,null,null,null,null,null,null,400,500,333.33333333333331]
[null,null,null,null,null,null,null,null,null,null,450,500,500]
[null,null,null,null,null,null,null,null,null,null,400,500,500]
[null,null,null,null,null,null,null,null,null,null,500,500,500]
[null,null,null,null,null,null,null,null,null,null,400,400,500]
[null,null,null,null,null,null,null,null,null,null,500,500,333.33333333333331]
[null,null,null,null,null,null,null,null,null,null,500,300,500]
[null,null,null,null,null,null,null,null,null,null,450,400,500]
[null,null,null,null,null,null,null,null,null,null,450,300,500]
[null,null,null,null,null,null,null,null,null,null,500,400,500]
[null,null,null,null,null,null,null,null,null,null,450,500,500]
[null,null,null,null,null,null,null,null,null,null,450,500,500]
[null,null,null,null,null,null,null,null,null,null,450,500,500]
[null,null,null,null,null,null,null,null,null,null,500,300,500]
[null,null,null,null,null,null,null,null,null,null,500,500,500]
[null,null,null,null,null,null,null,null,null,null,450,500,500]
[null,null,null,null,null,null,null,null,null,null,500,500,500]
[null,null,null,null,null,null,null,null,null,null,450,400,500]
[null,null,null,null,null,null,null,null,null,null,450,500,500]
[null,null,null,null,null,null,null,null,null,null,400,400,333.33333333333331]
[null,null,null,null,null,null,null,null,null,null,450,500,500]
[null,null,null,null,null,null,null,null,null,null,400,500,333.33333333333331]
[null,null,null,null,null,null,null,null,null,null,500,400,333.33333333333331]
[null,null,null,null,null,null,null,null,null,null,350,400,333.33333333333331]
[null,null,null,null,null,null,null,null,null,null,500,500,500]
[null,null,null,null,null,null,null,null,null,null,450,500,333.33333333333331]
[null,null,null,null,null,null,null,null,null,null,400,400,500]
[null,null,null,null,null,null,null,null,null,null,450,400,500]
[null,null,null,null,null,null,null,null,null,null,500,500,500]
[null,null,null,null,null,null,null,null,null,null,400,400,500]
[null,null,null,null,null,null,null,null,null,null,500,300,500]
[null,null,null,null,null,null,null,null,null,null,500,500,500]
[null,null,null,null,null,null,null,null,null,null,450,400,500]
[null,null,null,null,null,null,null,null,null,null,500,300,500]
[null,null,null,null,null,null,null,null,null,null,500,500,500]
[null,null,null,null,null,null,null,null,null,null,450,500,500]
[null,null,null,null,null,null,null,null,null,null,500,500,500]
[null,null,null,null,null,null,null,null,null,null,450,400,333.33333333333331]
[null,null,null,null,null,null,null,null,null,null,500,500,333.33333333333331]
[null,null,null,null,null,null,null,null,null,null,450,500,333.33333333333331]
[null,null,null,null,null,null,null,null,null,null,450,500,500]
[null,null,null,null,null,null,null,null,null,null,350,500,500]
[null,null,null,null,null,null,null,null,null,null,400,500,500]
[null,null,null,null,null,null,null,null,null,null,400,300,500]
[null,null,null,null,null,null,null,null,null,null,500,500,500]
[null,null,null,null,null,null,null,null,null,null,500,500,500]
[null,null,null,null,null,null,null,null,null,null,500,500,500]
[null,null,null,null,null,null,null,null,null,null,400,400,500]
[null,null,null,null,null,null,null,null,null,null,500,500,333.33333333333331]
[null,null,null,null,null,null,null,null,null,null,450,400,500]
[null,null,null,null,null,null,null,null,null,null,400,400,500]
[null,null,null,null,null,null,null,null,null,null,500,500,500]
[null,null,null,null,null,null,null,null,null,null,450,500,500]
[null,null,null,null,null,null,null,null,null,null,450,400,500]
[null,null,null,null,null,null,null,null,null,null,450,500,500]
[null,null,null,null,null,null,null,null,null,null,400,400,333.33333333333331]
[null,null,null,null,null,null,null,null,null,null,450,400,333.33333333333331]
[null,null,null,null,null,null,null,null,null,null,500,500,333.33333333333331]
[null,null,null,null,null,null,null,null,null,null,350,500,500]
[null,null,null,null,null,null,null,null,null,null,400,300,500]
[null,null,null,null,null,null,null,null,null,null,450,500,500]
[null,null,null,null,null,null,null,null,null,null,500,400,500]
[null,null,null,null,null,null,null,null,null,null,450,300,500]
[null,null,null,null,null,null,null,null,null,null,450,500,333.33333333333331]
[null,null,null,null,null,null,null,null,null,null,500,400,500]
[null,null,null,null,null,null,null,null,null,null,450,400,500]
[null,null,null,null,null,null,null,null,null,null,500,500,500]
[null,null,null,null,null,null,null,null,null,null,500,500,500]
[null,null,null,null,null,null,null,null,null,null,500,500,333.33333333333331]
[null,null,null,null,null,null,null,null,null,null,500,400,500]
[null,null,null,null,null,null,null,null,null,null,500,500,333.33333333333331]
[null,null,null,null,null,null,null,null,null,null,450,500,500]
[null,null,null,null,null,null,null,null,null,null,500,500,500]
[null,null,null,null,null,null,null,null,null,null,500,500,333.33333333333331]
[null,null,null,null,null,null,null,null,null,null,350,400,500]
[null,null,null,null,null,null,null,null,null,null,500,500,500]
[null,null,null,null,null,null,null,null,null,null,500,500,333.33333333333331]
[null,null,null,null,null,null,null,null,null,null,500,500,500]
[null,null,null,null,null,null,null,null,null,null,400,500,333.33333333333331]
[null,null,null,null,null,null,null,null,null,null,500,500,500]
[null,null,null,null,null,null,null,null,null,null,500,500,500]
[null,null,null,null,null,null,null,null,null,null,350,500,500]
[null,null,null,null,null,null,null,null,null,null,500,500,500]
[null,null,null,null,null,null,null,null,null,null,500,500,500]
[null,null,null,null,null,null,null,null,null,null,500,500,333.33333333333331]
[null,null,null,null,null,null,null,null,null,null,450,500,500]
[null,null,null,null,null,null,null,null,null,null,500,500,500]
[null,null,null,null,null,null,null,null,null,null,400,500,500]
[null,null,null,null,null,null,null,null,null,null,500,500,500]
[null,null,null,null,null,null,null,null,null,null,500,500,333.33333333333331]
[null,null,null,null,null,null,null,null,null,null,500,500,500]
[null,null,null,null,null,null,null,null,null,null,400,300,500]
[null,null,null,null,null,null,null,null,null,null,500,500,333.33333333333331]
[null,null,null,null,null,null,null,null,null,null,400,500,500]
[null,null,null,null,null,null,null,null,null,null,500,500,500]
[null,null,null,null,null,null,null,null,null,null,450,500,500]
[null,null,null,null,null,null,null,null,null,null,500,400,500]
[null,null,null,null,null,null,null,null,null,null,500,500,500]
[null,null,null,null,null,null,null,null,null,null,450,500,500]
[null,null,null,null,null,null,null,null,null,null,450,500,500]
[null,null,null,null,null,null,null,null,null,null,500,500,500]
[null,null,null,null,null,null,null,null,null,null,500,400,333.33333333333331]
[null,null,null,null,null,null,null,null,null,null,450,500,500]
[null,null,null,null,null,null,null,null,null,null,450,400,500]
[null,null,null,null,null,null,null,null,null,null,400,500,500]
[null,null,null,null,null,null,null,null,null,null,500,400,500]
[null,null,null,null,null,null,null,null,null,null,500,500,500]
[null,null,null,null,null,null,null,null,null,null,450,500,500]
[null,null,null,null,null,null,null,null,null,null,500,400,500]
[null,null,null,null,null,null,null,null,null,null,350,500,500]
[null,null,null,null,null,null,null,null,null,null,450,500,500]
[null,null,null,null,null,null,null,null,null,null,450,400,500]
[null,null,null,null,null,null,null,null,null,null,450,400,500]
[null,null,null,null,null,null,null,null,null,null,450,500,500]
[null,null,null,null,null,null,null,null,null,null,500,500,333.33333333333331]
[null,null,null,null,null,null,null,null,null,null,450,400,500]
[null,null,null,null,null,null,null,null,null,null,500,500,500]
[null,null,null,null,null,null,null,null,null,null,450,500,500]
[null,null,null,null,null,null,null,null,null,null,500,500,500]
[null,null,null,null,null,null,null,null,null,null,500,400,500]
[null,null,null,null,null,null,null,null,null,null,400,500,500]
[null,null,null,null,null,null,null,null,null,null,500,500,333.33333333333331]
[null,null,null,null,null,null,null,null,null,null,450,400,500]
[null,null,null,null,null,null,null,null,null,null,500,400,500]
[null,null,null,null,null,null,null,null,null,null,400,400,500]
[null,null,null,null,null,null,null,null,null,null,400,400,500]
[null,null,null,null,null,null,null,null,null,null,500,500,500]
[null,null,null,null,null,null,null,null,null,null,500,500,500]
[null,null,null,null,null,null,null,null,null,null,500,400,333.33333333333331]
[null,null,null,null,null,null,null,null,null,null,400,400,500]
[null,null,null,null,null,null,null,null,null,null,400,200,333.33333333333331]
[null,null,null,null,null,null,null,null,null,null,450,400,500]
[null,null,null,null,null,null,null,null,null,null,500,500,500]
[null,null,null,null,null,null,null,null,null,null,500,300,500]
[null,null,null,null,null,null,null,null,null,null,450,500,500]
[null,null,null,null,null,null,null,null,null,null,450,500,500]
[null,null,null,null,null,null,null,null,null,null,400,400,500]
[null,null,null,null,null,null,null,null,null,null,450,500,500]
[null,null,null,null,null,null,null,null,null,null,400,400,500]
[null,null,null,null,null,null,null,null,null,null,500,500,500]
[null,null,null,null,null,null,null,null,null,null,500,500,333.33333333333331]
[null,null,null,null,null,null,null,null,null,null,400,500,333.33333333333331]
[null,null,null,null,null,null,null,null,null,null,450,500,500]
[null,null,null,null,null,null,null,null,null,null,500,500,500]
[null,null,null,null,null,null,null,null,null,null,500,400,500]
[null,null,null,null,null,null,null,null,null,null,400,400,333.33333333333331]
[null,null,null,null,null,null,null,null,null,null,500,400,333.33333333333331]
[null,null,null,null,null,null,null,null,null,null,500,400,500]
[null,null,null,null,null,null,null,null,null,null,500,200,500]
[null,null,null,null,null,null,null,null,null,null,500,400,500]
[null,null,null,null,null,null,null,null,null,null,500,400,500]
[null,null,null,null,null,null,null,null,null,null,350,500,500]
[null,null,null,null,null,null,null,null,null,null,450,400,500]
[null,null,null,null,null,null,null,null,null,null,500,400,333.33333333333331]
[null,null,null,null,null,null,null,null,null,null,400,400,500]
[null,null,null,null,null,null,null,null,null,null,500,500,500]
[null,null,null,null,null,null,null,null,null,null,400,400,500]
[null,null,null,null,null,null,null,null,null,null,400,500,333.33333333333331]
[null,null,null,null,null,null,null,null,null,null,500,500,500]
[null,null,null,null,null,null,null,null,null,null,400,500,500]
[null,null,null,null,null,null,null,null,null,null,450,500,500]
[null,null,null,null,null,null,null,null,null,null,400,500,500]
[null,null,null,null,null,null,null,null,null,null,500,500,500]
[null,null,null,null,null,null,null,null,null,null,400,500,500]
[null,null,null,null,null,null,null,null,null,null,450,500,500]
[null,null,null,null,null,null,null,null,null,null,300,400,500]
[null,null,null,null,null,null,null,null,null,null,450,500,500]
[null,null,null,null,null,null,null,null,null,null,500,500,166.66666666666666]
[null,null,null,null,null,null,null,null,null,null,500,500,500]
[null,null,null,null,null,null,null,null,null,null,450,500,500]
[null,null,null,null,null,null,null,null,null,null,500,500,500]
[null,null,null,null,null,null,null,null,null,null,500,500,500]
[null,null,null,null,null,null,null,null,null,null,500,500,500]
[null,null,null,null,null,null,null,null,null,null,450,400,500]
[null,null,null,null,null,null,null,null,null,null,400,500,500]
[null,null,null,null,null,null,null,null,null,null,450,500,333.33333333333331]
[null,null,null,null,null,null,null,null,null,null,450,500,500]
[null,null,null,null,null,null,null,null,null,null,400,400,500]
[null,null,null,null,null,null,null,null,null,null,450,500,333.33333333333331]
[null,null,null,null,null,null,null,null,null,null,400,400,333.33333333333331]
[null,null,null,null,null,null,null,null,null,null,400,500,333.33333333333331]
[null,null,null,null,null,null,null,null,null,null,450,300,500]
[null,null,null,null,null,null,null,null,null,null,500,500,500]
[null,null,null,null,null,null,null,null,null,null,450,500,500]
[null,null,null,null,null,null,null,null,null,null,500,500,500]
[null,null,null,null,null,null,null,null,null,null,400,500,500]
[null,null,null,null,null,null,null,null,null,null,500,500,333.33333333333331]
[null,null,null,null,null,null,null,null,null,null,500,400,500]
[null,null,null,null,null,null,null,null,null,null,500,500,500]
[null,null,null,null,null,null,null,null,null,null,450,500,500]
[null,null,null,null,null,null,null,null,null,null,450,400,500]
[null,null,null,null,null,null,null,null,null,null,500,400,500]
[null,null,null,null,null,null,null,null,null,null,450,500,500]
[null,null,null,null,null,null,null,null,null,null,500,300,500]
[null,null,null,null,null,null,null,null,null,null,500,500,500]
[null,null,null,null,null,null,null,null,null,null,400,400,500]
[null,null,null,null,null,null,null,null,null,null,450,400,500]
[null,null,null,null,null,null,null,null,null,null,450,500,500]
[null,null,null,null,null,null,null,null,null,null,500,400,500]
[null,null,null,null,null,null,null,null,null,null,500,500,500]
[null,null,null,null,null,null,null,null,null,null,500,500,500]
[null,null,null,null,null,null,null,null,null,null,450,400,500]
[null,null,null,null,null,null,null,null,null,null,450,500,500]
[null,null,null,null,null,null,null,null,null,null,450,500,500]
[null,null,null,null,null,null,null,null,null,null,400,400,500]
[null,null,null,null,null,null,null,null,null,null,500,400,333.33333333333331]
[null,null,null,null,null,null,null,null,null,null,500,400,500]
[null,null,null,null,null,null,null,null,null,null,450,400,500]
[null,null,null,null,null,null,null,null,null,null,450,400,500]
[null,null,null,null,null,null,null,null,null,null,500,400,500]
[null,null,null,null,null,null,null,null,null,null,450,500,500]
[null,null,null,null,null,null,null,null,null,null,400,500,500]
[null,null,null,null,null,null,null,null,null,null,500,500,500]
[null,null,null,null,null,null,null,null,null,null,500,500,500]
[null,null,null,null,null,null,null,null,null,null,450,500,166.66666666666666]
[null,null,null,null,null,null,null,null,null,null,400,500,500]
[null,null,null,null,null,null,null,null,null,null,400,400,333.33333333333331]
[null,null,null,null,null,null,null,null,null,null,450,500,500]
[null,null,null,null,null,null,null,null,null,null,450,500,500]
[null,null,null,null,null,null,null,null,null,null,450,400,500]
[null,null,null,null,null,null,null,null,null,null,450,300,500]
[null,null,null,null,null,null,null,null,null,null,500,500,500]
[null,null,null,null,null,null,null,null,null,null,500,500,500]
[null,null,null,null,null,null,null,null,null,null,500,400,333.33333333333331]
[null,null,null,null,null,null,null,null,null,null,450,500,500]
[null,null,null,null,null,null,null,null,null,null,500,500,333.33333333333331]
[null,null,null,null,null,null,null,null,null,null,400,400,500]
[null,null,null,null,null,null,null,null,null,null,450,500,500]
[null,null,null,null,null,null,null,null,null,null,450,500,500]
[null,null,null,null,null,null,null,null,null,null,500,500,500]
[null,null,null,null,null,null,null,null,null,null,500,400,500]
[null,null,null,null,null,null,null,null,null,null,350,500,500]
[null,null,null,null,null,null,null,null,null,null,400,500,500]
[null,null,null,null,null,null,null,null,null,null,450,500,500]
[null,null,null,null,null,null,null,null,null,null,450,500,500]
[null,null,null,null,null,null,null,null,null,null,300,500,500]
[null,null,null,null,null,null,null,null,null,null,500,300,500]
[null,null,null,null,null,null,null,null,null,null,450,500,500]
[null,null,null,null,null,null,null,null,null,null,400,500,500]
[null,null,null,null,null,null,null,null,null,null,500,400,500]
[null,null,null,null,null,null,null,null,null,null,450,500,333.33333333333331]
[null,null,null,null,null,null,null,null,null,null,500,400,500]
[null,null,null,null,null,null,null,null,null,null,500,500,500]
[null,null,null,null,null,null,null,null,null,null,450,500,500]
[null,null,null,null,null,null,null,null,null,null,400,500,500]
[null,null,null,null,null,null,null,null,null,null,400,500,500]
[null,null,null,null,null,null,null,null,null,null,400,500,500]
[null,null,null,null,null,null,null,null,null,null,500,500,500]
[null,null,null,null,null,null,null,null,null,null,450,500,333.33333333333331]
[null,null,null,null,null,null,null,null,null,null,450,500,500]
[null,null,null,null,null,null,null,null,null,null,450,500,500]
[null,null,null,null,null,null,null,null,null,null,450,400,500]
[null,null,null,null,null,null,null,null,null,null,450,500,333.33333333333331]
[null,null,null,null,null,null,null,null,null,null,500,500,500]
[null,null,null,null,null,null,null,null,null,null,400,500,500]
[null,null,null,null,null,null,null,null,null,null,400,500,500]
[null,null,null,null,null,null,null,null,null,null,500,300,500]
[null,null,null,null,null,null,null,null,null,null,400,500,500]
[null,null,null,null,null,null,null,null,null,null,350,400,500]
[null,null,null,null,null,null,null,null,null,null,450,500,333.33333333333331]
[null,null,null,null,null,null,null,null,null,null,450,500,333.33333333333331]
[null,null,null,null,null,null,null,null,null,null,500,500,500]
[null,null,null,null,null,null,null,null,null,null,500,500,500]
[null,null,null,null,null,null,null,null,null,null,450,500,333.33333333333331]
[null,null,null,null,null,null,null,null,null,null,450,500,500]
[null,null,null,null,null,null,null,null,null,null,500,500,500]
[null,null,null,null,null,null,null,null,null,null,400,500,500]
[null,null,null,null,null,null,null,null,null,null,400,500,500]
[null,null,null,null,null,null,null,null,null,null,500,400,500]
[null,null,null,null,null,null,null,null,null,null,500,400,500]
[null,null,null,null,null,null,null,null,null,null,500,500,500]
[null,null,null,null,null,null,null,null,null,null,400,400,500]
[null,null,null,null,null,null,null,null,null,null,450,500,500]
[null,null,null,null,null,null,null,null,null,null,400,500,500]
[null,null,null,null,null,null,null,null,null,null,450,500,333.33333333333331]
[null,null,null,null,null,null,null,null,null,null,450,500,500]
[null,null,null,null,null,null,null,null,null,null,450,500,500]
[null,null,null,null,null,null,null,null,null,null,500,500,166.66666666666666]
[null,null,null,null,null,null,null,null,null,null,450,500,500]
[null,null,null,null,null,null,null,null,null,null,450,500,500]
[null,null,null,null,null,null,null,null,null,null,500,500,333.33333333333331]
[null,null,null,null,null,null,null,null,null,null,500,400,333.33333333333331]
[null,null,null,null,null,null,null,null,null,null,500,400,500]
[null,null,null,null,null,null,null,null,null,null,500,500,500]
[null,null,null,null,null,null,null,null,null,null,500,500,333.33333333333331]
[null,null,null,null,null,null,null,null,null,null,500,500,500]
[null,null,null,null,null,null,null,null,null,null,500,500,500]
[null,null,null,null,null,null,null,null,null,null,500,500,500]
[null,null,null,null,null,null,null,null,null,null,450,400,500]
[null,null,null,null,null,null,null,null,null,null,450,500,500]
[null,null,null,null,null,null,null,null,null,null,450,400,500]
[null,null,null,null,null,null,null,null,null,null,500,500,333.33333333333331]
[null,null,null,null,null,null,null,null,null,null,500,500,333.33333333333331]
[null,null,null,null,null,null,null,null,null,null,500,400,333.33333333333331]
[null,null,null,null,null,null,null,null,null,null,500,500,500]
[null,null,null,null,null,null,null,null,null,null,450,200,500]
[null,null,null,null,null,null,null,null,null,null,400,500,500]
[null,null,null,null,null,null,null,null,null,null,450,500,500]
[null,null,null,null,null,null,null,null,null,null,500,500,500]
[null,null,null,null,null,null,null,null,null,null,500,500,500]
[null,null,null,null,null,null,null,null,null,null,400,500,500]
[null,null,null,null,null,null,null,null,null,null,500,500,500]
[null,null,null,null,null,null,null,null,null,null,500,500,500]
[null,null,null,null,null,null,null,null,null,null,500,400,333.33333333333331]
[null,null,null,null,null,null,null,null,null,null,400,500,500]
[null,null,null,null,null,null,null,null,null,null,450,500,500]
[null,null,null,null,null,null,null,null,null,null,500,300,500]
[null,null,null,null,null,null,null,null,null,null,500,500,500]
[null,null,null,null,null,null,null,null,null,null,500,500,166.66666666666666]
[null,null,null,null,null,null,null,null,null,null,500,400,500]
[null,null,null,null,null,null,null,null,null,null,500,500,500]
[null,null,null,null,null,null,null,null,null,null,450,500,500]
[null,null,null,null,null,null,null,null,null,null,500,500,500]
[null,null,null,null,null,null,null,null,null,null,400,500,500]
[null,null,null,null,null,null,null,null,null,null,500,400,333.33333333333331]
[null,null,null,null,null,null,null,null,null,null,500,500,500]
[null,null,null,null,null,null,null,null,null,null,500,400,500]
[null,null,null,null,null,null,null,null,null,null,400,500,500]
[null,null,null,null,null,null,null,null,null,null,500,400,333.33333333333331]
[null,null,null,null,null,null,null,null,null,null,450,400,500]
[null,null,null,null,null,null,null,null,null,null,400,400,500]
[null,null,null,null,null,null,null,null,null,null,500,500,500]
[null,null,null,null,null,null,null,null,null,null,500,500,333.33333333333331]
[null,null,null,null,null,null,null,null,null,null,500,500,500]
[null,null,null,null,null,null,null,null,null,null,500,500,333.33333333333331]
[null,null,null,null,null,null,null,null,null,null,500,500,500]
[null,null,null,null,null,null,null,null,null,null,500,500,333.33333333333331]
[null,null,null,null,null,null,null,null,null,null,450,500,500]
[null,null,null,null,null,null,null,null,null,null,450,400,333.33333333333331]
[null,null,null,null,null,null,null,null,null,null,450,500,500]
[null,null,null,null,null,null,null,null,null,null,400,400,333.33333333333331]
[null,null,null,null,null,null,null,null,null,null,500,500,500]
[null,null,null,null,null,null,null,null,null,null,450,500,500]
[null,null,null,null,null,null,null,null,null,null,450,500,333.33333333333331]
[null,null,null,null,null,null,null,null,null,null,500,400,500]
[null,null,null,null,null,null,null,null,null,null,450,400,500]
[null,null,null,null,null,null,null,null,null,null,400,400,500]
[null,null,null,null,null,null,null,null,null,null,500,500,500]
[null,null,null,null,null,null,null,null,null,null,500,400,500]
[null,null,null,null,null,null,null,null,null,null,500,500,500]
[null,null,null,null,null,null,null,null,null,null,500,500,500]
[null,null,null,null,null,null,null,null,null,null,500,500,333.33333333333331]
[null,null,null,null,null,null,null,null,null,null,450,500,500]
[null,null,null,null,null,null,null,null,null,null,500,500,500]
[null,null,null,null,null,null,null,null,null,null,450,500,500]
[null,null,null,null,null,null,null,null,null,null,400,500,500]
[null,null,null,null,null,null,null,null,null,null,450,500,500]
[null,null,null,null,null,null,null,null,null,null,450,500,500]
[null,null,null,null,null,null,null,null,null,null,500,400,500]
[null,null,null,null,null,null,null,null,null,null,450,500,333.33333333333331]
[null,null,null,null,null,null,null,null,null,null,500,400,500]
[null,null,null,null,null,null,null,null,null,null,400,400,333.33333333333331]
[null,null,null,null,null,null,null,null,null,null,500,400,500]
[null,null,null,null,null,null,null,null,null,null,500,400,500]
[null,null,null,null,null,null,null,null,null,null,450,500,333.33333333333331]
[null,null,null,null,null,null,null,null,null,null,450,500,333.33333333333331]
[null,null,null,null,null,null,null,null,null,null,450,500,500]
[null,null,null,null,null,null,null,null,null,null,400,500,333.33333333333331]
[null,null,null,null,null,null,null,null,null,null,500,500,500]
[null,null,null,null,null,null,null,null,null,null,450,500,333.33333333333331]
[null,null,null,null,null,null,null,null,null,null,500,400,500]
[null,null,null,null,null,null,null,null,null,null,450,400,500]
[null,null,null,null,null,null,null,null,null,null,500,500,500]
[null,null,null,null,null,null,null,null,null,null,400,500,500]
[null,null,null,null,null,null,null,null,null,null,400,500,500]
[null,null,null,null,null,null,null,null,null,null,400,500,500]
[null,null,null,null,null,null,null,null,null,null,450,500,500]
[null,null,null,null,null,null,null,null,null,null,500,500,333.33333333333331]
[null,null,null,null,null,null,null,null,null,null,450,500,500]
[null,null,null,null,null,null,null,null,null,null,500,500,333.33333333333331]
[null,null,null,null,null,null,null,null,null,null,500,500,333.33333333333331]
[null,null,null,null,null,null,null,null,null,null,450,500,500]
[null,null,null,null,null,null,null,null,null,null,500,500,333.33333333333331]
[null,null,null,null,null,null,null,null,null,null,450,400,166.66666666666666]
[null,null,null,null,null,null,null,null,null,null,500,500,500]
[null,null,null,null,null,null,null,null,null,null,350,500,500]
[null,null,null,null,null,null,null,null,null,null,450,500,500]
[null,null,null,null,null,null,null,null,null,null,400,500,500]
[null,null,null,null,null,null,null,null,null,null,450,400,500]
[null,null,null,null,null,null,null,null,null,null,450,500,500]
[null,null,null,null,null,null,null,null,null,null,450,500,500]
[null,null,null,null,null,null,null,null,null,null,350,400,333.33333333333331]
[null,null,null,null,null,null,null,null,null,null,450,500,500]
[null,null,null,null,null,null,null,null,null,null,500,500,500]
[null,null,null,null,null,null,null,null,null,null,500,500,500]
[null,null,null,null,null,null,null,null,null,null,500,500,500]
[null,null,null,null,null,null,null,null,null,null,500,400,500]
[null,null,null,null,null,null,null,null,null,null,450,500,500]
[null,null,null,null,null,null,null,null,null,null,500,500,500]
[null,null,null,null,null,null,null,null,null,null,450,500,333.33333333333331]
[null,null,null,null,null,null,null,null,null,null,500,500,500]
[null,null,null,null,null,null,null,null,null,null,450,500,333.33333333333331]
[null,null,null,null,null,null,null,null,null,null,500,400,333.33333333333331]
[null,null,null,null,null,null,null,null,null,null,500,500,500]
[null,null,null,null,null,null,null,null,null,null,450,400,333.33333333333331]
[null,null,null,null,null,null,null,null,null,null,400,500,500]
[null,null,null,null,null,null,null,null,null,null,350,400,500]
[null,null,null,null,null,null,null,null,null,null,450,500,500]
[null,null,null,null,null,null,null,null,null,null,450,500,500]
[null,null,null,null,null,null,null,null,null,null,450,400,500]
[null,null,null,null,null,null,null,null,null,null,450,400,333.33333333333331]
[null,null,null,null,null,null,null,null,null,null,450,500,333.33333333333331]
[null,null,null,null,null,null,null,null,null,null,450,400,500]
[null,null,null,null,null,null,null,null,null,null,450,400,500]
[null,null,null,null,null,null,null,null,null,null,450,500,500]
[null,null,null,null,null,null,null,null,null,null,450,500,333.33333333333331]
[null,null,null,null,null,null,null,null,null,null,400,500,333.33333333333331]
[null,null,null,null,null,null,null,null,null,null,450,400,333.33333333333331]
[null,null,null,null,null,null,null,null,null,null,450,500,500]
[null,null,null,null,null,null,null,null,null,null,400,500,500]
[null,null,null,null,null,null,null,null,null,null,450,500,333.33333333333331]
[null,null,null,null,null,null,null,null,null,null,400,400,166.66666666666666]
[null,null,null,null,null,null,null,null,null,null,450,400,166.66666666666666]
[null,null,null,null,null,null,null,null,null,null,500,500,500]
[null,null,null,null,null,null,null,null,null,null,400,500,500]
[null,null,null,null,null,null,null,null,null,null,450,400,500]
[null,null,null,null,null,null,null,null,null,null,500,500,500]
[null,null,null,null,null,null,null,null,null,null,450,500,500]
[null,null,null,null,null,null,null,null,null,null,500,500,500]
[null,null,null,null,null,null,null,null,null,null,500,500,500]
[null,null,null,null,null,null,null,null,null,null,450,200,500]
[null,null,null,null,null,null,null,null,null,null,450,500,500]
[null,null,null,null,null,null,null,null,null,null,500,300,333.33333333333331]
[null,null,null,null,null,null,null,null,null,null,450,500,500]
[null,null,null,null,null,null,null,null,null,null,450,400,500]
[null,null,null,null,null,null,null,null,null,null,500,500,333.33333333333331]
[null,null,null,null,null,null,null,null,null,null,450,400,500]
[null,null,null,null,null,null,null,null,null,null,450,500,500]
[null,null,null,null,null,null,null,null,null,null,450,400,500]
[null,null,null,null,null,null,null,null,null,null,500,500,500]
[null,null,null,null,null,null,null,null,null,null,500,500,500]
[null,null,null,null,null,null,null,null,null,null,500,500,333.33333333333331]
[null,null,null,null,null,null,null,null,null,null,500,400,500]
[null,null,null,null,null,null,null,null,null,null,500,500,500]
[null,null,null,null,null,null,null,null,null,null,450,500,500]
[null,null,null,null,null,null,null,null,null,null,500,500,333.33333333333331]
[null,null,null,null,null,null,null,null,null,null,450,500,333.33333333333331]
[null,null,null,null,null,null,null,null,null,null,450,500,500]
[null,null,null,null,null,null,null,null,null,null,450,400,500]
[null,null,null,null,null,null,null,null,null,null,400,400,500]
[null,null,null,null,null,null,null,null,null,null,500,300,500]
[null,null,null,null,null,null,null,null,null,null,500,400,500]
[null,null,null,null,null,null,null,null,null,null,400,400,500]
[null,null,null,null,null,null,null,null,null,null,450,500,500]
[null,null,null,null,null,null,null,null,null,null,500,500,500]
[null,null,null,null,null,null,null,null,null,null,400,500,500]
[null,null,null,null,null,null,null,null,null,null,450,500,500]
[null,null,null,null,null,null,null,null,null,null,500,400,500]
[null,null,null,null,null,null,null,null,null,null,450,400,500]
[null,null,null,null,null,null,null,null,null,null,450,400,500]
[null,null,null,null,null,null,null,null,null,null,450,500,500]
[null,null,null,null,null,null,null,null,null,null,450,500,500]
[null,null,null,null,null,null,null,null,null,null,350,500,500]
[null,null,null,null,null,null,null,null,null,null,450,500,500]
[null,null,null,null,null,null,null,null,null,null,450,400,500]
[null,null,null,null,null,null,null,null,null,null,500,400,500]
[null,null,null,null,null,null,null,null,null,null,500,400,500]
[null,null,null,null,null,null,null,null,null,null,500,500,500]
[null,null,null,null,null,null,null,null,null,null,400,400,333.33333333333331]
[null,null,null,null,null,null,null,null,null,null,400,500,500]
[null,null,null,null,null,null,null,null,null,null,500,400,500]
[null,null,null,null,null,null,null,null,null,null,500,500,166.66666666666666]
[null,null,null,null,null,null,null,null,null,null,450,500,500]
[null,null,null,null,null,null,null,null,null,null,500,500,500]
[null,null,null,null,null,null,null,null,null,null,450,400,500]
[null,null,null,null,null,null,null,null,null,null,400,500,333.33333333333331]
[null,null,null,null,null,null,null,null,null,null,450,500,500]
[null,null,null,null,null,null,null,null,null,null,400,500,500]
[null,null,null,null,null,null,null,null,null,null,450,300,333.33333333333331]
[null,null,null,null,null,null,null,null,null,null,450,500,500]
[null,null,null,null,null,null,null,null,null,null,450,400,500]
[null,null,null,null,null,null,null,null,null,null,450,200,500]
[null,null,null,null,null,null,null,null,null,null,500,400,500]
[null,null,null,null,null,null,null,null,null,null,500,500,500]
[null,null,null,null,null,null,null,null,null,null,450,500,500]
[null,null,null,null,null,null,null,null,null,null,400,500,333.33333333333331]
[null,null,null,null,null,null,null,null,null,null,450,500,333.33333333333331]
[null,null,null,null,null,null,null,null,null,null,450,400,500]
[null,null,null,null,null,null,null,null,null,null,450,400,500]
[null,null,null,null,null,null,null,null,null,null,400,400,500]
[null,null,null,null,null,null,null,null,null,null,450,500,500]
[null,null,null,null,null,null,null,null,null,null,400,500,500]
[null,null,null,null,null,null,null,null,null,null,500,300,500]
[null,null,null,null,null,null,null,null,null,null,400,500,333.33333333333331]
[null,null,null,null,null,null,null,null,null,null,500,500,500]
[null,null,null,null,null,null,null,null,null,null,500,500,500]
[null,null,null,null,null,null,null,null,null,null,450,500,333.33333333333331]
[null,null,null,null,null,null,null,null,null,null,500,500,500]
[null,null,null,null,null,null,null,null,null,null,500,500,500]
[null,null,null,null,null,null,null,null,null,null,500,500,166.66666666666666]
[null,null,null,null,null,null,null,null,null,null,500,400,500]
[null,null,null,null,null,null,null,null,null,null,450,400,500]
[null,null,null,null,null,null,null,null,null,null,500,400,500]
[null,null,null,null,null,null,null,null,null,null,500,500,500]
[null,null,null,null,null,null,null,null,null,null,400,500,333.33333333333331]
[null,null,null,null,null,null,null,null,null,null,450,500,500]
[null,null,null,null,null,null,null,null,null,null,350,500,500]
[null,null,null,null,null,null,null,null,null,null,500,500,500]
[null,null,null,null,null,null,null,null,null,null,450,500,500]
[null,null,null,null,null,null,null,null,null,null,500,500,500]
[null,null,null,null,null,null,null,null,null,null,500,500,333.33333333333331]
[null,null,null,null,null,null,null,null,null,null,500,400,500]
[null,null,null,null,null,null,null,null,null,null,500,500,333.33333333333331]
[null,null,null,null,null,null,null,null,null,null,500,500,500]
[null,null,null,null,null,null,null,null,null,null,450,500,500]
[null,null,null,null,null,null,null,null,null,null,500,500,500]
[null,null,null,null,null,null,null,null,null,null,500,500,166.66666666666666]
[null,null,null,null,null,null,null,null,null,null,350,500,500]
[null,null,null,null,null,null,null,null,null,null,500,400,500]
[null,null,null,null,null,null,null,null,null,null,400,400,500]
[null,null,null,null,null,null,null,null,null,null,400,500,500]
[null,null,null,null,null,null,null,null,null,null,500,500,333.33333333333331]
[null,null,null,null,null,null,null,null,null,null,450,400,500]
[null,null,null,null,null,null,null,null,null,null,500,500,500]
[null,null,null,null,null,null,null,null,null,null,500,500,166.66666666666666]
[null,null,null,null,null,null,null,null,null,null,450,500,500]
[null,null,null,null,null,null,null,null,null,null,450,500,500]
[null,null,null,null,null,null,null,null,null,null,500,500,500]
[null,null,null,null,null,null,null,null,null,null,400,500,500]
[null,null,null,null,null,null,null,null,null,null,400,400,500]
[null,null,null,null,null,null,null,null,null,null,450,500,500]
[null,null,null,null,null,null,null,null,null,null,500,500,333.33333333333331]
[null,null,null,null,null,null,null,null,null,null,500,400,500]
[null,null,null,null,null,null,null,null,null,null,500,500,500]
[null,null,null,null,null,null,null,null,null,null,350,300,500]
[null,null,null,null,null,null,null,null,null,null,500,200,500]
[null,null,null,null,null,null,null,null,null,null,400,500,500]
[null,null,null,null,null,null,null,null,null,null,500,400,500]
[null,null,null,null,null,null,null,null,null,null,400,300,500]
[null,null,null,null,null,null,null,null,null,null,500,500,500]
[null,null,null,null,null,null,null,null,null,null,450,400,500]
[null,null,null,null,null,null,null,null,null,null,500,400,333.33333333333331]
[null,null,null,null,null,null,null,null,null,null,500,500,500]
[null,null,null,null,null,null,null,null,null,null,450,500,500]
[null,null,null,null,null,null,null,null,null,null,450,500,500]
[null,null,null,null,null,null,null,null,null,null,400,500,166.66666666666666]
[null,null,null,null,null,null,null,null,null,null,500,400,500]
[null,null,null,null,null,null,null,null,null,null,500,500,500]
[null,null,null,null,null,null,null,null,null,null,450,500,500]
[null,null,null,null,null,null,null,null,null,null,500,500,500]
[null,null,null,null,null,null,null,null,null,null,450,500,500]
[null,null,null,null,null,null,null,null,null,null,500,500,500]
[null,null,null,null,null,null,null,null,null,null,450,500,333.33333333333331]
[null,null,null,null,null,null,null,null,null,null,500,500,500]
[null,null,null,null,null,null,null,null,null,null,350,500,500]
[null,null,null,null,null,null,null,null,null,null,500,400,500]
[null,null,null,null,null,null,null,null,null,null,450,500,500]
[null,null,null,null,null,null,null,null,null,null,500,400,500]
[null,null,null,null,null,null,null,null,null,null,500,500,500]
[null,null,null,null,null,null,null,null,null,null,450,500,500]
[null,null,null,null,null,null,null,null,null,null,450,500,500]
[null,null,null,null,null,null,null,null,null,null,400,500,500]
[null,null,null,null,null,null,null,null,null,null,450,500,333.33333333333331]
[null,null,null,null,null,null,null,null,null,null,500,500,500]
[null,null,null,null,null,null,null,null,null,null,500,500,333.33333333333331]
[null,null,null,null,null,null,null,null,null,null,400,500,500]
[null,null,null,null,null,null,null,null,null,null,400,500,500]
[null,null,null,null,null,null,null,null,null,null,450,500,333.33333333333331]
[null,null,null,null,null,null,null,null,null,null,500,500,500]
[null,null,null,null,null,null,null,null,null,null,450,500,500]
[null,null,null,null,null,null,null,null,null,null,500,500,500]
[null,null,null,null,null,null,null,null,null,null,500,400,500]
[null,null,null,null,null,null,null,null,null,null,500,400,500]
[null,null,null,null,null,null,null,null,null,null,450,500,500]
[null,null,null,null,null,null,null,null,null,null,500,500,333.33333333333331]
[null,null,null,null,null,null,null,null,null,null,500,500,500]
[null,null,null,null,null,null,null,null,null,null,450,400,500]
[null,null,null,null,null,null,null,null,null,null,400,500,500]
[null,null,null,null,null,null,null,null,null,null,400,400,500]
[null,null,null,null,null,null,null,null,null,null,400,400,500]
[null,null,null,null,null,null,null,null,null,null,500,500,500]
[null,null,null,null,null,null,null,null,null,null,500,400,500]
[null,null,null,null,null,null,null,null,null,null,500,500,333.33333333333331]
[null,null,null,null,null,null,null,null,null,null,450,500,333.33333333333331]
[null,null,null,null,null,null,null,null,null,null,500,400,500]
[null,null,null,null,null,null,null,null,null,null,500,500,500]
[null,null,null,null,null,null,null,null,null,null,450,400,500]
[null,null,null,null,null,null,null,null,null,null,450,500,500]
[null,null,null,null,null,null,null,null,null,null,500,300,500]
[null,null,null,null,null,null,null,null,null,null,350,500,500]
[null,null,null,null,null,null,null,null,null,null,500,500,500]
[null,null,null,null,null,null,null,null,null,null,450,500,333.33333333333331]
[null,null,null,null,null,null,null,null,null,null,500,500,500]
[null,null,null,null,null,null,null,null,null,null,500,500,500]
[null,null,null,null,null,null,null,null,null,null,500,400,500]
[null,null,null,null,null,null,null,null,null,null,500,500,500]
[null,null,null,null,null,null,null,null,null,null,450,500,333.33333333333331]
[null,null,null,null,null,null,null,null,null,null,450,500,500]
[null,null,null,null,null,null,null,null,null,null,450,500,500]
[null,null,null,null,null,null,null,null,null,null,500,400,500]
[null,null,null,null,null,null,null,null,null,null,400,500,500]
[null,null,null,null,null,null,null,null,null,null,500,500,500]
[null,null,null,null,null,null,null,null,null,null,450,400,333.33333333333331]
[null,null,null,null,null,null,null,null,null,null,450,500,500]
[null,null,null,null,null,null,null,null,null,null,400,500,333.33333333333331]
[null,null,null,null,null,null,null,null,null,null,500,400,500]
[null,null,null,null,null,null,null,null,null,null,400,500,500]
[null,null,null,null,null,null,null,null,null,null,500,300,500]
[null,null,null,null,null,null,null,null,null,null,450,500,333.33333333333331]
[null,null,null,null,null,null,null,null,null,null,500,500,500]
[null,null,null,null,null,null,null,null,null,null,450,500,500]
[null,null,null,null,null,null,null,null,null,null,500,400,500]
[null,null,null,null,null,null,null,null,null,null,500,400,500]
[null,null,null,null,null,null,null,null,null,null,450,400,500]
[null,null,null,null,null,null,null,null,null,null,500,500,500]
[null,null,null,null,null,null,null,null,null,null,450,400,500]
[null,null,null,null,null,null,null,null,null,null,450,500,333.33333333333331]
[null,null,null,null,null,null,null,null,null,null,350,500,500]
[null,null,null,null,null,null,null,null,null,null,450,500,333.33333333333331]
[null,null,null,null,null,null,null,null,null,null,500,400,500]
[null,null,null,null,null,null,null,null,null,null,450,500,500]
[null,null,null,null,null,null,null,null,null,null,500,500,500]
[null,null,null,null,null,null,null,null,null,null,500,500,500]
[null,null,null,null,null,null,null,null,null,null,400,500,333.33333333333331]
[null,null,null,null,null,null,null,null,null,null,500,500,500]
[null,null,null,null,null,null,null,null,null,null,300,300,500]
[null,null,null,null,null,null,null,null,null,null,500,500,333.33333333333331]
[null,null,null,null,null,null,null,null,null,null,450,500,500]
[null,null,null,null,null,null,null,null,null,null,450,500,500]
[null,null,null,null,null,null,null,null,null,null,500,500,500]
[null,null,null,null,null,null,null,null,null,null,400,300,500]
[null,null,null,null,null,null,null,null,null,null,450,500,500]
[null,null,null,null,null,null,null,null,null,null,500,500,500]
[null,null,null,null,null,null,null,null,null,null,450,500,333.33333333333331]
[null,null,null,null,null,null,null,null,null,null,350,500,500]
[null,null,null,null,null,null,null,null,null,null,500,400,500]
[null,null,null,null,null,null,null,null,null,null,500,500,500]
[null,null,null,null,null,null,null,null,null,null,450,400,333.33333333333331]
[null,null,null,null,null,null,null,null,null,null,450,500,333.33333333333331]
[null,null,null,null,null,null,null,null,null,null,450,400,500]
[null,null,null,null,null,null,null,null,null,null,500,500,500]
[null,null,null,null,null,null,null,null,null,null,500,400,500]
[null,null,null,null,null,null,null,null,null,null,450,400,500]
[null,null,null,null,null,null,null,null,null,null,500,500,500]
[null,null,null,null,null,null,null,null,null,null,450,500,500]
[null,null,null,null,null,null,null,null,null,null,500,500,500]
[null,null,null,null,null,null,null,null,null,null,500,500,500]
[null,null,null,null,null,null,null,null,null,null,450,300,333.33333333333331]
[null,null,null,null,null,null,null,null,null,null,500,500,500]
[null,null,null,null,null,null,null,null,null,null,450,500,500]
[null,null,null,null,null,null,null,null,null,null,450,500,500]
[null,null,null,null,null,null,null,null,null,null,500,400,500]
[null,null,null,null,null,null,null,null,null,null,500,400,500]
[null,null,null,null,null,null,null,null,null,null,500,400,333.33333333333331]
[null,null,null,null,null,null,null,null,null,null,500,500,333.33333333333331]
[null,null,null,null,null,null,null,null,null,null,500,500,500]
[null,null,null,null,null,null,null,null,null,null,450,400,500]
[null,null,null,null,null,null,null,null,null,null,350,400,500]
[null,null,null,null,null,null,null,null,null,null,500,500,500]
[null,null,null,null,null,null,null,null,null,null,400,500,500]
[null,null,null,null,null,null,null,null,null,null,450,500,500]
[null,null,null,null,null,null,null,null,null,null,450,500,500]
[null,null,null,null,null,null,null,null,null,null,450,400,500]
[null,null,null,null,null,null,null,null,null,null,500,500,500]
[null,null,null,null,null,null,null,null,null,null,400,500,500]
[null,null,null,null,null,null,null,null,null,null,450,500,500]
[null,null,null,null,null,null,null,null,null,null,500,500,500]
[null,null,null,null,null,null,null,null,null,null,500,400,333.33333333333331]
[null,null,null,null,null,null,null,null,null,null,500,500,500]
[null,null,null,null,null,null,null,null,null,null,350,400,333.33333333333331]
[null,null,null,null,null,null,null,null,null,null,450,500,500]
[null,null,null,null,null,null,null,null,null,null,450,400,500]
[null,null,null,null,null,null,null,null,null,null,450,500,500]
[null,null,null,null,null,null,null,null,null,null,450,300,500]
[null,null,null,null,null,null,null,null,null,null,450,200,333.33333333333331]
[null,null,null,null,null,null,null,null,null,null,500,500,500]
[null,null,null,null,null,null,null,null,null,null,400,400,500]
[null,null,null,null,null,null,null,null,null,null,450,400,500]
[null,null,null,null,null,null,null,null,null,null,450,400,500]
[null,null,null,null,null,null,null,null,null,null,500,500,333.33333333333331]
[null,null,null,null,null,null,null,null,null,null,450,400,500]
[null,null,null,null,null,null,null,null,null,null,400,500,500]
[null,null,null,null,null,null,null,null,null,null,450,500,500]
[null,null,null,null,null,null,null,null,null,null,450,400,333.33333333333331]
[null,null,null,null,null,null,null,null,null,null,450,500,500]
[null,null,null,null,null,null,null,null,null,null,450,500,500]
[null,null,null,null,null,null,null,null,null,null,450,400,500]
[null,null,null,null,null,null,null,null,null,null,500,500,500]
[null,null,null,null,null,null,null,null,null,null,500,500,500]
[null,null,null,null,null,null,null,null,null,null,500,500,500]
[null,null,null,null,null,null,null,null,null,null,450,500,500]
[null,null,null,null,null,null,null,null,null,null,500,500,500]
[null,null,null,null,null,null,null,null,null,null,450,500,333.33333333333331]
[null,null,null,null,null,null,null,null,null,null,450,400,500]
[null,null,null,null,null,null,null,null,null,null,450,500,333.33333333333331]
[null,null,null,null,null,null,null,null,null,null,400,500,333.33333333333331]
[null,null,null,null,null,null,null,null,null,null,400,500,333.33333333333331]
[null,null,null,null,null,null,null,null,null,null,400,500,500]
[null,null,null,null,null,null,null,null,null,null,500,500,500]
[null,null,null,null,null,null,null,null,null,null,500,500,500]
[null,null,null,null,null,null,null,null,null,null,500,300,500]
[null,null,null,null,null,null,null,null,null,null,450,500,500]
[null,null,null,null,null,null,null,null,null,null,500,500,500]
[null,null,null,null,null,null,null,null,null,null,450,500,500]
[null,null,null,null,null,null,null,null,null,null,500,500,500]
[null,null,null,null,null,null,null,null,null,null,450,400,500]
[null,null,null,null,null,null,null,null,null,null,500,400,500]
[null,null,null,null,null,null,null,null,null,null,500,500,500]
[null,null,null,null,null,null,null,null,null,null,500,500,500]
[null,null,null,null,null,null,null,null,null,null,500,500,500]
[null,null,null,null,null,null,null,null,null,null,500,500,500]
[null,null,null,null,null,null,null,null,null,null,400,500,500]
[null,null,null,null,null,null,null,null,null,null,500,500,500]
[null,null,null,null,null,null,null,null,null,null,500,400,500]
[null,null,null,null,null,null,null,null,null,null,400,400,500]
[null,null,null,null,null,null,null,null,null,null,400,500,500]
[null,null,null,null,null,null,null,null,null,null,500,500,500]
[null,null,null,null,null,null,null,null,null,null,500,300,500]
[null,null,null,null,null,null,null,null,null,null,500,400,500]
[null,null,null,null,null,null,null,null,null,null,500,500,166.66666666666666]
[null,null,null,null,null,null,null,null,null,null,500,500,500]
[null,null,null,null,null,null,null,null,null,null,500,500,500]
[null,null,null,null,null,null,null,null,null,null,450,500,333.33333333333331]
[null,null,null,null,null,null,null,null,null,null,500,400,500]
[null,null,null,null,null,null,null,null,null,null,400,200,500]

{"sheet":"VBA Program","index":2,"n_rows":0,"n_cols":0,"rows_kept":0,"cut":false,"hidden":false,"merged":[]}